Workbook

Sheet Instructions (START HERE)
B1: NPF Cost Revenue Workbook
B2: Sponsor Name:
A3: FALSE | B3: Background:
B4: This tool focuses on nonprogram food costs as a percent of total food costs district-wide in an effort to streamline the requirements under 7 CFR. 210.14(f). This simplified approach allows us to calculate 5 consecutive operating days (or 4 consecutive days for schools that operate on a 4-day school week) for all menus and grade levels for the district. For additional background information, please see SP 20-2016. This Excel worksheet was adapted and developed with courtsey from the Idaho State Department of Educations NPFRT Child Nutrition Division. | I4: SP 20-2016
A7: FALSE | B7: Determine How Many Menus Need to be Completed:
A9: FALSE | B9: K-5 Lunch Menu | E9: K-5 Breakfast Menu | G9: You will need to complete | H9: =COUNTIF(A9:A12,TRUE) -> 0 | I9: lunch menu(s).
A10: FALSE | B10: K-8 Lunch Menu | E10: K-8 Breakfast Menu | G10: You will need to complete | H10: =COUNTIF(A14:A21,TRUE) -> 0 | I10: breakfast menu(s).
A11: FALSE | B11: 6-8 Lunch Menu | E11: K-12 Breakfast Menu | G11: You will need to complete | H11: =COUNTIF(A22:A24,TRUE) -> 0 | I11: fruit & vegetable bar(s).
A12: FALSE | B12: 9-12 Lunch Menu | E12: 6-8 Breakfast Menu
E13: 6-12 Breakfast Menu
A14: FALSE | B14: Fruit & Veg Bar K-5 | E14: 9-12 Breakfast Menu
A15: FALSE | B15: Fruit & Veg Bar 6-8
A16: FALSE | B16: Fruit & Veg Bar 9-12
A17: FALSE | B17: Required Documentation for the One Week Selected as the Reference Period:
A18: FALSE | B18: 1. Breakfast menu and recipes for all grade levels
A19: FALSE | B19: 2. Lunch menu and recipes for all grade levels
B20: 3. Fruit Vegetable Bar production records for 2 days of the 5 day reference period for each grade group.
A21: FALSE | B21: 4. Food and milk invoices and/or receipts relating to the breakfast and lunch menu items
A22: FALSE | B22: 5. Adult meal prices for breakfast and lunch
A23: FALSE | B23: 6. Paid student meal prices for breakfast and lunch; (Reduced-Price is pre-populated for WA State Co-Pay).
A24: FALSE | B24: 7. Breakfast and lunch reimbursement claim rates
B25: 8. Breakfast and lunch participation totals and food sale records for the week by day
B26: 9. Other food sales/revenue for the week, such as catering or ordering for other departments
B27: Steps to complete:
B29: 1. Lunch Recipe Calculator: If you do not know the cost per entrée item there are two options: enter the recipe into the recipe calculator. These recipes will be available as a pull down selection on the lunch menu tabs OR you can use the Cost Per Serving Tab and enter the costs of food items by case to determine total entree costs (can be used for breakfast and lunch or fruits and vegetables). These will not be available as pull-downs on the menu tabs,and will be hand entered. **Pro Tip: for items such as hamburgers or cheeseburgers use the Cost Per Serving; for more complicated recipes use the Recipe Calculator. Spices do not need to be included in the recipe(s).
B30: 2. Fruit & Veg Bar Tab: If the schools utilize fruit & vegetable or salad bar, complete these; all three grade groupings are on the single tab. Similar to the recipes, complete one Fruit Vegetable Bar Recipe card using 2 days of offerings for each grade group; these will be added to the lunch menu in the vegetable section. Be sure to include salad dressings, croutons, or extras offered on the salad bar. For the number of servings use the total planned servings for both days at all sites per grade grouping.
B31: 3. Lunch Menu Tab(s) and fill in the applicable green fields; the milk prices and reimbursement rates will pre-populate throughout the workbook, and need only be entered once. Don't forget to add in your a la carte sales for each item. In the section for sides, include only sides that are offered regardless of entree choice, and/or vegetables or fruits that are sold ala cart (example: French Fries, Breadsticks). Be sure to also include any extras that may not be a part of the reimbursable meal, but provided - such as cookies, jalepeno's, sour cream, salsa. Add additional lunch menus as needed. At the end of each lunch menu is a link to open another lunch or breakfast tab or right click on the tabs, click unhide and select the type of menu needed.
B33: 4. Breakfast Recipe Calculator: for breakfast entrees that are not costed out, enter the recipes into the recipe calculator as with the lunch, they will be available in the pull down section of the daily menus.
B34: 5. Breakfast Menu Tab(s): fill in the applicable green fields as with the Lunch Menu(s) and add additional menus as needed when you complete the first tab; the reimbursement rates only need to be entered once; the milk prices will pull forward from the Lunch Menu.
B35: 6. A La Carte tab: Add any additional a la carte items here (chips, juice, cookies etc.); price per unit or case and selling price; it will auto generate the costs and revenue for the week.
B36: 7. Compliance Tab: Once all applicable tabs are completed, head to the compliance tab to view the auto-calculated results!
B37: 8. Supporting Invoices Tab: Add supporting cost calculations for entrees and invoices to support food purchased throughout the week and the
B38: 9. POS Sales Reports Tab: Add POS sales reports to support the total meals served/claimed; adult meals, ala cart items, second entrees catering/vended meals; use cut/copy of pdf documents or screen shots.
B39: 10. Revenue Reports Tab: Add Revenue Reports using cut/paste of pdf documents (include journal vouchers or deposits for catering or vending as applicable).
B40: Optional: at the end of the workbook is an ala cart non-program foods pricing calculator for use in determining prices of ala cart items not sold in the school meal program.
B41: Begin Here:
C43: Lunch Recipe Calculator
C44: Cost Per Serving Calculator
C45: Fruit and Veg Bar
C47: Lunch Menu
C49: Breakfast Menu
C51: A La Carte
C53: Check Compliance!
B54: Add Supporting Documentation:
C55: Show Entrée Cost Per Serving Calculations
C57: Invoices for Week of Review
C59: Sales Reports for the Week of Review for all sites
C61: Revenue Reports and Deposits

Sheet Lunch Recipe Calculator
A1: Lunch Recipe Calculator
A2: Sponsor Name: | B2: =IF('Instructions (START HERE)'!C2="","",'Instructions (START HERE)'!C2) -> 
A4: Recipe Name: | E4: Recipe Yield:
B6: Ingredient(s): | C6: Purchase Unit (lb, box, canister) | D6: Number of Items per Purchase Unit (e.g. 6 cans in a case) | E6: Purchase Unit Cost | F6: Number of Items Used in Recipe (e.g. 2 cans) | G6: Cost per Portion
A7: Example | B7: Cheese | C7: lb | D7: 40 | E7: 41.18 | F7: 3.5 | G7: =IFERROR(IF(F7=0,0,E7/D7*F7),0) -> 3.60325
E8: 0 | G8: =IFERROR(IF(F8=0,0,E8/D8*F8),0) -> 0
A9: Begin by entering the recipe name and number of servings (yeild) To calculate the cost of a recipe: 1. List ingredient(s) 2. Enter the purchase unit 3. Enter the number of bags, or cans that come in each purchase unit 4. Cost of the purchase unit 5. Enter the amount of unit items that will be used | E9: 0 | G9: 0
E10: 0 | G10: =IFERROR(IF(F10=0,0,E10/D10*F10),0) -> 0
E11: 0 | G11: 0
E12: 0 | G12: 0
E13: 0 | G13: 0
E14: 0 | G14: 0
E15: 0 | G15: 0
E16: 0 | G16: 0
E17: 0 | G17: 0
E18: 0 | G18: 0
E19: 0 | G19: 0
E20: 0 | G20: 0
E21: 0 | G21: 0
E22: 0 | G22: 0
E23: 0 | G23: 0
E24: 0 | G24: 0
E25: 0 | G25: 0
F26: Total Entrée Cost: | G26: =IFERROR(SUM(G8:G25),0) -> 0
F27: Cost per Serving: | G27: =IFERROR(ROUND(G26/F4,2),0) -> 0
A30: Recipe Name: | E30: Recipe Yield:
B32: Ingredient(s): | C32: Purchase Unit (lb, box, canister) | D32: Number of Items per Purchase Unit (e.g. 6 cans in a case) | E32: Purchase Unit Cost | F32: Number of Items Used in Recipe (e.g. 2 cans) | G32: Cost per Portion
E33: 0 | G33: =IFERROR(IF(F33=0,0,E33/D33*F33),0) -> 0
E34: 0 | G34: =IFERROR(IF(F34=0,0,E34/D34*F34),0) -> 0
E35: 0 | G35: 0
E36: 0 | G36: =IFERROR(IF(F36=0,0,E36/D36*F36),0) -> 0
E37: 0 | G37: 0
E38: 0 | G38: 0
E39: 0 | G39: 0
E40: 0 | G40: 0
E41: 0 | G41: 0
E42: 0 | G42: 0
E43: 0 | G43: 0
E44: 0 | G44: 0
E45: 0 | G45: 0
E46: 0 | G46: 0
E47: 0 | G47: 0
E48: 0 | G48: 0
E49: 0 | G49: 0
E50: 0 | G50: 0
F51: Total Entrée Cost: | G51: =SUM(G33:G50) -> 0
F52: Cost per Serving: | G52: =IFERROR(ROUND(G51/F30,2),0) -> 0
A55: Recipe Name: | E55: Recipe Yield:
B57: Ingredient(s): | C57: Purchase Unit (lb, box, canister) | D57: Number of Items per Purchase Unit (e.g. 6 cans in a case) | E57: Purchase Unit Cost | F57: Number of Items Used in Recipe (e.g. 2 cans) | G57: Cost per Portion
E58: 0 | G58: =IFERROR(IF(F58=0,0,E58/D58*F58),0) -> 0
E59: 0 | G59: =IFERROR(IF(F59=0,0,E59/D59*F59),0) -> 0
E60: 0 | G60: 0
E61: 0 | G61: 0
E62: 0 | G62: 0
E63: 0 | G63: =IFERROR(IF(F63=0,0,E63/D63*F63),0) -> 0
E64: 0 | G64: 0
E65: 0 | G65: 0
E66: 0 | G66: 0
E67: 0 | G67: 0
E68: 0 | G68: 0
E69: 0 | G69: 0
E70: 0 | G70: 0
E71: 0 | G71: 0
E72: 0 | G72: 0
E73: 0 | G73: 0
E74: 0 | G74: 0
E75: 0 | G75: 0
F76: Total Entrée Cost: | G76: =SUM(G58:G75) -> 0
F77: Cost per Serving: | G77: =IFERROR(ROUND(G76/F55,2),0) -> 0
A80: Recipe Name: | E80: Recipe Yield:
B82: Ingredient(s): | C82: Purchase Unit (lb, box, canister) | D82: Number of Items per Purchase Unit (e.g. 6 cans in a case) | E82: Purchase Unit Cost | F82: Number of Items Used in Recipe (e.g. 2 cans) | G82: Cost per Portion
E83: 0 | G83: =IFERROR(IF(F83=0,0,E83/D83*F83),0) -> 0
E84: 0 | G84: =IFERROR(IF(F84=0,0,E84/D84*F84),0) -> 0
E85: 0 | G85: =IFERROR(IF(F85=0,0,E85/D85*F85),0) -> 0
E86: 0 | G86: 0
E87: 0 | G87: 0
E88: 0 | G88: 0
E89: 0 | G89: 0
E90: 0 | G90: 0
E91: 0 | G91: 0
E92: 0 | G92: 0
E93: 0 | G93: 0
E94: 0 | G94: 0
E95: 0 | G95: 0
E96: 0 | G96: 0
E97: 0 | G97: 0
E98: 0 | G98: 0
E99: 0 | G99: 0
E100: 0 | G100: 0
F101: Total Entrée Cost: | G101: =SUM(G83:G100) -> 0
F102: Cost per Serving: | G102: =IFERROR(ROUND(G101/F80,2),0) -> 0
A105: Recipe Name: | E105: Recipe Yield:
B107: Ingredient(s): | C107: Purchase Unit (lb, box, canister) | D107: Number of Items per Purchase Unit (e.g. 6 cans in a case) | E107: Purchase Unit Cost | F107: Number of Items Used in Recipe (e.g. 2 cans) | G107: Cost per Portion
E108: 0 | G108: =IFERROR(IF(F108=0,0,E108/D108*F108),0) -> 0
E109: 0 | G109: =IFERROR(IF(F109=0,0,E109/D109*F109),0) -> 0
E110: 0 | G110: 0
E111: 0 | G111: =IFERROR(IF(F111=0,0,E111/D111*F111),0) -> 0
E112: 0 | G112: 0
E113: 0 | G113: 0
E114: 0 | G114: 0
E115: 0 | G115: 0
E116: 0 | G116: 0
E117: 0 | G117: 0
E118: 0 | G118: 0
E119: 0 | G119: 0
E120: 0 | G120: 0
E121: 0 | G121: 0
E122: 0 | G122: 0
E123: 0 | G123: 0
E124: 0 | G124: 0
E125: 0 | G125: 0
F126: Total Entrée Cost: | G126: =SUM(G108:G125) -> 0
F127: Cost per Serving: | G127: =IFERROR(ROUND(G126/F105,2),0) -> 0
A130: Recipe Name: | E130: Recipe Yield:
B132: Ingredient(s): | C132: Purchase Unit (lb, box, canister) | D132: Number of Items per Purchase Unit (e.g. 6 cans in a case) | E132: Purchase Unit Cost | F132: Number of Items Used in Recipe (e.g. 2 cans) | G132: Cost per Portion
E133: 0 | G133: =IFERROR(IF(F133=0,0,E133/D133*F133),0) -> 0
E134: 0 | G134: =IFERROR(IF(F134=0,0,E134/D134*F134),0) -> 0
E135: 0 | G135: 0
E136: 0 | G136: 0
E137: 0 | G137: 0
E138: 0 | G138: 0
E139: 0 | G139: =IFERROR(IF(F139=0,0,E139/D139*F139),0) -> 0
E140: 0 | G140: 0
E141: 0 | G141: 0
E142: 0 | G142: 0
E143: 0 | G143: 0
E144: 0 | G144: 0
E145: 0 | G145: 0
E146: 0 | G146: 0
E147: 0 | G147: 0
E148: 0 | G148: 0
E149: 0 | G149: 0
E150: 0 | G150: 0
F151: Total Entrée Cost: | G151: =SUM(G133:G150) -> 0
F152: Cost per Serving: | G152: =IFERROR(ROUND(G151/F130,2),0) -> 0
A155: Recipe Name: | E155: Recipe Yield:
B157: Ingredient(s): | C157: Purchase Unit (lb, box, canister) | D157: Number of Items per Purchase Unit (e.g. 6 cans in a case) | E157: Purchase Unit Cost | F157: Number of Items Used in Recipe (e.g. 2 cans) | G157: Cost per Portion
E158: 0 | G158: =IFERROR(IF(F158=0,0,E158/D158*F158),0) -> 0
E159: 0 | G159: =IFERROR(IF(F159=0,0,E159/D159*F159),0) -> 0
E160: 0 | G160: 0
E161: 0 | G161: 0
E162: 0 | G162: 0
E163: 0 | G163: 0
E164: 0 | G164: 0
E165: 0 | G165: 0
E166: 0 | G166: 0
E167: 0 | G167: 0
E168: 0 | G168: 0
E169: 0 | G169: 0
E170: 0 | G170: 0
E171: 0 | G171: 0
E172: 0 | G172: 0
E173: 0 | G173: 0
E174: 0 | G174: 0
E175: 0 | G175: 0
F176: Total Entrée Cost: | G176: =SUM(G158:G175) -> 0
F177: Cost per Serving: | G177: =IFERROR(ROUND(G176/F155,2),0) -> 0
A180: Recipe Name: | E180: Recipe Yield:
B182: Ingredient(s): | C182: Purchase Unit (lb, box, canister) | D182: Number of Items per Purchase Unit (e.g. 6 cans in a case) | E182: Purchase Unit Cost | F182: Number of Items Used in Recipe (e.g. 2 cans) | G182: Cost per Portion
E183: 0 | G183: =IFERROR(IF(F183=0,0,E183/D183*F183),0) -> 0
E184: 0 | G184: =IFERROR(IF(F184=0,0,E184/D184*F184),0) -> 0
E185: 0 | G185: =IFERROR(IF(F185=0,0,E185/D185*F185),0) -> 0
E186: 0 | G186: 0
E187: 0 | G187: 0
E188: 0 | G188: 0
E189: 0 | G189: 0
E190: 0 | G190: 0
E191: 0 | G191: 0
E192: 0 | G192: 0
E193: 0 | G193: 0
E194: 0 | G194: 0
E195: 0 | G195: 0
E196: 0 | G196: 0
E197: 0 | G197: 0
E198: 0 | G198: 0
E199: 0 | G199: 0
E200: 0 | G200: 0
F201: Total Entrée Cost: | G201: =SUM(G183:G200) -> 0
F202: Cost per Serving: | G202: =IFERROR(ROUND(G201/F180,2),0) -> 0
A204: Recipe Name: | E204: Recipe Yield:
B206: Ingredient(s): | C206: Purchase Unit (lb, box, canister) | D206: Number of Items per Purchase Unit (e.g. 6 cans in a case) | E206: Purchase Unit Cost | F206: Number of Items Used in Recipe (e.g. 2 cans) | G206: Cost per Portion
E207: 0 | G207: =IFERROR(IF(F207=0,0,E207/D207*F207),0) -> 0
E208: 0 | G208: =IFERROR(IF(F208=0,0,E208/D208*F208),0) -> 0
E209: 0 | G209: 0
E210: 0 | G210: 0
E211: 0 | G211: 0
E212: 0 | G212: 0
E213: 0 | G213: 0
E214: 0 | G214: =IFERROR(IF(F214=0,0,E214/D214*F214),0) -> 0
E215: 0 | G215: 0
E216: 0 | G216: 0
E217: 0 | G217: 0
E218: 0 | G218: 0
E219: 0 | G219: 0
E220: 0 | G220: 0
E221: 0 | G221: 0
E222: 0 | G222: 0
E223: 0 | G223: 0
E224: 0 | G224: 0
F225: Total Entrée Cost: | G225: =IFERROR(SUM(G207:G224),0) -> 0
... 172 more rows

Sheet CostPerServing
A1: Cost per Serving Calculation
A2: Item | B2: Purchase Unit | C2: Purchase Price | D2: Number of Servings per Purchase Unit | E2: Cost per Serving
A3: Example: Hamburger Patties | B3: Case | C3: 220.77 | D3: 291 | E3: =C3/D3 -> 0.7586597938
E4: =Table2[[#This Row],[Purchase Price]]/Table2[[#This Row],[Number of Servings per Purchase Unit]] -> 
E5: =Table2[[#This Row],[Purchase Price]]/Table2[[#This Row],[Number of Servings per Purchase Unit]] -> 
E6: =Table2[[#This Row],[Purchase Price]]/Table2[[#This Row],[Number of Servings per Purchase Unit]] -> 
E7: =Table2[[#This Row],[Purchase Price]]/Table2[[#This Row],[Number of Servings per Purchase Unit]] -> 
E8: =Table2[[#This Row],[Purchase Price]]/Table2[[#This Row],[Number of Servings per Purchase Unit]] -> 
E9: =Table2[[#This Row],[Purchase Price]]/Table2[[#This Row],[Number of Servings per Purchase Unit]] -> 
E10: =Table2[[#This Row],[Purchase Price]]/Table2[[#This Row],[Number of Servings per Purchase Unit]] -> 
E11: =Table2[[#This Row],[Purchase Price]]/Table2[[#This Row],[Number of Servings per Purchase Unit]] -> 
E12: =Table2[[#This Row],[Purchase Price]]/Table2[[#This Row],[Number of Servings per Purchase Unit]] -> 
E13: =Table2[[#This Row],[Purchase Price]]/Table2[[#This Row],[Number of Servings per Purchase Unit]] -> 
E14: =Table2[[#This Row],[Purchase Price]]/Table2[[#This Row],[Number of Servings per Purchase Unit]] -> 
E15: =Table2[[#This Row],[Purchase Price]]/Table2[[#This Row],[Number of Servings per Purchase Unit]] -> 
E16: =Table2[[#This Row],[Purchase Price]]/Table2[[#This Row],[Number of Servings per Purchase Unit]] -> 
E17: =Table2[[#This Row],[Purchase Price]]/Table2[[#This Row],[Number of Servings per Purchase Unit]] -> 
E18: =Table2[[#This Row],[Purchase Price]]/Table2[[#This Row],[Number of Servings per Purchase Unit]] -> 
E19: =Table2[[#This Row],[Purchase Price]]/Table2[[#This Row],[Number of Servings per Purchase Unit]] -> 
E20: =Table2[[#This Row],[Purchase Price]]/Table2[[#This Row],[Number of Servings per Purchase Unit]] -> 
E21: =Table2[[#This Row],[Purchase Price]]/Table2[[#This Row],[Number of Servings per Purchase Unit]] -> 
E22: =Table2[[#This Row],[Purchase Price]]/Table2[[#This Row],[Number of Servings per Purchase Unit]] -> 
E23: =Table2[[#This Row],[Purchase Price]]/Table2[[#This Row],[Number of Servings per Purchase Unit]] -> 
E24: =Table2[[#This Row],[Purchase Price]]/Table2[[#This Row],[Number of Servings per Purchase Unit]] -> 
E25: =Table2[[#This Row],[Purchase Price]]/Table2[[#This Row],[Number of Servings per Purchase Unit]] -> 
E26: =Table2[[#This Row],[Purchase Price]]/Table2[[#This Row],[Number of Servings per Purchase Unit]] -> 
E27: =Table2[[#This Row],[Purchase Price]]/Table2[[#This Row],[Number of Servings per Purchase Unit]] -> 
E28: =Table2[[#This Row],[Purchase Price]]/Table2[[#This Row],[Number of Servings per Purchase Unit]] -> 
E29: =Table2[[#This Row],[Purchase Price]]/Table2[[#This Row],[Number of Servings per Purchase Unit]] -> 
E30: =Table2[[#This Row],[Purchase Price]]/Table2[[#This Row],[Number of Servings per Purchase Unit]] -> 
E31: =Table2[[#This Row],[Purchase Price]]/Table2[[#This Row],[Number of Servings per Purchase Unit]] -> 
E32: =Table2[[#This Row],[Purchase Price]]/Table2[[#This Row],[Number of Servings per Purchase Unit]] -> 
E33: =Table2[[#This Row],[Purchase Price]]/Table2[[#This Row],[Number of Servings per Purchase Unit]] -> 
E34: =Table2[[#This Row],[Purchase Price]]/Table2[[#This Row],[Number of Servings per Purchase Unit]] -> 
E35: =Table2[[#This Row],[Purchase Price]]/Table2[[#This Row],[Number of Servings per Purchase Unit]] -> 
E36: =Table2[[#This Row],[Purchase Price]]/Table2[[#This Row],[Number of Servings per Purchase Unit]] -> 
E37: =Table2[[#This Row],[Purchase Price]]/Table2[[#This Row],[Number of Servings per Purchase Unit]] -> 
E38: =Table2[[#This Row],[Purchase Price]]/Table2[[#This Row],[Number of Servings per Purchase Unit]] -> 
E39: =Table2[[#This Row],[Purchase Price]]/Table2[[#This Row],[Number of Servings per Purchase Unit]] -> 
E40: =Table2[[#This Row],[Purchase Price]]/Table2[[#This Row],[Number of Servings per Purchase Unit]] -> 
E41: =Table2[[#This Row],[Purchase Price]]/Table2[[#This Row],[Number of Servings per Purchase Unit]] -> 
E42: =Table2[[#This Row],[Purchase Price]]/Table2[[#This Row],[Number of Servings per Purchase Unit]] -> 
E43: =Table2[[#This Row],[Purchase Price]]/Table2[[#This Row],[Number of Servings per Purchase Unit]] -> 
E44: =Table2[[#This Row],[Purchase Price]]/Table2[[#This Row],[Number of Servings per Purchase Unit]] -> 
E45: =Table2[[#This Row],[Purchase Price]]/Table2[[#This Row],[Number of Servings per Purchase Unit]] -> 
E46: =Table2[[#This Row],[Purchase Price]]/Table2[[#This Row],[Number of Servings per Purchase Unit]] -> 
E47: =Table2[[#This Row],[Purchase Price]]/Table2[[#This Row],[Number of Servings per Purchase Unit]] -> 
E48: =Table2[[#This Row],[Purchase Price]]/Table2[[#This Row],[Number of Servings per Purchase Unit]] -> 
E49: =Table2[[#This Row],[Purchase Price]]/Table2[[#This Row],[Number of Servings per Purchase Unit]] -> 
E50: =Table2[[#This Row],[Purchase Price]]/Table2[[#This Row],[Number of Servings per Purchase Unit]] -> 
E51: =Table2[[#This Row],[Purchase Price]]/Table2[[#This Row],[Number of Servings per Purchase Unit]] -> 
E52: =Table2[[#This Row],[Purchase Price]]/Table2[[#This Row],[Number of Servings per Purchase Unit]] -> 
E53: =Table2[[#This Row],[Purchase Price]]/Table2[[#This Row],[Number of Servings per Purchase Unit]] -> 
E54: =Table2[[#This Row],[Purchase Price]]/Table2[[#This Row],[Number of Servings per Purchase Unit]] -> 
E55: =Table2[[#This Row],[Purchase Price]]/Table2[[#This Row],[Number of Servings per Purchase Unit]] -> 
E56: =Table2[[#This Row],[Purchase Price]]/Table2[[#This Row],[Number of Servings per Purchase Unit]] -> 
E57: =Table2[[#This Row],[Purchase Price]]/Table2[[#This Row],[Number of Servings per Purchase Unit]] -> 
E58: =Table2[[#This Row],[Purchase Price]]/Table2[[#This Row],[Number of Servings per Purchase Unit]] -> 
E59: =Table2[[#This Row],[Purchase Price]]/Table2[[#This Row],[Number of Servings per Purchase Unit]] -> 
E60: =Table2[[#This Row],[Purchase Price]]/Table2[[#This Row],[Number of Servings per Purchase Unit]] -> 
E61: =Table2[[#This Row],[Purchase Price]]/Table2[[#This Row],[Number of Servings per Purchase Unit]] -> 
E62: =Table2[[#This Row],[Purchase Price]]/Table2[[#This Row],[Number of Servings per Purchase Unit]] -> 
E63: =Table2[[#This Row],[Purchase Price]]/Table2[[#This Row],[Number of Servings per Purchase Unit]] -> 
E64: =Table2[[#This Row],[Purchase Price]]/Table2[[#This Row],[Number of Servings per Purchase Unit]] -> 
E65: =Table2[[#This Row],[Purchase Price]]/Table2[[#This Row],[Number of Servings per Purchase Unit]] -> 
E66: =Table2[[#This Row],[Purchase Price]]/Table2[[#This Row],[Number of Servings per Purchase Unit]] -> 
E67: =Table2[[#This Row],[Purchase Price]]/Table2[[#This Row],[Number of Servings per Purchase Unit]] -> 
E68: =Table2[[#This Row],[Purchase Price]]/Table2[[#This Row],[Number of Servings per Purchase Unit]] -> 
E69: =Table2[[#This Row],[Purchase Price]]/Table2[[#This Row],[Number of Servings per Purchase Unit]] -> 
E70: =Table2[[#This Row],[Purchase Price]]/Table2[[#This Row],[Number of Servings per Purchase Unit]] -> 
E71: =Table2[[#This Row],[Purchase Price]]/Table2[[#This Row],[Number of Servings per Purchase Unit]] -> 
E72: =Table2[[#This Row],[Purchase Price]]/Table2[[#This Row],[Number of Servings per Purchase Unit]] -> 
E73: =Table2[[#This Row],[Purchase Price]]/Table2[[#This Row],[Number of Servings per Purchase Unit]] -> 
E74: =Table2[[#This Row],[Purchase Price]]/Table2[[#This Row],[Number of Servings per Purchase Unit]] -> 
E75: =Table2[[#This Row],[Purchase Price]]/Table2[[#This Row],[Number of Servings per Purchase Unit]] -> 
E76: =Table2[[#This Row],[Purchase Price]]/Table2[[#This Row],[Number of Servings per Purchase Unit]] -> 
E77: =Table2[[#This Row],[Purchase Price]]/Table2[[#This Row],[Number of Servings per Purchase Unit]] -> 
E78: =Table2[[#This Row],[Purchase Price]]/Table2[[#This Row],[Number of Servings per Purchase Unit]] -> 
E79: =Table2[[#This Row],[Purchase Price]]/Table2[[#This Row],[Number of Servings per Purchase Unit]] -> 
E80: =Table2[[#This Row],[Purchase Price]]/Table2[[#This Row],[Number of Servings per Purchase Unit]] -> 
E81: =Table2[[#This Row],[Purchase Price]]/Table2[[#This Row],[Number of Servings per Purchase Unit]] -> 
E82: =Table2[[#This Row],[Purchase Price]]/Table2[[#This Row],[Number of Servings per Purchase Unit]] -> 
E83: =Table2[[#This Row],[Purchase Price]]/Table2[[#This Row],[Number of Servings per Purchase Unit]] -> 
E84: =Table2[[#This Row],[Purchase Price]]/Table2[[#This Row],[Number of Servings per Purchase Unit]] -> 
E85: =Table2[[#This Row],[Purchase Price]]/Table2[[#This Row],[Number of Servings per Purchase Unit]] -> 
E86: =Table2[[#This Row],[Purchase Price]]/Table2[[#This Row],[Number of Servings per Purchase Unit]] -> 
E87: =Table2[[#This Row],[Purchase Price]]/Table2[[#This Row],[Number of Servings per Purchase Unit]] -> 
E88: =Table2[[#This Row],[Purchase Price]]/Table2[[#This Row],[Number of Servings per Purchase Unit]] -> 
E89: =Table2[[#This Row],[Purchase Price]]/Table2[[#This Row],[Number of Servings per Purchase Unit]] -> 
E90: =Table2[[#This Row],[Purchase Price]]/Table2[[#This Row],[Number of Servings per Purchase Unit]] -> 
E91: =Table2[[#This Row],[Purchase Price]]/Table2[[#This Row],[Number of Servings per Purchase Unit]] -> 
E92: =Table2[[#This Row],[Purchase Price]]/Table2[[#This Row],[Number of Servings per Purchase Unit]] -> 
E93: =Table2[[#This Row],[Purchase Price]]/Table2[[#This Row],[Number of Servings per Purchase Unit]] -> 
E94: =Table2[[#This Row],[Purchase Price]]/Table2[[#This Row],[Number of Servings per Purchase Unit]] -> 
E95: =Table2[[#This Row],[Purchase Price]]/Table2[[#This Row],[Number of Servings per Purchase Unit]] -> 
E96: =Table2[[#This Row],[Purchase Price]]/Table2[[#This Row],[Number of Servings per Purchase Unit]] -> 
E97: =Table2[[#This Row],[Purchase Price]]/Table2[[#This Row],[Number of Servings per Purchase Unit]] -> 
E98: =Table2[[#This Row],[Purchase Price]]/Table2[[#This Row],[Number of Servings per Purchase Unit]] -> 
E99: =Table2[[#This Row],[Purchase Price]]/Table2[[#This Row],[Number of Servings per Purchase Unit]] -> 
E100: =Table2[[#This Row],[Purchase Price]]/Table2[[#This Row],[Number of Servings per Purchase Unit]] -> 
E101: =Table2[[#This Row],[Purchase Price]]/Table2[[#This Row],[Number of Servings per Purchase Unit]] -> 
E102: =Table2[[#This Row],[Purchase Price]]/Table2[[#This Row],[Number of Servings per Purchase Unit]] -> 
E103: =Table2[[#This Row],[Purchase Price]]/Table2[[#This Row],[Number of Servings per Purchase Unit]] -> 
E104: =Table2[[#This Row],[Purchase Price]]/Table2[[#This Row],[Number of Servings per Purchase Unit]] -> 
E105: =Table2[[#This Row],[Purchase Price]]/Table2[[#This Row],[Number of Servings per Purchase Unit]] -> 
E106: =Table2[[#This Row],[Purchase Price]]/Table2[[#This Row],[Number of Servings per Purchase Unit]] -> 
E107: =Table2[[#This Row],[Purchase Price]]/Table2[[#This Row],[Number of Servings per Purchase Unit]] -> 
E108: =Table2[[#This Row],[Purchase Price]]/Table2[[#This Row],[Number of Servings per Purchase Unit]] -> 
E109: =Table2[[#This Row],[Purchase Price]]/Table2[[#This Row],[Number of Servings per Purchase Unit]] -> 
E110: =Table2[[#This Row],[Purchase Price]]/Table2[[#This Row],[Number of Servings per Purchase Unit]] -> 
E111: =Table2[[#This Row],[Purchase Price]]/Table2[[#This Row],[Number of Servings per Purchase Unit]] -> 
E112: =Table2[[#This Row],[Purchase Price]]/Table2[[#This Row],[Number of Servings per Purchase Unit]] -> 
E113: =Table2[[#This Row],[Purchase Price]]/Table2[[#This Row],[Number of Servings per Purchase Unit]] -> 
E114: =Table2[[#This Row],[Purchase Price]]/Table2[[#This Row],[Number of Servings per Purchase Unit]] -> 
E115: =Table2[[#This Row],[Purchase Price]]/Table2[[#This Row],[Number of Servings per Purchase Unit]] -> 
E116: =Table2[[#This Row],[Purchase Price]]/Table2[[#This Row],[Number of Servings per Purchase Unit]] -> 
E117: =Table2[[#This Row],[Purchase Price]]/Table2[[#This Row],[Number of Servings per Purchase Unit]] -> 
E118: =Table2[[#This Row],[Purchase Price]]/Table2[[#This Row],[Number of Servings per Purchase Unit]] -> 
E119: =Table2[[#This Row],[Purchase Price]]/Table2[[#This Row],[Number of Servings per Purchase Unit]] -> 
E120: =Table2[[#This Row],[Purchase Price]]/Table2[[#This Row],[Number of Servings per Purchase Unit]] -> 
E121: =Table2[[#This Row],[Purchase Price]]/Table2[[#This Row],[Number of Servings per Purchase Unit]] -> 
E122: =Table2[[#This Row],[Purchase Price]]/Table2[[#This Row],[Number of Servings per Purchase Unit]] -> 
E123: =Table2[[#This Row],[Purchase Price]]/Table2[[#This Row],[Number of Servings per Purchase Unit]] -> 
E124: =Table2[[#This Row],[Purchase Price]]/Table2[[#This Row],[Number of Servings per Purchase Unit]] -> 
E125: =Table2[[#This Row],[Purchase Price]]/Table2[[#This Row],[Number of Servings per Purchase Unit]] -> 
E126: =Table2[[#This Row],[Purchase Price]]/Table2[[#This Row],[Number of Servings per Purchase Unit]] -> 
E127: =Table2[[#This Row],[Purchase Price]]/Table2[[#This Row],[Number of Servings per Purchase Unit]] -> 
E128: =Table2[[#This Row],[Purchase Price]]/Table2[[#This Row],[Number of Servings per Purchase Unit]] -> 
E129: =Table2[[#This Row],[Purchase Price]]/Table2[[#This Row],[Number of Servings per Purchase Unit]] -> 
E130: =Table2[[#This Row],[Purchase Price]]/Table2[[#This Row],[Number of Servings per Purchase Unit]] -> 
E131: =Table2[[#This Row],[Purchase Price]]/Table2[[#This Row],[Number of Servings per Purchase Unit]] -> 
E132: =Table2[[#This Row],[Purchase Price]]/Table2[[#This Row],[Number of Servings per Purchase Unit]] -> 
E133: =Table2[[#This Row],[Purchase Price]]/Table2[[#This Row],[Number of Servings per Purchase Unit]] -> 
E134: =Table2[[#This Row],[Purchase Price]]/Table2[[#This Row],[Number of Servings per Purchase Unit]] -> 
E135: =Table2[[#This Row],[Purchase Price]]/Table2[[#This Row],[Number of Servings per Purchase Unit]] -> 
E136: =Table2[[#This Row],[Purchase Price]]/Table2[[#This Row],[Number of Servings per Purchase Unit]] -> 
E137: =Table2[[#This Row],[Purchase Price]]/Table2[[#This Row],[Number of Servings per Purchase Unit]] -> 
E138: =Table2[[#This Row],[Purchase Price]]/Table2[[#This Row],[Number of Servings per Purchase Unit]] -> 
E139: =Table2[[#This Row],[Purchase Price]]/Table2[[#This Row],[Number of Servings per Purchase Unit]] -> 
E140: =Table2[[#This Row],[Purchase Price]]/Table2[[#This Row],[Number of Servings per Purchase Unit]] -> 
E141: =Table2[[#This Row],[Purchase Price]]/Table2[[#This Row],[Number of Servings per Purchase Unit]] -> 
E142: =Table2[[#This Row],[Purchase Price]]/Table2[[#This Row],[Number of Servings per Purchase Unit]] -> 
E143: =Table2[[#This Row],[Purchase Price]]/Table2[[#This Row],[Number of Servings per Purchase Unit]] -> 
E144: =Table2[[#This Row],[Purchase Price]]/Table2[[#This Row],[Number of Servings per Purchase Unit]] -> 
E145: =Table2[[#This Row],[Purchase Price]]/Table2[[#This Row],[Number of Servings per Purchase Unit]] -> 
E146: =Table2[[#This Row],[Purchase Price]]/Table2[[#This Row],[Number of Servings per Purchase Unit]] -> 
E147: =Table2[[#This Row],[Purchase Price]]/Table2[[#This Row],[Number of Servings per Purchase Unit]] -> 
E148: =Table2[[#This Row],[Purchase Price]]/Table2[[#This Row],[Number of Servings per Purchase Unit]] -> 
E149: =Table2[[#This Row],[Purchase Price]]/Table2[[#This Row],[Number of Servings per Purchase Unit]] -> 
E150: =Table2[[#This Row],[Purchase Price]]/Table2[[#This Row],[Number of Servings per Purchase Unit]] -> 
E151: =Table2[[#This Row],[Purchase Price]]/Table2[[#This Row],[Number of Servings per Purchase Unit]] -> 
E152: =Table2[[#This Row],[Purchase Price]]/Table2[[#This Row],[Number of Servings per Purchase Unit]] -> 
E153: =Table2[[#This Row],[Purchase Price]]/Table2[[#This Row],[Number of Servings per Purchase Unit]] -> 
E154: =Table2[[#This Row],[Purchase Price]]/Table2[[#This Row],[Number of Servings per Purchase Unit]] -> 
E155: =Table2[[#This Row],[Purchase Price]]/Table2[[#This Row],[Number of Servings per Purchase Unit]] -> 
E156: =Table2[[#This Row],[Purchase Price]]/Table2[[#This Row],[Number of Servings per Purchase Unit]] -> 
E157: =Table2[[#This Row],[Purchase Price]]/Table2[[#This Row],[Number of Servings per Purchase Unit]] -> 
E158: =Table2[[#This Row],[Purchase Price]]/Table2[[#This Row],[Number of Servings per Purchase Unit]] -> 
E159: =Table2[[#This Row],[Purchase Price]]/Table2[[#This Row],[Number of Servings per Purchase Unit]] -> 
E160: =Table2[[#This Row],[Purchase Price]]/Table2[[#This Row],[Number of Servings per Purchase Unit]] -> 
E161: =Table2[[#This Row],[Purchase Price]]/Table2[[#This Row],[Number of Servings per Purchase Unit]] -> 
E162: =Table2[[#This Row],[Purchase Price]]/Table2[[#This Row],[Number of Servings per Purchase Unit]] -> 
E163: =Table2[[#This Row],[Purchase Price]]/Table2[[#This Row],[Number of Servings per Purchase Unit]] -> 
E164: =Table2[[#This Row],[Purchase Price]]/Table2[[#This Row],[Number of Servings per Purchase Unit]] -> 
E165: =Table2[[#This Row],[Purchase Price]]/Table2[[#This Row],[Number of Servings per Purchase Unit]] -> 
E166: =Table2[[#This Row],[Purchase Price]]/Table2[[#This Row],[Number of Servings per Purchase Unit]] -> 
E167: =Table2[[#This Row],[Purchase Price]]/Table2[[#This Row],[Number of Servings per Purchase Unit]] -> 
E168: =Table2[[#This Row],[Purchase Price]]/Table2[[#This Row],[Number of Servings per Purchase Unit]] -> 
E169: =Table2[[#This Row],[Purchase Price]]/Table2[[#This Row],[Number of Servings per Purchase Unit]] -> 
E170: =Table2[[#This Row],[Purchase Price]]/Table2[[#This Row],[Number of Servings per Purchase Unit]] -> 
E171: =Table2[[#This Row],[Purchase Price]]/Table2[[#This Row],[Number of Servings per Purchase Unit]] -> 
E172: =Table2[[#This Row],[Purchase Price]]/Table2[[#This Row],[Number of Servings per Purchase Unit]] -> 
E173: =Table2[[#This Row],[Purchase Price]]/Table2[[#This Row],[Number of Servings per Purchase Unit]] -> 
E174: =Table2[[#This Row],[Purchase Price]]/Table2[[#This Row],[Number of Servings per Purchase Unit]] -> 
E175: =Table2[[#This Row],[Purchase Price]]/Table2[[#This Row],[Number of Servings per Purchase Unit]] -> 
E176: =Table2[[#This Row],[Purchase Price]]/Table2[[#This Row],[Number of Servings per Purchase Unit]] -> 
E177: =Table2[[#This Row],[Purchase Price]]/Table2[[#This Row],[Number of Servings per Purchase Unit]] -> 
E178: =Table2[[#This Row],[Purchase Price]]/Table2[[#This Row],[Number of Servings per Purchase Unit]] -> 
E179: =Table2[[#This Row],[Purchase Price]]/Table2[[#This Row],[Number of Servings per Purchase Unit]] -> 
E180: =Table2[[#This Row],[Purchase Price]]/Table2[[#This Row],[Number of Servings per Purchase Unit]] -> 
E181: =Table2[[#This Row],[Purchase Price]]/Table2[[#This Row],[Number of Servings per Purchase Unit]] -> 
E182: =Table2[[#This Row],[Purchase Price]]/Table2[[#This Row],[Number of Servings per Purchase Unit]] -> 
E183: =Table2[[#This Row],[Purchase Price]]/Table2[[#This Row],[Number of Servings per Purchase Unit]] -> 
E184: =Table2[[#This Row],[Purchase Price]]/Table2[[#This Row],[Number of Servings per Purchase Unit]] -> 
E185: =Table2[[#This Row],[Purchase Price]]/Table2[[#This Row],[Number of Servings per Purchase Unit]] -> 
E186: =Table2[[#This Row],[Purchase Price]]/Table2[[#This Row],[Number of Servings per Purchase Unit]] -> 
E187: =Table2[[#This Row],[Purchase Price]]/Table2[[#This Row],[Number of Servings per Purchase Unit]] -> 
E188: =Table2[[#This Row],[Purchase Price]]/Table2[[#This Row],[Number of Servings per Purchase Unit]] -> 
E189: =Table2[[#This Row],[Purchase Price]]/Table2[[#This Row],[Number of Servings per Purchase Unit]] -> 
E190: =Table2[[#This Row],[Purchase Price]]/Table2[[#This Row],[Number of Servings per Purchase Unit]] -> 
E191: =Table2[[#This Row],[Purchase Price]]/Table2[[#This Row],[Number of Servings per Purchase Unit]] -> 
E192: =Table2[[#This Row],[Purchase Price]]/Table2[[#This Row],[Number of Servings per Purchase Unit]] -> 
E193: =Table2[[#This Row],[Purchase Price]]/Table2[[#This Row],[Number of Servings per Purchase Unit]] -> 
E194: =Table2[[#This Row],[Purchase Price]]/Table2[[#This Row],[Number of Servings per Purchase Unit]] -> 
E195: =Table2[[#This Row],[Purchase Price]]/Table2[[#This Row],[Number of Servings per Purchase Unit]] -> 
E196: =Table2[[#This Row],[Purchase Price]]/Table2[[#This Row],[Number of Servings per Purchase Unit]] -> 
E197: =Table2[[#This Row],[Purchase Price]]/Table2[[#This Row],[Number of Servings per Purchase Unit]] -> 
E198: =Table2[[#This Row],[Purchase Price]]/Table2[[#This Row],[Number of Servings per Purchase Unit]] -> 
E199: =Table2[[#This Row],[Purchase Price]]/Table2[[#This Row],[Number of Servings per Purchase Unit]] -> 
E200: =Table2[[#This Row],[Purchase Price]]/Table2[[#This Row],[Number of Servings per Purchase Unit]] -> 
... 21 more rows

Sheet Fruit & Veg Bar
A1: Fruit and Vegetable Bar
A2: Sponsor Name: | B2: =IF('Instructions (START HERE)'!C2="","",'Instructions (START HERE)'!C2) -> 
A4: Salad Bar K-5 | B4: Days of the Week | C4: =G25 ->  | D4: Planned Number of Servings:
B5: Ingredient(s): | C5: Purchase Unit (lb, box, canister) | D5: Number of Items per Purchase Unit (e.g. 6 cans in a case) | E5: Purchase Unit Cost | F5: Number of Items Used in Recipe (e.g. 2 cans) | G5: Cost per Portion
A6: Example | B6: Chopped Romaine | C6: lb | D6: 6 | E6: 15.31 | F6: 8 | G6: =IFERROR(IF(F6=0,0,E6/D6*F6),0) -> 20.41333333
G7: =IFERROR(IF(F7=0,0,E7/D7*F7),0) -> 0
G8: 0
G9: 0
A10: Use two days of salad bar offerings for each grade group. The total planned number of servings reflect both days. Indicate dates in the green box next to the grade group. **include extras such as salad dressing or croutons even if they are not included as a part of the reimbursable meal. | G10: 0
G11: 0
G12: 0
G13: 0
G14: 0
G15: 0
G16: 0
G17: =IFERROR(IF(F17=0,0,E17/D17*F17),0) -> 0
G18: 0
G19: =IFERROR(IF(F19=0,0,E19/D19*F19),0) -> 0
G20: 0
G21: 0
G22: 0
G23: 0
F24: Total Entrée Cost: | G24: =SUM(G7:G23) -> 0
F25: Cost per Serving: | G25: =G24/F4 -> 
A27: Salad Bar 6-8 | B27: days of the week | C27: =G48 ->  | D27: Planned Number of Servings:
B28: Ingredient(s): | C28: Purchase Unit (lb, box, canister) | D28: Number of Items per Purchase Unit (e.g. 6 cans in a case) | E28: Purchase Unit Cost | F28: Number of Items Used in Recipe (e.g. 2 cans) | G28: Cost per Portion
A29: Example | B29: Chopped Romaine | C29: lb | D29: 6 | E29: 15.31 | F29: 8 | G29: =IFERROR(IF(F29=0,0,E29/D29*F29),0) -> 20.41333333
G30: =IFERROR(IF(F30=0,0,E30/D30*F30),0) -> 0
G31: =IFERROR(IF(F31=0,0,E31/D31*F31),0) -> 0
A32: Use two days of salad bar offerings for each grade group. The total planned number of servings reflect both days. Indicate dates in the green box next to the grade group. **include extras such as salad dressing or croutons even if they are not included as a part of the reimbursable meal. | G32: 0
G33: 0
G34: 0
G35: 0
G36: 0
G37: 0
G38: 0
G39: 0
G40: 0
G41: 0
G42: 0
G43: 0
G44: 0
G45: 0
G46: 0
F47: Total Entrée Cost: | G47: =SUM(G30:G46) -> 0
F48: Cost per Serving: | G48: =G47/F27 -> 
A50: Salad Bar 9-12 | B50: days of the week | C50: =G71 ->  | D50: Planned Number of Servings:
B51: Ingredient(s): | C51: Purchase Unit (lb, box, canister) | D51: Number of Items per Purchase Unit (e.g. 6 cans in a case) | E51: Purchase Unit Cost | F51: Number of Items Used in Recipe (e.g. 2 cans) | G51: Cost per Portion
A52: Example | B52: Chopped Romaine | C52: lb | D52: 6 | E52: 15.31 | F52: 8 | G52: =IFERROR(IF(F52=0,0,E52/D52*F52),0) -> 20.41333333
G53: =IFERROR(IF(F53=0,0,E53/D53*F53),0) -> 0
G54: =IFERROR(IF(F54=0,0,E54/D54*F54),0) -> 0
A55: Use two days of salad bar offerings for each grade group. The total planned number of servings reflect both days. Indicate dates in the green box next to the grade group. **include extras such as salad dressing or croutons even if they are not included as a part of the reimbursable meal. | G55: 0
G56: 0
G57: 0
G58: 0
G59: 0
G60: 0
G61: 0
G62: 0
G63: 0
G64: 0
G65: 0
G66: 0
G67: 0
G68: 0
G69: 0
F70: Total Entrée Cost: | G70: =SUM(G53:G69) -> 0
F71: Cost per Serving: | G71: =G70/F50 -> 

Sheet Lunch Menu
A1: Lunch Menu Costing Worksheet
A2: Select Grade Level:
A3: Sponsor Name: | B3: =IF('Instructions (START HERE)'!C2="","",'Instructions (START HERE)'!C2) -> 
A4: Week Selected for Review: | C4: Site:
A6: Average Cost of Milk Calculator
A7: Types of Milk Served: | B7: Cost per Unit: | F7: Cost | G7: Revenue | H7: # Served
A8: Non-fat Milk | B8: 0 | E8: Adult | F8: =SUM(H22:H23) -> 0 | G8: =SUM(I22:I23) -> 0
A9: Non-fat Flavored Milk | B9: 0 | E9: Student | F9: =SUM(H16:H21) -> 0 | G9: =SUM(I16:I21) -> 0
A10: 1% Milk | B10: 0 | E10: Reim. Meals | F10: =SUM(H16,H19,H20,H21) -> 0 | G10: =SUM(I16,I19:I21) -> 0 | H10: =SUM(C16:G16,C19:G21) -> 0
A11: 1% Flavored Milk | B11: 0 | E11: Total a la carte | F11: =SUM(H74,H125,H176,H227,H277) -> 0 | G11: =SUM(I74,I125,I176,I227,I277) -> 0
A12: Average Milk Cost: | B12: =IFERROR(ROUND(AVERAGEIF(B8:B11,"<>0"),2),"") ->  | E12: total adult meals sold | F12: =SUM(C22:G23) -> 0
E13: total a la carte entrée/side items sold | F13: =SUM(F28:F37,F39:F59,F62:F73,F79:F88,F90:F110,F113:F124,F130:F139,F152:F161,F164:F175,F181:F190,F192:F212,F215:F226,F232:F241,F243:F262,F265:F276) -> 0
A14: Program Food Revenue
A15: Reimbursement Rates + 8 Cents | C15: Monday Meal Counts | D15: Tuesday Meal Counts | E15: Wednesday Meal Counts | F15: Thursday Meal Counts | G15: Friday Meal Counts | H15: cost | I15: revenue
A16: Free | H16: =(C16*$G$74)+(D16*$G$125)+(E16*$G$176)+(F16*$G$227)+(G16*$G$277) -> 0 | I16: =SUM(C16:G16)*B16 -> 0
A17: Reduced
A18: Paid
A19: Paid Student Price 1 | B19: 0 | H19: =(C19*$G$74)+(D19*$G$125)+(E19*$G$176)+(F19*$G$227)+(G19*$G$277) -> 0 | I19: =(SUM(C19:G19)*B19)+(SUM(C19:G19)*$B$18) -> 0
A20: Paid Student Price 2 | B20: 0 | H20: =(C20*$G$74)+(D20*$G$125)+(E20*$G$176)+(F20*$G$227)+(G20*$G$277) -> 0 | I20: =(SUM(C20:G20)*B20)+(SUM(C20:G20)*$B$18) -> 0
A21: Reduced Price | B21: 0.4 | H21: =(C21*$G$74)+(D21*$G$125)+(E21*$G$176)+(F21*$G$227)+(G21*$G$277) -> 0 | I21: =(SUM(C21:G21)*B21)+(SUM(C21:G21)*$B$17) -> 0
A22: Adult Meal Price | B22: 0 | H22: =(C22*$G$74)+(D22*$G$125)+(E22*$G$176)+(F22*$G$227)+(G22*$G$277) -> 0 | I22: =SUM(C22:G22)*B22 -> 0
A23: Food Service Staff Meal Price | B23: 0 | H23: =(C23*$G$74)+(D23*$G$125)+(E23*$G$176)+(F23*$G$227)+(G23*$G$277) -> 0 | I23: =SUM(C23:G23)*B23 -> 0
A25: Monday
B26: Item | C26: Cost Per Purchase Unit OR Portion | D26: No. of Portions per Purchase Unit | E26: A La Carte Price Charged Per Portion | F26: No. of Portions Sold A La Carte | G26: Cost per Portion | H26: Total Nonprogram Food Cost | I26: Total Revenue per Item
B27: Recipes
A28: Entrée Items | C28: =IFERROR(VLOOKUP(B28,'Lunch Recipe Calculator'!$A$403:$C$414,2,FALSE),"") -> 0 | D28: 1 | G28: =IFERROR(IF(C28>0.01,C28/D28,0),0) -> 0 | H28: =G28*F28 -> 0 | I28: =IF(H28>0.01,E28*F28,0) -> 0
C29: =IFERROR(VLOOKUP(B29,'Lunch Recipe Calculator'!$A$403:$C$414,2,FALSE),"") -> 0 | D29: 1 | G29: =IFERROR(IF(C29>0.01,C29/D29,0),0) -> 0 | H29: =G29*F29 -> 0 | I29: =IF(H29>0.01,E29*F29,0) -> 0
C30: =IFERROR(VLOOKUP(B30,'Lunch Recipe Calculator'!$A$403:$C$414,2,FALSE),"") -> 0 | D30: 1 | G30: =IFERROR(IF(C30>0.01,C30/D30,0),0) -> 0 | H30: =G30*F30 -> 0 | I30: =IF(H30>0.01,E30*F30,0) -> 0
C31: =IFERROR(VLOOKUP(B31,'Lunch Recipe Calculator'!$A$403:$C$414,2,FALSE),"") -> 0 | D31: 1 | G31: 0 | H31: 0 | I31: 0
C32: =IFERROR(VLOOKUP(B32,'Lunch Recipe Calculator'!$A$403:$C$414,2,FALSE),"") -> 0 | D32: 1 | G32: 0 | H32: 0 | I32: 0
C33: =IFERROR(VLOOKUP(B33,'Lunch Recipe Calculator'!$A$403:$C$414,2,FALSE),"") -> 0 | D33: 1 | G33: 0 | H33: 0 | I33: 0
C34: =IFERROR(VLOOKUP(B34,'Lunch Recipe Calculator'!$A$403:$C$414,2,FALSE),"") -> 0 | D34: 1 | G34: 0 | H34: 0 | I34: 0
C35: =IFERROR(VLOOKUP(B35,'Lunch Recipe Calculator'!$A$403:$C$414,2,FALSE),"") -> 0 | D35: 1 | G35: 0 | H35: 0 | I35: 0
C36: =IFERROR(VLOOKUP(B36,'Lunch Recipe Calculator'!$A$403:$C$414,2,FALSE),"") -> 0 | D36: 1 | G36: 0 | H36: 0 | I36: 0
C37: =IFERROR(VLOOKUP(B37,'Lunch Recipe Calculator'!$A$403:$C$414,2,FALSE),"") -> 0 | D37: 1 | G37: 0 | H37: 0 | I37: 0
B38: Pre-Calculated and/or Pre-Packaged Entrees
C39: 0 | D39: - | G39: =IFERROR(IF(C39>0.01,C39/D39,0),0) -> 0 | H39: =G39*F39 -> 0 | I39: =IF(H39>0.01,E39*F39,0) -> 0
C40: 0 | D40: =IF(ISBLANK(B40),0,1) -> 0 | G40: 0 | H40: 0 | I40: 0
C41: 0 | D41: =IF(ISBLANK(B41),0,1) -> 0 | G41: 0 | H41: 0 | I41: 0
C42: 0 | D42: =IF(ISBLANK(B42),0,1) -> 0 | G42: 0 | H42: 0 | I42: 0
C43: 0 | D43: =IF(ISBLANK(B43),0,1) -> 0 | G43: 0 | H43: 0 | I43: 0
C44: 0 | D44: 0 | G44: 0 | H44: 0 | I44: 0
C45: 0 | G45: 0 | H45: 0 | I45: 0
C46: 0 | G46: 0 | H46: 0 | I46: 0
C47: 0 | G47: 0 | H47: 0 | I47: 0
C48: 0 | G48: 0 | H48: 0 | I48: 0
C49: 0 | G49: 0 | H49: 0 | I49: 0
C50: 0 | G50: 0 | H50: 0 | I50: 0
C51: 0 | G51: 0 | H51: 0 | I51: 0
C52: 0 | G52: 0 | H52: 0 | I52: 0
C53: 0 | G53: 0 | H53: 0 | I53: 0
C54: 0 | G54: 0 | H54: 0 | I54: 0
C55: 0 | G55: 0 | H55: 0 | I55: 0
C56: 0 | G56: 0 | H56: 0 | I56: 0
C57: 0 | G57: 0 | H57: 0 | I57: 0
C58: 0 | G58: 0 | H58: 0 | I58: 0
C59: 0 | G59: 0 | H59: 0 | I59: 0
F60: Average Entrée Cost: | G60: =IFERROR(AVERAGEIF(G28:G59,">0"),0) -> 0
B61: Item | C61: Cost Per Purchase Unit OR Portion | D61: No. of Portions per Purchase Unit | E61: A La Carte Price Charged Per Portion | F61: No. of Portions Sold A La Carte | G61: Cost per Portion | H61: Total Nonprogram Food Cost | I61: Total Revenue per Item
A62: Fruit Sides | G62: =IFERROR(IF(C62>0.01,C62/D62,0),0) -> 0 | H62: =G62*F62 -> 0 | I62: =IF(H62>0.01,E62*F62,0) -> 0
A63: =IFERROR(AVERAGEIF(G62:G64,">0"),0) -> 0 | G63: 0 | H63: 0 | I63: 0
G64: 0 | H64: 0 | I64: 0
A65: Salad Bar | B65: - | C65: =IFERROR(VLOOKUP(B65,'Fruit & Veg Bar'!A:G,3,FALSE),0) -> 0 | D65: =IF(B65="-","",1) ->  | G65: 0 | H65: 0 | I65: 0
A66: Vegetable Sides | G66: 0 | H66: 0 | I66: 0
A67: =IFERROR(AVERAGEIF(G66:G68,">0"),0) -> 0 | G67: 0 | H67: 0 | I67: 0
G68: 0 | H68: 0 | I68: 0
A69: Grain/Other Sides | G69: 0 | H69: 0 | I69: 0
A70: =IFERROR(AVERAGEIF(G69:G73,">0"),0) -> 0 | G70: 0 | H70: 0 | I70: 0
G71: 0 | H71: 0 | I71: 0
G72: 0 | H72: 0 | I72: 0
G73: 0 | H73: 0 | I73: 0
F74: Total Meal Cost (Avg. Entrée Cost + Avg. Side Item Cost + Avg. Milk Cost ): | G74: =IFERROR(B12+G60+A63+A67+A70+G65+A65,0) -> 0 | H74: =SUM(H62:H73,H39:H59,H28:H37) -> 0 | I74: =SUM(I62:I73,I39:I59,I28:I37) -> 0
A76: Tuesday
B77: Item | C77: Cost Per Purchase Unit OR Portion | D77: No. of Portions per Purchase Unit | E77: A La Carte Price Charged Per Portion | F77: No. of Portions Sold A La Carte | G77: Cost per Portion | H77: Total Nonprogram Food Cost | I77: Total Revenue per Item
B78: Recipes
A79: Entrée Items | C79: =IFERROR(VLOOKUP(B79,'Lunch Recipe Calculator'!$A$403:$C$414,2,FALSE),"") -> 0 | D79: 1 | G79: =IFERROR(IF(C79>0.01,C79/D79,0),0) -> 0 | H79: =G79*F79 -> 0 | I79: =IF(H79>0.01,E79*F79,0) -> 0
C80: =IFERROR(VLOOKUP(B81,'Lunch Recipe Calculator'!$A$403:$C$414,2,FALSE),"") -> 0 | D80: 1 | G80: =IFERROR(IF(C80>0.01,C80/D80,0),0) -> 0 | H80: =G80*F80 -> 0 | I80: =IF(H80>0.01,E80*F80,0) -> 0
C81: =IFERROR(VLOOKUP(#REF!,'Lunch Recipe Calculator'!$A$403:$C$414,2,FALSE),"") ->  | D81: 1 | G81: =IFERROR(IF(C81>0.01,C81/D81,0),0) -> 0 | H81: =G81*F81 -> 0 | I81: =IF(H81>0.01,E81*F81,0) -> 0
C82: =IFERROR(VLOOKUP(B84,'Lunch Recipe Calculator'!$A$403:$C$414,2,FALSE),"") -> 0 | D82: 1 | G82: 0 | H82: 0 | I82: 0
C83: =IFERROR(VLOOKUP(#REF!,'Lunch Recipe Calculator'!$A$403:$C$414,2,FALSE),"") ->  | D83: 1 | G83: 0 | H83: 0 | I83: 0
C84: =IFERROR(VLOOKUP(B85,'Lunch Recipe Calculator'!$A$403:$C$414,2,FALSE),"") -> 0 | D84: 1 | G84: 0 | H84: 0 | I84: 0
C85: =IFERROR(VLOOKUP(#REF!,'Lunch Recipe Calculator'!$A$403:$C$414,2,FALSE),"") ->  | D85: 1 | G85: 0 | H85: 0 | I85: 0
C86: =IFERROR(VLOOKUP(B86,'Lunch Recipe Calculator'!$A$403:$C$414,2,FALSE),"") -> 0 | D86: 1 | G86: 0 | H86: 0 | I86: 0
C87: =IFERROR(VLOOKUP(B87,'Lunch Recipe Calculator'!$A$403:$C$414,2,FALSE),"") -> 0 | D87: 1 | G87: 0 | H87: 0 | I87: 0
C88: =IFERROR(VLOOKUP(B88,'Lunch Recipe Calculator'!$A$403:$C$414,2,FALSE),"") -> 0 | D88: 1 | G88: 0 | H88: 0 | I88: 0
B89: Pre-Calculated and/or Pre-Packaged Entrees
C90: 0 | D90: =IF(ISBLANK(B90),0,1) -> 0 | G90: =IFERROR(IF(C90>0.01,C90/D90,0),0) -> 0 | H90: =G90*F90 -> 0 | I90: =IF(H90>0.01,E90*F90,0) -> 0
C91: 0 | D91: 0 | G91: 0 | H91: 0 | I91: 0
C92: 0 | D92: 0 | G92: 0 | H92: 0 | I92: 0
C93: 0 | D93: 0 | G93: 0 | H93: 0 | I93: 0
C94: 0 | D94: 0 | G94: =IFERROR(IF(C94>0.01,C94/D94,0),0) -> 0 | H94: 0 | I94: 0
C95: 0 | D95: 0 | G95: =IFERROR(IF(C95>0.01,C95/D95,0),0) -> 0 | H95: 0 | I95: 0
C96: 0 | D96: =IF(ISBLANK(B96),0,1) -> 0 | G96: 0 | H96: 0 | I96: 0
C97: 0 | D97: =IF(ISBLANK(B97),0,1) -> 0 | G97: =IFERROR(IF(C97>0.01,C97/D97,0),0) -> 0 | H97: 0 | I97: 0
C98: 0 | D98: =IF(ISBLANK(B98),0,1) -> 0 | G98: =IFERROR(IF(C98>0.01,C98/D98,0),0) -> 0 | H98: 0 | I98: 0
C99: 0 | D99: =IF(ISBLANK(B99),0,1) -> 0 | G99: 0 | H99: 0 | I99: 0
C100: 0 | D100: =IF(ISBLANK(B100),0,1) -> 0 | G100: 0 | H100: 0 | I100: 0
C101: 0 | D101: =IF(ISBLANK(B101),0,1) -> 0 | G101: 0 | H101: 0 | I101: 0
C102: 0 | D102: 0 | G102: 0 | H102: 0 | I102: 0
C103: 0 | D103: =IF(ISBLANK(B103),0,1) -> 0 | G103: 0 | H103: 0 | I103: 0
C104: 0 | D104: 0 | G104: 0 | H104: 0 | I104: 0
C105: 0 | D105: 0 | G105: 0 | H105: 0 | I105: 0
C106: 0 | D106: 0 | G106: 0 | H106: 0 | I106: 0
C107: 0 | D107: 0 | G107: 0 | H107: 0 | I107: 0
C108: 0 | D108: 0 | G108: 0 | H108: 0 | I108: 0
C109: 0 | D109: 0 | G109: 0 | H109: 0 | I109: 0
C110: 0 | D110: 0 | G110: 0 | H110: 0 | I110: 0
F111: Average Entrée Cost: | G111: =IFERROR(AVERAGEIF(G79:G110,">0"),0) -> 0
B112: Item | C112: Cost Per Purchase Unit OR Portion | D112: No. of Portions per Purchase Unit | E112: A La Carte Price Charged Per Portion | F112: No. of Portions Sold A La Carte | G112: Cost per Portion | H112: Total Nonprogram Food Cost | I112: Total Revenue per Item
A113: Fruit Sides | G113: =IFERROR(IF(C113>0.01,C113/D113,0),0) -> 0 | H113: =G113*F113 -> 0 | I113: =IF(H113>0.01,E113*F113,0) -> 0
A114: =IFERROR(AVERAGEIF(G113:G115,"<>0"),0) -> 0 | G114: 0 | H114: 0 | I114: 0
G115: 0 | H115: 0 | I115: 0
A116: Salad Bar | B116: - | C116: =IFERROR(VLOOKUP(B116,'Fruit & Veg Bar'!A:G,3,FALSE),"") ->  | D116: 1 | G116: 0 | H116: 0 | I116: 0
A117: Vegetable Sides | G117: 0 | H117: 0 | I117: 0
A118: =IFERROR(AVERAGEIF(G117:G119,">0"),0) -> 0 | G118: 0 | H118: 0 | I118: 0
G119: 0 | H119: 0 | I119: 0
A120: Grain/Other Sides | G120: 0 | H120: 0 | I120: 0
A121: =IFERROR(AVERAGEIF(G120:G124,"<>0"),0) -> 0 | G121: 0 | H121: 0 | I121: 0
G122: 0 | H122: 0 | I122: 0
G123: 0 | H123: 0 | I123: 0
G124: 0 | H124: 0 | I124: 0
F125: Total Meal Cost (Avg. Entrée Cost + Avg. Side Item Cost + Avg. Milk Cost ): | G125: =IFERROR(B12+G111+A114+A118+A121+G116,0) -> 0 | H125: =SUM(H113:H124,H90:H110,H79:H88) -> 0 | I125: =SUM(I113:I124,I90:I110,I79:I88) -> 0
A127: Wednesday
B128: Item | C128: Cost Per Purchase Unit OR Portion | D128: No. of Portions per Purchase Unit | E128: A La Carte Price Charged Per Portion | F128: No. of Portions Sold A La Carte | G128: Cost per Portion | H128: Total Nonprogram Food Cost | I128: Total Revenue per Item
B129: Recipes
A130: Entrée Items | C130: =IFERROR(VLOOKUP(B130,'Lunch Recipe Calculator'!$A$403:$C$414,2,FALSE),"") -> 0 | D130: 1 | G130: =IFERROR(IF(C130>0.01,C130/D130,0),0) -> 0 | H130: =G130*F130 -> 0 | I130: =IF(H130>0.01,E130*F130,0) -> 0
C131: =IFERROR(VLOOKUP(B131,'Lunch Recipe Calculator'!$A$403:$C$414,2,FALSE),"") -> 0 | D131: 1 | G131: =IFERROR(IF(C131>0.01,C131/D131,0),0) -> 0 | H131: =G131*F131 -> 0 | I131: =IF(H131>0.01,E131*F131,0) -> 0
C132: =IFERROR(VLOOKUP(B132,'Lunch Recipe Calculator'!$A$403:$C$414,2,FALSE),"") -> 0 | D132: 1 | G132: =IFERROR(IF(C132>0.01,C132/D132,0),0) -> 0 | H132: =G132*F132 -> 0 | I132: =IF(H132>0.01,E132*F132,0) -> 0
C133: =IFERROR(VLOOKUP(B133,'Lunch Recipe Calculator'!$A$403:$C$414,2,FALSE),"") -> 0 | D133: 1 | G133: 0 | H133: 0 | I133: 0
C134: =IFERROR(VLOOKUP(B134,'Lunch Recipe Calculator'!$A$403:$C$414,2,FALSE),"") -> 0 | D134: 1 | G134: 0 | H134: 0 | I134: 0
C135: =IFERROR(VLOOKUP(B135,'Lunch Recipe Calculator'!$A$403:$C$414,2,FALSE),"") -> 0 | D135: 1 | G135: 0 | H135: 0 | I135: 0
C136: =IFERROR(VLOOKUP(#REF!,'Lunch Recipe Calculator'!$A$403:$C$414,2,FALSE),"") ->  | D136: 1 | G136: 0 | H136: 0 | I136: 0
C137: =IFERROR(VLOOKUP(B136,'Lunch Recipe Calculator'!$A$403:$C$414,2,FALSE),"") -> 0 | D137: 1 | G137: 0 | H137: 0 | I137: 0
C138: =IFERROR(VLOOKUP(B139,'Lunch Recipe Calculator'!$A$403:$C$414,2,FALSE),"") -> 0 | D138: 1 | G138: 0 | H138: 0 | I138: 0
C139: =IFERROR(VLOOKUP(#REF!,'Lunch Recipe Calculator'!$A$403:$C$414,2,FALSE),"") ->  | D139: 1 | G139: 0 | H139: 0 | I139: 0
B140: Pre-Calculated and/or Pre-Packaged Entrees
C141: 0 | D141: =IF(ISBLANK(B141),0,1) -> 0 | G141: =IFERROR(IF(C141>0.01,C141/D141,0),0) -> 0 | H141: =G141*F141 -> 0 | I141: =IF(H141>0.01,E141*F141,0) -> 0
C142: 0 | D142: =IF(ISBLANK(B142),0,1) -> 0 | G142: 0 | H142: 0 | I142: 0
C143: 0 | D143: =IF(ISBLANK(B143),0,1) -> 0 | G143: 0 | H143: 0 | I143: 0
C144: 0 | D144: =IF(ISBLANK(B144),0,1) -> 0 | G144: 0 | H144: 0 | I144: 0
C145: 0 | D145: =IF(ISBLANK(B145),0,1) -> 0 | G145: 0 | H145: 0 | I145: 0
C146: 0 | D146: =IF(ISBLANK(B146),0,1) -> 0 | G146: =IFERROR(IF(C146>0.01,C146/D146,0),0) -> 0 | H146: 0 | I146: 0
C147: 0 | D147: =IF(ISBLANK(B147),0,1) -> 0 | G147: =IFERROR(IF(C147>0.01,C147/D147,0),0) -> 0 | H147: 0 | I147: 0
C148: 0 | D148: =IF(ISBLANK(B148),0,1) -> 0 | G148: 0 | H148: 0 | I148: 0
C149: 0 | D149: =IF(ISBLANK(B149),0,1) -> 0 | G149: =IFERROR(IF(C149>0.01,C149/D149,0),0) -> 0 | H149: 0 | I149: 0
C150: 0 | D150: =IF(ISBLANK(B150),0,1) -> 0 | G150: =IFERROR(IF(C150>0.01,C150/D150,0),0) -> 0 | H150: 0 | I150: 0
C151: 0 | D151: =IF(ISBLANK(B151),0,1) -> 0 | G151: 0 | H151: 0 | I151: 0
C152: 0 | D152: =IF(ISBLANK(B152),0,1) -> 0 | G152: =IFERROR(IF(C152>0.01,C152/D152,0),0) -> 0 | H152: =G152*F152 -> 0 | I152: =IF(H152>0.01,E152*F152,0) -> 0
C153: 0 | D153: =IF(ISBLANK(B153),0,1) -> 0 | G153: 0 | H153: 0 | I153: 0
C154: 0 | D154: 0 | G154: 0 | H154: 0 | I154: 0
C155: 0 | D155: 0 | G155: 0 | H155: 0 | I155: 0
C156: 0 | D156: 0 | G156: 0 | H156: 0 | I156: 0
C157: 0 | D157: 0 | G157: 0 | H157: 0 | I157: 0
C158: 0 | D158: 0 | G158: 0 | H158: 0 | I158: 0
C159: 0 | D159: 0 | G159: 0 | H159: 0 | I159: 0
C160: 0 | D160: 0 | G160: 0 | H160: 0 | I160: 0
C161: 0 | D161: 0 | G161: 0 | H161: 0 | I161: 0
F162: Average Entrée Cost: | G162: =IFERROR(AVERAGEIF(G130:G161,">0"),0) -> 0
B163: Item | C163: Cost Per Purchase Unit OR Portion | D163: No. of Portions per Purchase Unit | E163: A La Carte Price Charged Per Portion | F163: No. of Portions Sold A La Carte | G163: Cost per Portion | H163: Total Nonprogram Food Cost | I163: Total Revenue per Item
A164: Fruit Sides | G164: =IFERROR(IF(C164>0.01,C164/D164,0),0) -> 0 | H164: =G164*F164 -> 0 | I164: =IF(H164>0.01,E164*F164,0) -> 0
A165: =IFERROR(AVERAGEIF(G164:G166,">0"),0) -> 0 | G165: 0 | H165: 0 | I165: 0
G166: 0 | H166: 0 | I166: 0
A167: Salad Bar | B167: - | C167: =IFERROR(VLOOKUP(B167,'Fruit & Veg Bar'!A:G,3,FALSE),"") ->  | D167: 1 | G167: 0 | H167: 0 | I167: 0
A168: Vegetable Sides | G168: 0 | H168: 0 | I168: 0
A169: =IFERROR(AVERAGEIF(G168:G170,">0"),0) -> 0 | G169: 0 | H169: 0 | I169: 0
G170: 0 | H170: 0 | I170: 0
A171: Grain/Other Sides | G171: 0 | H171: 0 | I171: 0
A172: =IFERROR(AVERAGEIF(G171:G175,">0"),0) -> 0 | G172: 0 | H172: 0 | I172: 0
G173: 0 | H173: 0 | I173: 0
G174: 0 | H174: 0 | I174: 0
G175: 0 | H175: 0 | I175: 0
F176: Total Meal Cost (Avg. Entrée Cost + Avg. Side Item Cost + Avg. Milk Cost ): | G176: =IFERROR(B12+G162+A165+A169+A172+G167,0) -> 0 | H176: =SUM(H164:H175,H152:H161,H130:H139) -> 0 | I176: =SUM(I164:I175,I152:I161,I130:I139) -> 0
A178: Thursday
B179: Item | C179: Cost Per Purchase Unit OR Portion | D179: No. of Portions per Purchase Unit | E179: A La Carte Price Charged Per Portion | F179: No. of Portions Sold A La Carte | G179: Cost per Portion | H179: Total Nonprogram Food Cost | I179: Total Revenue per Item
B180: Recipes
A181: Entrée Items | C181: =IFERROR(VLOOKUP(B181,'Lunch Recipe Calculator'!$A$403:$C$414,2,FALSE),"") -> 0 | D181: 1 | G181: =IFERROR(IF(C181>0.01,C181/D181,0),0) -> 0 | H181: =G181*F181 -> 0 | I181: =IF(H181>0.01,E181*F181,0) -> 0
C182: =IFERROR(VLOOKUP(B182,'Lunch Recipe Calculator'!$A$403:$C$414,2,FALSE),"") -> 0 | D182: 1 | G182: =IFERROR(IF(C182>0.01,C182/D182,0),0) -> 0 | H182: =G182*F182 -> 0 | I182: =IF(H182>0.01,E182*F182,0) -> 0
C183: =IFERROR(VLOOKUP(B183,'Lunch Recipe Calculator'!$A$403:$C$414,2,FALSE),"") -> 0 | D183: 1 | G183: =IFERROR(IF(C183>0.01,C183/D183,0),0) -> 0 | H183: =G183*F183 -> 0 | I183: =IF(H183>0.01,E183*F183,0) -> 0
C184: =IFERROR(VLOOKUP(B184,'Lunch Recipe Calculator'!$A$403:$C$414,2,FALSE),"") -> 0 | D184: 1 | G184: 0 | H184: 0 | I184: 0
C185: =IFERROR(VLOOKUP(B186,'Lunch Recipe Calculator'!$A$403:$C$414,2,FALSE),"") -> 0 | D185: 1 | G185: 0 | H185: 0 | I185: 0
C186: =IFERROR(VLOOKUP(#REF!,'Lunch Recipe Calculator'!$A$403:$C$414,2,FALSE),"") ->  | D186: 1 | G186: 0 | H186: 0 | I186: 0
C187: =IFERROR(VLOOKUP(B187,'Lunch Recipe Calculator'!$A$403:$C$414,2,FALSE),"") -> 0 | D187: 1 | G187: 0 | H187: 0 | I187: 0
C188: =IFERROR(VLOOKUP(B188,'Lunch Recipe Calculator'!$A$403:$C$414,2,FALSE),"") -> 0 | D188: 1 | G188: 0 | H188: 0 | I188: 0
C189: =IFERROR(VLOOKUP(B189,'Lunch Recipe Calculator'!$A$403:$C$414,2,FALSE),"") -> 0 | D189: 1 | G189: 0 | H189: 0 | I189: 0
C190: =IFERROR(VLOOKUP(B190,'Lunch Recipe Calculator'!$A$403:$C$414,2,FALSE),"") -> 0 | D190: 1 | G190: 0 | H190: 0 | I190: 0
B191: Pre-Calculated and/or Pre-Packaged Entrees
C192: 0 | D192: =IF(ISBLANK(B192),0,1) -> 0 | G192: =IFERROR(IF(C192>0.01,C192/D192,0),0) -> 0 | H192: =G192*F192 -> 0 | I192: =IF(H192>0.01,E192*F192,0) -> 0
C193: 0 | D193: =IF(ISBLANK(B193),0,1) -> 0 | G193: 0 | H193: 0 | I193: 0
C194: 0 | D194: =IF(ISBLANK(B194),0,1) -> 0 | G194: 0 | H194: 0 | I194: 0
C195: 0 | D195: =IF(ISBLANK(B195),0,1) -> 0 | G195: 0 | H195: 0 | I195: 0
C196: 0 | D196: =IF(ISBLANK(B196),0,1) -> 0 | G196: 0 | H196: 0 | I196: 0
C197: 0 | D197: =IF(ISBLANK(B197),0,1) -> 0 | G197: =IFERROR(IF(C197>0.01,C197/D197,0),0) -> 0 | H197: 0 | I197: 0
C198: 0 | D198: =IF(ISBLANK(B198),0,1) -> 0 | G198: =IFERROR(IF(C198>0.01,C198/D198,0),0) -> 0 | H198: 0 | I198: 0
C199: 0 | D199: =IF(ISBLANK(B199),0,1) -> 0 | G199: 0 | H199: 0 | I199: 0
C200: 0 | D200: =IF(ISBLANK(B200),0,1) -> 0 | G200: =IFERROR(IF(C200>0.01,C200/D200,0),0) -> 0 | H200: 0 | I200: 0
C201: 0 | D201: =IF(ISBLANK(B201),0,1) -> 0 | G201: =IFERROR(IF(C201>0.01,C201/D201,0),0) -> 0 | H201: 0 | I201: 0
C202: 0 | D202: =IF(ISBLANK(B202),0,1) -> 0 | G202: 0 | H202: 0 | I202: 0
C203: 0 | D203: =IF(ISBLANK(B203),0,1) -> 0 | G203: 0 | H203: 0 | I203: 0
C204: 0 | D204: =IF(ISBLANK(B204),0,1) -> 0 | G204: 0 | H204: 0 | I204: 0
C205: 0 | D205: 0 | G205: 0 | H205: 0 | I205: 0
... 75 more rows

Sheet Lunch Menu 2 (hidden)
A1: Lunch Menu Costing Worksheet
A2: Select Grade Level:
A3: Sponsor Name: | B3: =IF('Instructions (START HERE)'!C2="","",'Instructions (START HERE)'!C2) -> 
A4: Week Selected for Review: | B4: ='Lunch Menu'!B4 -> 0 | C4: Site:
A6: Average Cost of Milk Calculator
A7: Types of Milk Served: | B7: Cost per Unit: | F7: Cost | G7: Revenue | H7: No. Served
A8: Non-fat Milk | B8: =Non_fat_Milk -> 0 | E8: Adult | F8: =SUM(H22:H23) -> 0 | G8: =SUM(I22:I23) -> 0
A9: Non-fat Flavored Milk | B9: =NonFatFlavor -> 0 | E9: Student | F9: =SUM(H16:H21) -> 0 | G9: =SUM(I16:I21) -> 0
A10: 1% Milk | B10: =Milk1 -> 0 | E10: Reim. Meals | F10: =SUM(H16,H19,H20,H21) -> 0 | G10: =SUM(I16,I19:I21) -> 0 | H10: =SUM(C16:G16,C19:G21) -> 0
A11: 1% Flavored Milk | B11: =Flav1 -> 0 | E11: Total a la carte | F11: =SUM(H73,H123,H173,H223,H273) -> 0 | G11: =SUM(I73,I123,I173,I223,I273) -> 0
A12: Average Milk Cost: | B12: ='Lunch Menu'!B12 ->  | E12: total adult meals sold | F12: =SUM(C22:G23) -> 0
E13: total a la carte entrée/side items sold | F13: =SUM(F28:F37,F39:F58,F61:F72,F78:F87,F89:F108,F111:F122,F128:F137,F139:F158,F161:F172,F178:F187,F189:F208,F211:F222,F228:F237,F239:F258,F261:F272) -> 0
A14: Program Food Revenue
A15: Reimbursement Rates + 8 Cents | C15: Monday Meal Counts | D15: Tuesday Meal Counts | E15: Wednesday Meal Counts | F15: Thursday Meal Counts | G15: Friday Meal Counts | H15: cost | I15: revenue
A16: Free | B16: =FreeLunchRates -> 0 | H16: =(C16*$G$73)+(D16*$G$123)+(E16*$G$173)+(F16*$G$223)+(G16*$G$273) -> 0 | I16: =SUM(C16:G16)*B16 -> 0
A17: Reduced | B17: =ReducedLunchRates -> 0
A18: Paid | B18: =PaidLunchRates -> 0
A19: Paid Student Price 1 | B19: =PaidStud1 -> 0 | H19: =(C19*$G$73)+(D19*$G$123)+(E19*$G$173)+(F19*$G$223)+(G19*$G$273) -> 0 | I19: =(SUM(C19:G19)*B19)+(SUM(C19:G19)*$B$18) -> 0
A20: Paid Student Price 2 | B20: =PaidStud2 -> 0 | H20: =(C20*$G$73)+(D20*$G$123)+(E20*$G$173)+(F20*$G$223)+(G20*$G$273) -> 0 | I20: =(SUM(C20:G20)*B20)+(SUM(C20:G20)*$B$18) -> 0
A21: Reduced Price | B21: =RP -> 0.4 | H21: =(C21*$G$73)+(D21*$G$123)+(E21*$G$173)+(F21*$G$223)+(G21*$G$273) -> 0 | I21: =(SUM(C21:G21)*B21)+(SUM(C21:G21)*$B$17) -> 0
A22: Adult Meal Price | B22: =AMP -> 0 | H22: =(C22*$G$73)+(D22*$G$123)+(E22*$G$173)+(F22*$G$223)+(G22*$G$273) -> 0 | I22: =SUM(C22:G22)*B22 -> 0
A23: Food Service Staff Meal Price | B23: =FSS -> 0 | H23: =(C23*$G$73)+(D23*$G$123)+(E23*$G$173)+(F23*$G$223)+(G23*$G$273) -> 0 | I23: =SUM(C23:G23)*B23 -> 0
A25: Monday
B26: Item | C26: Cost Per Purchase Unit OR Portion | D26: No. of Portions per Purchase Unit | E26: A La Carte Price Charged Per Portion | F26: No. of Portions Sold A La Carte | G26: Cost per Portion | H26: Total Nonprogram Food Cost | I26: Total Revenue per Item
B27: Recipes
A28: Entrée Items | C28: =IFERROR(VLOOKUP(B28,'Lunch Recipe Calculator'!$A$403:$C$414,2,FALSE),"") -> 0 | D28: 1 | G28: =IFERROR(IF(C28>0.01,C28/D28,0),0) -> 0 | H28: =G28*F28 -> 0 | I28: =IF(H28>0.01,E28*F28,0) -> 0
C29: =IFERROR(VLOOKUP(B29,'Lunch Recipe Calculator'!$A$403:$C$414,2,FALSE),"") -> 0 | D29: 1 | G29: =IFERROR(IF(C29>0.01,C29/D29,0),0) -> 0 | H29: =G29*F29 -> 0 | I29: =IF(H29>0.01,E29*F29,0) -> 0
C30: =IFERROR(VLOOKUP(B30,'Lunch Recipe Calculator'!$A$403:$C$414,2,FALSE),"") -> 0 | D30: 1 | G30: =IFERROR(IF(C30>0.01,C30/D30,0),0) -> 0 | H30: =G30*F30 -> 0 | I30: =IF(H30>0.01,E30*F30,0) -> 0
C31: =IFERROR(VLOOKUP(B31,'Lunch Recipe Calculator'!$A$403:$C$414,2,FALSE),"") -> 0 | D31: 1 | G31: 0 | H31: 0 | I31: 0
C32: =IFERROR(VLOOKUP(B32,'Lunch Recipe Calculator'!$A$403:$C$414,2,FALSE),"") -> 0 | D32: 1 | G32: 0 | H32: 0 | I32: 0
C33: =IFERROR(VLOOKUP(B33,'Lunch Recipe Calculator'!$A$403:$C$414,2,FALSE),"") -> 0 | D33: 1 | G33: 0 | H33: 0 | I33: 0
C34: =IFERROR(VLOOKUP(B34,'Lunch Recipe Calculator'!$A$403:$C$414,2,FALSE),"") -> 0 | D34: 1 | G34: 0 | H34: 0 | I34: 0
C35: =IFERROR(VLOOKUP(B35,'Lunch Recipe Calculator'!$A$403:$C$414,2,FALSE),"") -> 0 | D35: 1 | G35: 0 | H35: 0 | I35: 0
C36: =IFERROR(VLOOKUP(B36,'Lunch Recipe Calculator'!$A$403:$C$414,2,FALSE),"") -> 0 | D36: 1 | G36: 0 | H36: 0 | I36: 0
C37: =IFERROR(VLOOKUP(B37,'Lunch Recipe Calculator'!$A$403:$C$414,2,FALSE),"") -> 0 | D37: 1 | G37: 0 | H37: 0 | I37: 0
B38: Pre-Calculated and/or Pre-Packaged Entrees
C39: 0 | D39: =IF(ISBLANK(B39),0,1) -> 0 | G39: =IFERROR(IF(C39>0.01,C39/D39,0),0) -> 0 | H39: =G39*F39 -> 0 | I39: =IF(H39>0.01,E39*F39,0) -> 0
C40: 0 | D40: =IF(ISBLANK(B40),0,1) -> 0 | G40: =IFERROR(IF(C40>0.01,C40/D40,0),0) -> 0 | H40: =G40*F40 -> 0 | I40: =IF(H40>0.01,E40*F40,0) -> 0
C41: 0 | D41: 0 | G41: 0 | H41: 0 | I41: 0
C42: 0 | D42: 0 | G42: 0 | H42: 0 | I42: 0
C43: 0 | D43: 0 | G43: 0 | H43: 0 | I43: 0
C44: 0 | D44: 0 | G44: 0 | H44: 0 | I44: 0
C45: 0 | D45: 0 | G45: 0 | H45: 0 | I45: 0
C46: 0 | D46: 0 | G46: 0 | H46: 0 | I46: 0
C47: 0 | D47: 0 | G47: 0 | H47: 0 | I47: 0
C48: 0 | D48: 0 | G48: 0 | H48: 0 | I48: 0
C49: 0 | D49: 0 | G49: 0 | H49: 0 | I49: 0
C50: 0 | D50: =IF(ISBLANK(B50),0,1) -> 0 | G50: 0 | H50: 0 | I50: 0
C51: 0 | D51: 0 | G51: 0 | H51: 0 | I51: 0
C52: 0 | D52: 0 | G52: 0 | H52: 0 | I52: 0
C53: 0 | D53: 0 | G53: 0 | H53: 0 | I53: 0
C54: 0 | D54: 0 | G54: 0 | H54: 0 | I54: 0
C55: 0 | D55: 0 | G55: 0 | H55: 0 | I55: 0
C56: 0 | D56: 0 | G56: 0 | H56: 0 | I56: 0
C57: 0 | D57: 0 | G57: 0 | H57: 0 | I57: 0
C58: 0 | D58: 0 | G58: 0 | H58: 0 | I58: 0
F59: Average Entrée Cost: | G59: =IFERROR(AVERAGEIF(G28:G58,">0"),0) -> 0
B60: Item | C60: Cost Per Purchase Unit OR Portion | D60: No. of Portions per Purchase Unit | E60: A La Carte Price Charged Per Portion | F60: No. of Portions Sold A La Carte | G60: Cost per Portion | H60: Total Nonprogram Food Cost | I60: Total Revenue per Item
A61: Fruit Sides | G61: =IFERROR(IF(C61>0.01,C61/D61,0),0) -> 0 | H61: =G61*F61 -> 0 | I61: =IF(H61>0.01,E61*F61,0) -> 0
A62: =IFERROR(AVERAGEIF(G61:G63,">0"),0) -> 0 | G62: 0 | H62: 0 | I62: 0
G63: 0 | H63: 0 | I63: 0
A64: Salad Bar | B64: - | C64: =IFERROR(VLOOKUP(B64,'Fruit & Veg Bar'!A:G,3,FALSE),"") ->  | D64: 1 | G64: 0 | H64: 0 | I64: 0
A65: Vegetable Sides | G65: 0 | H65: 0 | I65: 0
A66: =IFERROR(AVERAGEIF(G65:G67,">0"),0) -> 0 | G66: 0 | H66: 0 | I66: 0
G67: 0 | H67: 0 | I67: 0
A68: Grain/Other Sides | G68: 0 | H68: 0 | I68: 0
A69: =IFERROR(AVERAGEIF(G68:G72,">0"),0) -> 0 | G69: 0 | H69: 0 | I69: 0
G70: 0 | H70: 0 | I70: 0
G71: 0 | H71: 0 | I71: 0
G72: 0 | H72: 0 | I72: 0
F73: Total Meal Cost (Avg. Entrée Cost + Avg. Side Item Cost + Avg. Milk Cost ): | G73: =IFERROR(B12+G59+A62+A66+A69+G64,0) -> 0 | H73: =SUM(H61:H72,H39:H58,H28:H37) -> 0 | I73: =SUM(I61:I72,I39:I58,I28:I37) -> 0
A75: Tuesday
B76: Item | C76: Cost Per Purchase Unit OR Portion | D76: No. of Portions per Purchase Unit | E76: A La Carte Price Charged Per Portion | F76: No. of Portions Sold A La Carte | G76: Cost per Portion | H76: Total Nonprogram Food Cost | I76: Total Revenue per Item
B77: Recipes
A78: Entrée Items | C78: =IFERROR(VLOOKUP(B78,'Lunch Recipe Calculator'!$A$403:$C$414,2,FALSE),"") -> 0 | D78: 1 | G78: =IFERROR(IF(C78>0.01,C78/D78,0),0) -> 0 | H78: =G78*F78 -> 0 | I78: =IF(H78>0.01,E78*F78,0) -> 0
C79: =IFERROR(VLOOKUP(B79,'Lunch Recipe Calculator'!$A$403:$C$414,2,FALSE),"") -> 0 | D79: 1 | G79: =IFERROR(IF(C79>0.01,C79/D79,0),0) -> 0 | H79: =G79*F79 -> 0 | I79: =IF(H79>0.01,E79*F79,0) -> 0
C80: =IFERROR(VLOOKUP(B80,'Lunch Recipe Calculator'!$A$403:$C$414,2,FALSE),"") -> 0 | D80: 1 | G80: =IFERROR(IF(C80>0.01,C80/D80,0),0) -> 0 | H80: =G80*F80 -> 0 | I80: =IF(H80>0.01,E80*F80,0) -> 0
C81: =IFERROR(VLOOKUP(B83,'Lunch Recipe Calculator'!$A$403:$C$414,2,FALSE),"") -> 0 | D81: 1 | G81: 0 | H81: 0 | I81: 0
C82: =IFERROR(VLOOKUP(#REF!,'Lunch Recipe Calculator'!$A$403:$C$414,2,FALSE),"") ->  | D82: 1 | G82: 0 | H82: 0 | I82: 0
C83: =IFERROR(VLOOKUP(#REF!,'Lunch Recipe Calculator'!$A$403:$C$414,2,FALSE),"") ->  | D83: 1 | G83: 0 | H83: 0 | I83: 0
C84: =IFERROR(VLOOKUP(B84,'Lunch Recipe Calculator'!$A$403:$C$414,2,FALSE),"") -> 0 | D84: 1 | G84: 0 | H84: 0 | I84: 0
C85: =IFERROR(VLOOKUP(B85,'Lunch Recipe Calculator'!$A$403:$C$414,2,FALSE),"") -> 0 | D85: 1 | G85: 0 | H85: 0 | I85: 0
C86: =IFERROR(VLOOKUP(B86,'Lunch Recipe Calculator'!$A$403:$C$414,2,FALSE),"") -> 0 | D86: 1 | G86: 0 | H86: 0 | I86: 0
C87: =IFERROR(VLOOKUP(B87,'Lunch Recipe Calculator'!$A$403:$C$414,2,FALSE),"") -> 0 | D87: 1 | G87: 0 | H87: 0 | I87: 0
B88: Pre-Calculated and/or Pre-Packaged Entrees
C89: 0 | D89: =IF(ISBLANK(B89),0,1) -> 0 | G89: =IFERROR(IF(C89>0.01,C89/D89,0),0) -> 0 | H89: =G89*F89 -> 0 | I89: =IF(H89>0.01,E89*F89,0) -> 0
C90: 0 | D90: =IF(ISBLANK(B90),0,1) -> 0 | G90: 0 | H90: 0 | I90: 0
C91: 0 | D91: 0 | G91: 0 | H91: 0 | I91: 0
C92: 0 | D92: 0 | G92: 0 | H92: 0 | I92: 0
C93: 0 | D93: 0 | G93: 0 | H93: 0 | I93: 0
C94: 0 | D94: 0 | G94: 0 | H94: 0 | I94: 0
C95: 0 | D95: 0 | G95: 0 | H95: 0 | I95: 0
C96: 0 | D96: 0 | G96: 0 | H96: 0 | I96: 0
C97: 0 | D97: 0 | G97: 0 | H97: 0 | I97: 0
C98: 0 | D98: 0 | G98: 0 | H98: 0 | I98: 0
C99: 0 | D99: 0 | G99: 0 | H99: 0 | I99: 0
C100: 0 | D100: =IF(ISBLANK(B100),0,1) -> 0 | G100: 0 | H100: 0 | I100: 0
C101: 0 | D101: 0 | G101: 0 | H101: 0 | I101: 0
C102: 0 | D102: 0 | G102: 0 | H102: 0 | I102: 0
C103: 0 | D103: 0 | G103: 0 | H103: 0 | I103: 0
C104: 0 | D104: 0 | G104: 0 | H104: 0 | I104: 0
C105: 0 | D105: 0 | G105: 0 | H105: 0 | I105: 0
C106: 0 | D106: 0 | G106: 0 | H106: 0 | I106: 0
C107: 0 | D107: 0 | G107: 0 | H107: 0 | I107: 0
C108: 0 | D108: 0 | G108: 0 | H108: 0 | I108: 0
F109: Average Entrée Cost: | G109: =IFERROR(AVERAGEIF(G78:G108,">0"),0) -> 0
B110: Item | C110: Cost Per Purchase Unit OR Portion | D110: No. of Portions per Purchase Unit | E110: A La Carte Price Charged Per Portion | F110: No. of Portions Sold A La Carte | G110: Cost per Portion | H110: Total Nonprogram Food Cost | I110: Total Revenue per Item
A111: Fruit Sides | G111: =IFERROR(IF(C111>0.01,C111/D111,0),0) -> 0 | H111: =G111*F111 -> 0 | I111: =IF(H111>0.01,E111*F111,0) -> 0
A112: =IFERROR(AVERAGEIF(G111:G113,"<>0"),0) -> 0 | G112: 0 | H112: 0 | I112: 0
G113: 0 | H113: 0 | I113: 0
A114: Salad Bar | B114: - | C114: =IFERROR(VLOOKUP(B114,'Fruit & Veg Bar'!A:G,3,FALSE),"") ->  | D114: 1 | G114: 0 | H114: 0 | I114: 0
A115: Vegetable Sides | G115: 0 | H115: 0 | I115: 0
A116: =IFERROR(AVERAGEIF(G115:G117,">0"),0) -> 0 | G116: 0 | H116: 0 | I116: 0
G117: 0 | H117: 0 | I117: 0
A118: Grain/Other Sides | G118: 0 | H118: 0 | I118: 0
A119: =IFERROR(AVERAGEIF(G118:G122,"<>0"),0) -> 0 | G119: 0 | H119: 0 | I119: 0
G120: 0 | H120: 0 | I120: 0
G121: 0 | H121: 0 | I121: 0
G122: 0 | H122: 0 | I122: 0
F123: Total Meal Cost (Avg. Entrée Cost + Avg. Side Item Cost + Avg. Milk Cost ): | G123: =IFERROR(B12+G109+A112+A116+A119+G114,0) -> 0 | H123: =SUM(H111:H122,H89:H108,H78:H87) -> 0 | I123: =SUM(I111:I122,I89:I108,I78:I87) -> 0
A125: Wednesday
B126: Item | C126: Cost Per Purchase Unit OR Portion | D126: No. of Portions per Purchase Unit | E126: A La Carte Price Charged Per Portion | F126: No. of Portions Sold A La Carte | G126: Cost per Portion | H126: Total Nonprogram Food Cost | I126: Total Revenue per Item
B127: Recipes
A128: Entrée Items | C128: =IFERROR(VLOOKUP(B128,'Lunch Recipe Calculator'!$A$403:$C$414,2,FALSE),"") -> 0 | D128: 1 | G128: =IFERROR(IF(C128>0.01,C128/D128,0),0) -> 0 | H128: =G128*F128 -> 0 | I128: =IF(H128>0.01,E128*F128,0) -> 0
C129: =IFERROR(VLOOKUP(B129,'Lunch Recipe Calculator'!$A$403:$C$414,2,FALSE),"") -> 0 | D129: 1 | G129: =IFERROR(IF(C129>0.01,C129/D129,0),0) -> 0 | H129: =G129*F129 -> 0 | I129: =IF(H129>0.01,E129*F129,0) -> 0
C130: =IFERROR(VLOOKUP(B130,'Lunch Recipe Calculator'!$A$403:$C$414,2,FALSE),"") -> 0 | D130: 1 | G130: =IFERROR(IF(C130>0.01,C130/D130,0),0) -> 0 | H130: =G130*F130 -> 0 | I130: =IF(H130>0.01,E130*F130,0) -> 0
C131: =IFERROR(VLOOKUP(B131,'Lunch Recipe Calculator'!$A$403:$C$414,2,FALSE),"") -> 0 | D131: 1 | G131: 0 | H131: 0 | I131: 0
C132: =IFERROR(VLOOKUP(B133,'Lunch Recipe Calculator'!$A$403:$C$414,2,FALSE),"") -> 0 | D132: 1 | G132: 0 | H132: 0 | I132: 0
C133: =IFERROR(VLOOKUP(#REF!,'Lunch Recipe Calculator'!$A$403:$C$414,2,FALSE),"") ->  | D133: 1 | G133: 0 | H133: 0 | I133: 0
C134: =IFERROR(VLOOKUP(B134,'Lunch Recipe Calculator'!$A$403:$C$414,2,FALSE),"") -> 0 | D134: 1 | G134: 0 | H134: 0 | I134: 0
C135: =IFERROR(VLOOKUP(B135,'Lunch Recipe Calculator'!$A$403:$C$414,2,FALSE),"") -> 0 | D135: 1 | G135: 0 | H135: 0 | I135: 0
C136: =IFERROR(VLOOKUP(B136,'Lunch Recipe Calculator'!$A$403:$C$414,2,FALSE),"") -> 0 | D136: 1 | G136: 0 | H136: 0 | I136: 0
C137: =IFERROR(VLOOKUP(B137,'Lunch Recipe Calculator'!$A$403:$C$414,2,FALSE),"") -> 0 | D137: 1 | G137: 0 | H137: 0 | I137: 0
B138: Pre-Calculated and/or Pre-Packaged Entrees
C139: 0 | D139: =IF(ISBLANK(B139),0,1) -> 0 | G139: =IFERROR(IF(C139>0.01,C139/D139,0),0) -> 0 | H139: =G139*F139 -> 0 | I139: =IF(H139>0.01,E139*F139,0) -> 0
C140: 0 | D140: =IF(ISBLANK(B140),0,1) -> 0 | G140: 0 | H140: 0 | I140: 0
C141: 0 | D141: 0 | G141: 0 | H141: 0 | I141: 0
C142: 0 | D142: 0 | G142: 0 | H142: 0 | I142: 0
C143: 0 | D143: 0 | G143: 0 | H143: 0 | I143: 0
C144: 0 | D144: 0 | G144: 0 | H144: 0 | I144: 0
C145: 0 | D145: 0 | G145: 0 | H145: 0 | I145: 0
C146: 0 | D146: 0 | G146: 0 | H146: 0 | I146: 0
C147: 0 | D147: 0 | G147: 0 | H147: 0 | I147: 0
C148: 0 | D148: 0 | G148: 0 | H148: 0 | I148: 0
C149: 0 | D149: 0 | G149: 0 | H149: 0 | I149: 0
C150: 0 | D150: =IF(ISBLANK(B150),0,1) -> 0 | G150: 0 | H150: 0 | I150: 0
C151: 0 | D151: 0 | G151: 0 | H151: 0 | I151: 0
C152: 0 | D152: 0 | G152: 0 | H152: 0 | I152: 0
C153: 0 | D153: 0 | G153: 0 | H153: 0 | I153: 0
C154: 0 | D154: 0 | G154: 0 | H154: 0 | I154: 0
C155: 0 | D155: 0 | G155: 0 | H155: 0 | I155: 0
C156: 0 | D156: 0 | G156: 0 | H156: 0 | I156: 0
C157: 0 | D157: 0 | G157: 0 | H157: 0 | I157: 0
C158: 0 | D158: 0 | G158: 0 | H158: 0 | I158: 0
F159: Average Entrée Cost: | G159: =IFERROR(AVERAGEIF(G128:G158,">0"),0) -> 0
B160: Item | C160: Cost Per Purchase Unit OR Portion | D160: No. of Portions per Purchase Unit | E160: A La Carte Price Charged Per Portion | F160: No. of Portions Sold A La Carte | G160: Cost per Portion | H160: Total Nonprogram Food Cost | I160: Total Revenue per Item
A161: Fruit Sides | G161: =IFERROR(IF(C161>0.01,C161/D161,0),0) -> 0 | H161: =G161*F161 -> 0 | I161: =IF(H161>0.01,E161*F161,0) -> 0
A162: =IFERROR(AVERAGEIF(G161:G163,">0"),0) -> 0 | G162: 0 | H162: 0 | I162: 0
G163: 0 | H163: 0 | I163: 0
A164: Salad Bar | B164: - | C164: =IFERROR(VLOOKUP(B164,'Fruit & Veg Bar'!A:G,3,FALSE),"") ->  | D164: 1 | G164: 0 | H164: 0 | I164: 0
A165: Vegetable Sides | G165: 0 | H165: 0 | I165: 0
A166: =IFERROR(AVERAGEIF(G165:G167,">0"),0) -> 0 | G166: 0 | H166: 0 | I166: 0
G167: 0 | H167: 0 | I167: 0
A168: Grain/Other Sides | G168: 0 | H168: 0 | I168: 0
A169: =IFERROR(AVERAGEIF(G168:G172,">0"),0) -> 0 | G169: 0 | H169: 0 | I169: 0
G170: 0 | H170: 0 | I170: 0
G171: 0 | H171: 0 | I171: 0
G172: 0 | H172: 0 | I172: 0
F173: Total Meal Cost (Avg. Entrée Cost + Avg. Side Item Cost + Avg. Milk Cost ): | G173: =IFERROR(B12+G159+A162+A166+A169+G164,0) -> 0 | H173: =SUM(H161:H172,H139:H158,H128:H137) -> 0 | I173: =SUM(I161:I172,I139:I158,I128:I137) -> 0
A175: Thursday
B176: Item | C176: Cost Per Purchase Unit OR Portion | D176: No. of Portions per Purchase Unit | E176: A La Carte Price Charged Per Portion | F176: No. of Portions Sold A La Carte | G176: Cost per Portion | H176: Total Nonprogram Food Cost | I176: Total Revenue per Item
B177: Recipes
A178: Entrée Items | C178: =IFERROR(VLOOKUP(B178,'Lunch Recipe Calculator'!$A$403:$C$414,2,FALSE),"") -> 0 | D178: 1 | G178: =IFERROR(IF(C178>0.01,C178/D178,0),0) -> 0 | H178: =G178*F178 -> 0 | I178: =IF(H178>0.01,E178*F178,0) -> 0
C179: =IFERROR(VLOOKUP(B179,'Lunch Recipe Calculator'!$A$403:$C$414,2,FALSE),"") -> 0 | D179: 1 | G179: =IFERROR(IF(C179>0.01,C179/D179,0),0) -> 0 | H179: =G179*F179 -> 0 | I179: =IF(H179>0.01,E179*F179,0) -> 0
C180: =IFERROR(VLOOKUP(B180,'Lunch Recipe Calculator'!$A$403:$C$414,2,FALSE),"") -> 0 | D180: 1 | G180: =IFERROR(IF(C180>0.01,C180/D180,0),0) -> 0 | H180: =G180*F180 -> 0 | I180: =IF(H180>0.01,E180*F180,0) -> 0
C181: =IFERROR(VLOOKUP(B181,'Lunch Recipe Calculator'!$A$403:$C$414,2,FALSE),"") -> 0 | D181: 1 | G181: 0 | H181: 0 | I181: 0
C182: =IFERROR(VLOOKUP(B182,'Lunch Recipe Calculator'!$A$403:$C$414,2,FALSE),"") -> 0 | D182: 1 | G182: 0 | H182: 0 | I182: 0
C183: =IFERROR(VLOOKUP(B183,'Lunch Recipe Calculator'!$A$403:$C$414,2,FALSE),"") -> 0 | D183: 1 | G183: 0 | H183: 0 | I183: 0
C184: =IFERROR(VLOOKUP(B184,'Lunch Recipe Calculator'!$A$403:$C$414,2,FALSE),"") -> 0 | D184: 1 | G184: 0 | H184: 0 | I184: 0
C185: =IFERROR(VLOOKUP(B185,'Lunch Recipe Calculator'!$A$403:$C$414,2,FALSE),"") -> 0 | D185: 1 | G185: 0 | H185: 0 | I185: 0
C186: =IFERROR(VLOOKUP(B186,'Lunch Recipe Calculator'!$A$403:$C$414,2,FALSE),"") -> 0 | D186: 1 | G186: 0 | H186: 0 | I186: 0
C187: =IFERROR(VLOOKUP(B187,'Lunch Recipe Calculator'!$A$403:$C$414,2,FALSE),"") -> 0 | D187: 1 | G187: 0 | H187: 0 | I187: 0
B188: Pre-Calculated and/or Pre-Packaged Entrees
C189: 0 | D189: =IF(ISBLANK(B189),0,1) -> 0 | G189: =IFERROR(IF(C189>0.01,C189/D189,0),0) -> 0 | H189: =G189*F189 -> 0 | I189: =IF(H189>0.01,E189*F189,0) -> 0
C190: 0 | D190: =IF(ISBLANK(B190),0,1) -> 0 | G190: 0 | H190: 0 | I190: 0
C191: 0 | D191: 0 | G191: 0 | H191: 0 | I191: 0
C192: 0 | D192: 0 | G192: 0 | H192: 0 | I192: 0
C193: 0 | D193: 0 | G193: 0 | H193: 0 | I193: 0
C194: 0 | D194: 0 | G194: 0 | H194: 0 | I194: 0
C195: 0 | D195: 0 | G195: 0 | H195: 0 | I195: 0
C196: 0 | D196: 0 | G196: 0 | H196: 0 | I196: 0
C197: 0 | D197: 0 | G197: 0 | H197: 0 | I197: 0
C198: 0 | D198: 0 | G198: 0 | H198: 0 | I198: 0
C199: 0 | D199: 0 | G199: 0 | H199: 0 | I199: 0
C200: 0 | D200: =IF(ISBLANK(B200),0,1) -> 0 | G200: 0 | H200: 0 | I200: 0
C201: 0 | D201: 0 | G201: 0 | H201: 0 | I201: 0
C202: 0 | D202: 0 | G202: 0 | H202: 0 | I202: 0
C203: 0 | D203: 0 | G203: 0 | H203: 0 | I203: 0
C204: 0 | D204: 0 | G204: 0 | H204: 0 | I204: 0
C205: 0 | D205: 0 | G205: 0 | H205: 0 | I205: 0
... 71 more rows

Sheet Lunch Menu 3 (hidden)
A1: Lunch Menu Costing Worksheet
A2: Select Grade Level:
A3: Sponsor Name: | B3: =IF('Instructions (START HERE)'!C2="","",'Instructions (START HERE)'!C2) -> 
A4: Week Selected for Review: | B4: ='Lunch Menu'!B4 -> 0 | C4: Site:
A6: Average Cost of Milk Calculator
A7: Types of Milk Served: | B7: Cost per Unit: | F7: Cost | G7: Revenue | H7: No. Served
A8: Non-fat Milk | B8: =Non_fat_Milk -> 0 | E8: Adult | F8: =SUM(H22:H23) -> 0 | G8: =SUM(I22:I23) -> 0
A9: Non-fat Flavored Milk | B9: =NonFatFlavor -> 0 | E9: Student | F9: =SUM(H16:H21) -> 0 | G9: =SUM(I16:I21) -> 0
A10: 1% Milk | B10: =Milk1 -> 0 | E10: Reim. Meals | F10: =SUM(H16,H19,H20,H21) -> 0 | G10: =SUM(I16,I19:I21) -> 0 | H10: =SUM(C16:G16,C19:G21) -> 0
A11: 1% Flavored Milk | B11: =Flav1 -> 0 | E11: Total a la carte | F11: =SUM(H73,H123,H173,H223,H273) -> 0 | G11: =SUM(I73,I123,I173,I223,I273) -> 0
A12: Average Milk Cost: | B12: ='Lunch Menu'!B12 ->  | E12: total adult meals sold | F12: =SUM(C22:G23) -> 0
E13: total a la carte entrée/side items sold | F13: =SUM(F28:F37,F39:F58,F61:F72,F78:F87,F89:F108,F111:F122,F128:F137,F139:F158,F161:F172,F178:F187,F189:F208,F211:F222,F228:F237,F239:F258,F261:F272) -> 0
A14: Program Food Revenue
A15: Reimbursement Rates + 8 Cents | C15: Monday Meal Counts | D15: Tuesday Meal Counts | E15: Wednesday Meal Counts | F15: Thursday Meal Counts | G15: Friday Meal Counts | H15: cost | I15: revenue
A16: Free | B16: =FreeLunchRates -> 0 | H16: =(C16*$G$73)+(D16*$G$123)+(E16*$G$173)+(F16*$G$223)+(G16*$G$273) -> 0 | I16: =SUM(C16:G16)*B16 -> 0
A17: Reduced | B17: =ReducedLunchRates -> 0
A18: Paid | B18: =PaidLunchRates -> 0
A19: Paid Student Price 1 | B19: =PaidStud1 -> 0 | H19: 0 | I19: =(SUM(C19:G19)*B19)+(SUM(C19:G19)*$B$18) -> 0
A20: Paid Student Price 2 | B20: =PaidStud2 -> 0 | H20: 0 | I20: =(SUM(C20:G20)*B20)+(SUM(C20:G20)*$B$18) -> 0
A21: Reduced Price | B21: =RP -> 0.4 | H21: 0 | I21: =(SUM(C21:G21)*B21)+(SUM(C21:G21)*$B$17) -> 0
A22: Adult Meal Price | B22: =AMP -> 0 | H22: =(C22*$G$73)+(D22*$G$123)+(E22*$G$173)+(F22*$G$223)+(G22*$G$273) -> 0 | I22: =SUM(C22:G22)*B22 -> 0
A23: Food Service Staff Meal Price | B23: =FSS -> 0 | H23: =(C23*$G$73)+(D23*$G$123)+(E23*$G$173)+(F23*$G$223)+(G23*$G$273) -> 0 | I23: =SUM(C23:G23)*B23 -> 0
A25: Monday
B26: Item | C26: Cost Per Purchase Unit OR Portion | D26: No. of Portions per Purchase Unit | E26: A La Carte Price Charged Per Portion | F26: No. of Portions Sold A La Carte | G26: Cost per Portion | H26: Total Nonprogram Food Cost | I26: Total Revenue per Item
B27: Recipes
A28: Entrée Items | C28: =IFERROR(VLOOKUP(B28,'Lunch Recipe Calculator'!$A$403:$C$414,2,FALSE),"") -> 0 | D28: 1 | G28: =IFERROR(IF(C28>0.01,C28/D28,0),0) -> 0 | H28: =G28*F28 -> 0 | I28: =IF(H28>0.01,E28*F28,0) -> 0
C29: =IFERROR(VLOOKUP(B29,'Lunch Recipe Calculator'!$A$403:$C$414,2,FALSE),"") -> 0 | D29: 1 | G29: =IFERROR(IF(C29>0.01,C29/D29,0),0) -> 0 | H29: =G29*F29 -> 0 | I29: =IF(H29>0.01,E29*F29,0) -> 0
C30: =IFERROR(VLOOKUP(B30,'Lunch Recipe Calculator'!$A$403:$C$414,2,FALSE),"") -> 0 | D30: 1 | G30: =IFERROR(IF(C30>0.01,C30/D30,0),0) -> 0 | H30: =G30*F30 -> 0 | I30: =IF(H30>0.01,E30*F30,0) -> 0
C31: =IFERROR(VLOOKUP(B31,'Lunch Recipe Calculator'!$A$403:$C$414,2,FALSE),"") -> 0 | D31: 1 | G31: 0 | H31: 0 | I31: 0
C32: =IFERROR(VLOOKUP(B32,'Lunch Recipe Calculator'!$A$403:$C$414,2,FALSE),"") -> 0 | D32: 1 | G32: 0 | H32: 0 | I32: 0
C33: =IFERROR(VLOOKUP(B33,'Lunch Recipe Calculator'!$A$403:$C$414,2,FALSE),"") -> 0 | D33: 1 | G33: 0 | H33: 0 | I33: 0
C34: =IFERROR(VLOOKUP(B34,'Lunch Recipe Calculator'!$A$403:$C$414,2,FALSE),"") -> 0 | D34: 1 | G34: 0 | H34: 0 | I34: 0
C35: =IFERROR(VLOOKUP(B35,'Lunch Recipe Calculator'!$A$403:$C$414,2,FALSE),"") -> 0 | D35: 1 | G35: 0 | H35: 0 | I35: 0
C36: =IFERROR(VLOOKUP(B36,'Lunch Recipe Calculator'!$A$403:$C$414,2,FALSE),"") -> 0 | D36: 1 | G36: 0 | H36: 0 | I36: 0
C37: =IFERROR(VLOOKUP(B37,'Lunch Recipe Calculator'!$A$403:$C$414,2,FALSE),"") -> 0 | D37: 1 | G37: 0 | H37: 0 | I37: 0
B38: Pre-Calculated and/or Pre-Packaged Entrees
C39: 0 | D39: =IF(ISBLANK(B39),0,1) -> 0 | G39: =IFERROR(IF(C39>0.01,C39/D39,0),0) -> 0 | H39: =G39*F39 -> 0 | I39: =IF(H39>0.01,E39*F39,0) -> 0
C40: 0 | D40: =IF(ISBLANK(B40),0,1) -> 0 | G40: 0 | H40: 0 | I40: 0
C41: 0 | D41: 0 | G41: 0 | H41: 0 | I41: 0
C42: 0 | D42: 0 | G42: 0 | H42: 0 | I42: 0
C43: 0 | D43: 0 | G43: 0 | H43: 0 | I43: 0
C44: 0 | D44: 0 | G44: 0 | H44: 0 | I44: 0
C45: 0 | D45: 0 | G45: 0 | H45: 0 | I45: 0
C46: 0 | D46: 0 | G46: 0 | H46: 0 | I46: 0
C47: 0 | D47: 0 | G47: 0 | H47: 0 | I47: 0
C48: 0 | D48: 0 | G48: 0 | H48: 0 | I48: 0
C49: 0 | D49: 0 | G49: 0 | H49: 0 | I49: 0
C50: 0 | D50: =IF(ISBLANK(B50),0,1) -> 0 | G50: 0 | H50: 0 | I50: 0
C51: 0 | D51: 0 | G51: 0 | H51: 0 | I51: 0
C52: 0 | D52: 0 | G52: 0 | H52: 0 | I52: 0
C53: 0 | D53: 0 | G53: 0 | H53: 0 | I53: 0
C54: 0 | D54: 0 | G54: 0 | H54: 0 | I54: 0
C55: 0 | D55: 0 | G55: 0 | H55: 0 | I55: 0
C56: 0 | D56: 0 | G56: 0 | H56: 0 | I56: 0
C57: 0 | D57: 0 | G57: 0 | H57: 0 | I57: 0
C58: 0 | D58: 0 | G58: 0 | H58: 0 | I58: 0
F59: Average Entrée Cost: | G59: =IFERROR(AVERAGEIF(G28:G58,">0"),0) -> 0
B60: Item | C60: Cost Per Purchase Unit OR Portion | D60: No. of Portions per Purchase Unit | E60: A La Carte Price Charged Per Portion | F60: No. of Portions Sold A La Carte | G60: Cost per Portion | H60: Total Nonprogram Food Cost | I60: Total Revenue per Item
A61: Fruit Sides | G61: =IFERROR(IF(C61>0.01,C61/D61,0),0) -> 0 | H61: =G61*F61 -> 0 | I61: =IF(H61>0.01,E61*F61,0) -> 0
A62: =IFERROR(AVERAGEIF(G61:G63,">0"),0) -> 0 | G62: 0 | H62: 0 | I62: 0
G63: 0 | H63: 0 | I63: 0
A64: Salad Bar | C64: =IFERROR(VLOOKUP(B64,'Fruit & Veg Bar'!A:G,3,FALSE),"") ->  | D64: =IF(B64="-","",1) -> 1 | G64: 0 | H64: 0 | I64: 0
A65: Vegetable Sides | G65: 0 | H65: 0 | I65: 0
A66: =IFERROR(AVERAGEIF(G65:G67,">0"),0) -> 0 | G66: 0 | H66: 0 | I66: 0
G67: 0 | H67: 0 | I67: 0
A68: Grain/Other Sides | G68: 0 | H68: 0 | I68: 0
A69: =IFERROR(AVERAGEIF(G68:G72,">0"),0) -> 0 | G69: 0 | H69: 0 | I69: 0
G70: 0 | H70: 0 | I70: 0
G71: 0 | H71: 0 | I71: 0
G72: 0 | H72: 0 | I72: 0
F73: Total Meal Cost (Avg. Entrée Cost + Avg. Side Item Cost + Avg. Milk Cost ): | G73: =IFERROR(B12+G59+A62+A66+A69+G64,0) -> 0 | H73: =SUM(H61:H72,H39:H58,H28:H37) -> 0 | I73: =SUM(I61:I72,I39:I58,I28:I37) -> 0
A75: Tuesday
B76: Item | C76: Cost Per Purchase Unit OR Portion | D76: No. of Portions per Purchase Unit | E76: A La Carte Price Charged Per Portion | F76: No. of Portions Sold A La Carte | G76: Cost per Portion | H76: Total Nonprogram Food Cost | I76: Total Revenue per Item
B77: Recipes
A78: Entrée Items | C78: =IFERROR(VLOOKUP(B78,'Lunch Recipe Calculator'!$A$403:$C$414,2,FALSE),"") -> 0 | D78: 1 | G78: =IFERROR(IF(C78>0.01,C78/D78,0),0) -> 0 | H78: =G78*F78 -> 0 | I78: =IF(H78>0.01,E78*F78,0) -> 0
C79: =IFERROR(VLOOKUP(B79,'Lunch Recipe Calculator'!$A$403:$C$414,2,FALSE),"") -> 0 | D79: 1 | G79: =IFERROR(IF(C79>0.01,C79/D79,0),0) -> 0 | H79: =G79*F79 -> 0 | I79: =IF(H79>0.01,E79*F79,0) -> 0
C80: =IFERROR(VLOOKUP(B80,'Lunch Recipe Calculator'!$A$403:$C$414,2,FALSE),"") -> 0 | D80: 1 | G80: =IFERROR(IF(C80>0.01,C80/D80,0),0) -> 0 | H80: =G80*F80 -> 0 | I80: =IF(H80>0.01,E80*F80,0) -> 0
C81: =IFERROR(VLOOKUP(B81,'Lunch Recipe Calculator'!$A$403:$C$414,2,FALSE),"") -> 0 | D81: 1 | G81: 0 | H81: 0 | I81: 0
C82: =IFERROR(VLOOKUP(B82,'Lunch Recipe Calculator'!$A$403:$C$414,2,FALSE),"") -> 0 | D82: 1 | G82: 0 | H82: 0 | I82: 0
C83: =IFERROR(VLOOKUP(B83,'Lunch Recipe Calculator'!$A$403:$C$414,2,FALSE),"") -> 0 | D83: 1 | G83: 0 | H83: 0 | I83: 0
C84: =IFERROR(VLOOKUP(B84,'Lunch Recipe Calculator'!$A$403:$C$414,2,FALSE),"") -> 0 | D84: 1 | G84: 0 | H84: 0 | I84: 0
C85: =IFERROR(VLOOKUP(B85,'Lunch Recipe Calculator'!$A$403:$C$414,2,FALSE),"") -> 0 | D85: 1 | G85: 0 | H85: 0 | I85: 0
C86: =IFERROR(VLOOKUP(B86,'Lunch Recipe Calculator'!$A$403:$C$414,2,FALSE),"") -> 0 | D86: 1 | G86: 0 | H86: 0 | I86: 0
C87: =IFERROR(VLOOKUP(B87,'Lunch Recipe Calculator'!$A$403:$C$414,2,FALSE),"") -> 0 | D87: 1 | G87: 0 | H87: 0 | I87: 0
B88: Pre-Calculated and/or Pre-Packaged Entrees
C89: 0 | D89: =IF(ISBLANK(B89),0,1) -> 0 | G89: =IFERROR(IF(C89>0.01,C89/D89,0),0) -> 0 | H89: =G89*F89 -> 0 | I89: =IF(H89>0.01,E89*F89,0) -> 0
C90: 0 | D90: =IF(ISBLANK(B90),0,1) -> 0 | G90: 0 | H90: 0 | I90: 0
C91: 0 | D91: 0 | G91: 0 | H91: 0 | I91: 0
C92: 0 | D92: 0 | G92: 0 | H92: 0 | I92: 0
C93: 0 | D93: 0 | G93: 0 | H93: 0 | I93: 0
C94: 0 | D94: 0 | G94: 0 | H94: 0 | I94: 0
C95: 0 | D95: 0 | G95: 0 | H95: 0 | I95: 0
C96: 0 | D96: 0 | G96: 0 | H96: 0 | I96: 0
C97: 0 | D97: 0 | G97: 0 | H97: 0 | I97: 0
C98: 0 | D98: 0 | G98: 0 | H98: 0 | I98: 0
C99: 0 | D99: 0 | G99: 0 | H99: 0 | I99: 0
C100: 0 | D100: =IF(ISBLANK(B100),0,1) -> 0 | G100: 0 | H100: 0 | I100: 0
C101: 0 | D101: 0 | G101: 0 | H101: 0 | I101: 0
C102: 0 | D102: 0 | G102: 0 | H102: 0 | I102: 0
C103: 0 | D103: 0 | G103: 0 | H103: 0 | I103: 0
C104: 0 | D104: 0 | G104: 0 | H104: 0 | I104: 0
C105: 0 | D105: 0 | G105: 0 | H105: 0 | I105: 0
C106: 0 | D106: 0 | G106: 0 | H106: 0 | I106: 0
C107: 0 | D107: 0 | G107: 0 | H107: 0 | I107: 0
C108: 0 | D108: 0 | G108: 0 | H108: 0 | I108: 0
F109: Average Entrée Cost: | G109: =IFERROR(AVERAGEIF(G78:G108,">0"),0) -> 0
B110: Item | C110: Cost Per Purchase Unit OR Portion | D110: No. of Portions per Purchase Unit | E110: A La Carte Price Charged Per Portion | F110: No. of Portions Sold A La Carte | G110: Cost per Portion | H110: Total Nonprogram Food Cost | I110: Total Revenue per Item
A111: Fruit Sides | G111: =IFERROR(IF(C111>0.01,C111/D111,0),0) -> 0 | H111: =G111*F111 -> 0 | I111: =IF(H111>0.01,E111*F111,0) -> 0
A112: =IFERROR(AVERAGEIF(G111:G113,"<>0"),0) -> 0 | G112: 0 | H112: 0 | I112: 0
G113: 0 | H113: 0 | I113: 0
A114: Salad Bar | B114: - | C114: =IFERROR(VLOOKUP(B114,'Fruit & Veg Bar'!A:G,3,FALSE),"") ->  | D114: 1 | G114: 0 | H114: 0 | I114: 0
A115: Vegetable Sides | G115: 0 | H115: 0 | I115: 0
A116: =IFERROR(AVERAGEIF(G115:G117,">0"),0) -> 0 | G116: 0 | H116: 0 | I116: 0
G117: 0 | H117: 0 | I117: 0
A118: Grain/Other Sides | G118: 0 | H118: 0 | I118: 0
A119: =IFERROR(AVERAGEIF(G118:G122,"<>0"),0) -> 0 | G119: 0 | H119: 0 | I119: 0
G120: 0 | H120: 0 | I120: 0
G121: 0 | H121: 0 | I121: 0
G122: 0 | H122: 0 | I122: 0
F123: Total Meal Cost (Avg. Entrée Cost + Avg. Side Item Cost + Avg. Milk Cost ): | G123: =IFERROR(B12+G109+A112+A116+A119+G114,0) -> 0 | H123: =SUM(H111:H122,H89:H108,H78:H87) -> 0 | I123: =SUM(I111:I122,I89:I108,I78:I87) -> 0
A125: Wednesday
B126: Item | C126: Cost Per Purchase Unit OR Portion | D126: No. of Portions per Purchase Unit | E126: A La Carte Price Charged Per Portion | F126: No. of Portions Sold A La Carte | G126: Cost per Portion | H126: Total Nonprogram Food Cost | I126: Total Revenue per Item
B127: Recipes
A128: Entrée Items | C128: =IFERROR(VLOOKUP(B128,'Lunch Recipe Calculator'!$A$403:$C$414,2,FALSE),"") -> 0 | D128: 1 | G128: =IFERROR(IF(C128>0.01,C128/D128,0),0) -> 0 | H128: =G128*F128 -> 0 | I128: =IF(H128>0.01,E128*F128,0) -> 0
C129: =IFERROR(VLOOKUP(B129,'Lunch Recipe Calculator'!$A$403:$C$414,2,FALSE),"") -> 0 | D129: 1 | G129: =IFERROR(IF(C129>0.01,C129/D129,0),0) -> 0 | H129: =G129*F129 -> 0 | I129: =IF(H129>0.01,E129*F129,0) -> 0
C130: =IFERROR(VLOOKUP(B130,'Lunch Recipe Calculator'!$A$403:$C$414,2,FALSE),"") -> 0 | D130: 1 | G130: =IFERROR(IF(C130>0.01,C130/D130,0),0) -> 0 | H130: =G130*F130 -> 0 | I130: =IF(H130>0.01,E130*F130,0) -> 0
C131: =IFERROR(VLOOKUP(B131,'Lunch Recipe Calculator'!$A$403:$C$414,2,FALSE),"") -> 0 | D131: 1 | G131: 0 | H131: 0 | I131: 0
C132: =IFERROR(VLOOKUP(B132,'Lunch Recipe Calculator'!$A$403:$C$414,2,FALSE),"") -> 0 | D132: 1 | G132: 0 | H132: 0 | I132: 0
C133: =IFERROR(VLOOKUP(B133,'Lunch Recipe Calculator'!$A$403:$C$414,2,FALSE),"") -> 0 | D133: 1 | G133: 0 | H133: 0 | I133: 0
C134: =IFERROR(VLOOKUP(B134,'Lunch Recipe Calculator'!$A$403:$C$414,2,FALSE),"") -> 0 | D134: 1 | G134: 0 | H134: 0 | I134: 0
C135: =IFERROR(VLOOKUP(B135,'Lunch Recipe Calculator'!$A$403:$C$414,2,FALSE),"") -> 0 | D135: 1 | G135: 0 | H135: 0 | I135: 0
C136: =IFERROR(VLOOKUP(B136,'Lunch Recipe Calculator'!$A$403:$C$414,2,FALSE),"") -> 0 | D136: 1 | G136: 0 | H136: 0 | I136: 0
C137: =IFERROR(VLOOKUP(B137,'Lunch Recipe Calculator'!$A$403:$C$414,2,FALSE),"") -> 0 | D137: 1 | G137: 0 | H137: 0 | I137: 0
B138: Pre-Calculated and/or Pre-Packaged Entrees
C139: 0 | D139: =IF(ISBLANK(B139),0,1) -> 0 | G139: =IFERROR(IF(C139>0.01,C139/D139,0),0) -> 0 | H139: =G139*F139 -> 0 | I139: =IF(H139>0.01,E139*F139,0) -> 0
C140: 0 | D140: =IF(ISBLANK(B140),0,1) -> 0 | G140: 0 | H140: 0 | I140: 0
C141: 0 | D141: 0 | G141: 0 | H141: 0 | I141: 0
C142: 0 | D142: 0 | G142: 0 | H142: 0 | I142: 0
C143: 0 | D143: 0 | G143: 0 | H143: 0 | I143: 0
C144: 0 | D144: 0 | G144: 0 | H144: 0 | I144: 0
C145: 0 | D145: 0 | G145: 0 | H145: 0 | I145: 0
C146: 0 | D146: 0 | G146: 0 | H146: 0 | I146: 0
C147: 0 | D147: 0 | G147: 0 | H147: 0 | I147: 0
C148: 0 | D148: 0 | G148: 0 | H148: 0 | I148: 0
C149: 0 | D149: 0 | G149: 0 | H149: 0 | I149: 0
C150: 0 | D150: =IF(ISBLANK(B150),0,1) -> 0 | G150: 0 | H150: 0 | I150: 0
C151: 0 | D151: 0 | G151: 0 | H151: 0 | I151: 0
C152: 0 | D152: 0 | G152: 0 | H152: 0 | I152: 0
C153: 0 | D153: 0 | G153: 0 | H153: 0 | I153: 0
C154: 0 | D154: 0 | G154: 0 | H154: 0 | I154: 0
C155: 0 | D155: 0 | G155: 0 | H155: 0 | I155: 0
C156: 0 | D156: 0 | G156: 0 | H156: 0 | I156: 0
C157: 0 | D157: 0 | G157: 0 | H157: 0 | I157: 0
C158: 0 | D158: 0 | G158: 0 | H158: 0 | I158: 0
F159: Average Entrée Cost: | G159: =IFERROR(AVERAGEIF(G128:G158,">0"),0) -> 0
B160: Item | C160: Cost Per Purchase Unit OR Portion | D160: No. of Portions per Purchase Unit | E160: A La Carte Price Charged Per Portion | F160: No. of Portions Sold A La Carte | G160: Cost per Portion | H160: Total Nonprogram Food Cost | I160: Total Revenue per Item
A161: Fruit Sides | G161: =IFERROR(IF(C161>0.01,C161/D161,0),0) -> 0 | H161: =G161*F161 -> 0 | I161: =IF(H161>0.01,E161*F161,0) -> 0
A162: =IFERROR(AVERAGEIF(G161:G163,">0"),0) -> 0 | G162: 0 | H162: 0 | I162: 0
G163: 0 | H163: 0 | I163: 0
A164: Salad Bar | B164: - | C164: =IFERROR(VLOOKUP(B164,'Fruit & Veg Bar'!A:G,3,FALSE),"") ->  | D164: 1 | G164: 0 | H164: 0 | I164: 0
A165: Vegetable Sides | G165: 0 | H165: 0 | I165: 0
A166: =IFERROR(AVERAGEIF(G165:G167,">0"),0) -> 0 | G166: 0 | H166: 0 | I166: 0
G167: 0 | H167: 0 | I167: 0
A168: Grain/Other Sides | G168: 0 | H168: 0 | I168: 0
A169: =IFERROR(AVERAGEIF(G168:G172,">0"),0) -> 0 | G169: 0 | H169: 0 | I169: 0
G170: 0 | H170: 0 | I170: 0
G171: 0 | H171: 0 | I171: 0
G172: 0 | H172: 0 | I172: 0
F173: Total Meal Cost (Avg. Entrée Cost + Avg. Side Item Cost + Avg. Milk Cost ): | G173: =IFERROR(B12+G159+A162+A166+A169,0) -> 0 | H173: =SUM(H161:H172,H139:H158,H128:H137) -> 0 | I173: =SUM(I161:I172,I139:I158,I128:I137) -> 0
A175: Thursday
B176: Item | C176: Cost Per Purchase Unit OR Portion | D176: No. of Portions per Purchase Unit | E176: A La Carte Price Charged Per Portion | F176: No. of Portions Sold A La Carte | G176: Cost per Portion | H176: Total Nonprogram Food Cost | I176: Total Revenue per Item
B177: Recipes
A178: Entrée Items | C178: =IFERROR(VLOOKUP(B178,'Lunch Recipe Calculator'!$A$403:$C$414,2,FALSE),"") -> 0 | D178: 1 | G178: =IFERROR(IF(C178>0.01,C178/D178,0),0) -> 0 | H178: =G178*F178 -> 0 | I178: =IF(H178>0.01,E178*F178,0) -> 0
C179: =IFERROR(VLOOKUP(B179,'Lunch Recipe Calculator'!$A$403:$C$414,2,FALSE),"") -> 0 | D179: 1 | G179: =IFERROR(IF(C179>0.01,C179/D179,0),0) -> 0 | H179: =G179*F179 -> 0 | I179: =IF(H179>0.01,E179*F179,0) -> 0
C180: =IFERROR(VLOOKUP(B180,'Lunch Recipe Calculator'!$A$403:$C$414,2,FALSE),"") -> 0 | D180: 1 | G180: =IFERROR(IF(C180>0.01,C180/D180,0),0) -> 0 | H180: =G180*F180 -> 0 | I180: =IF(H180>0.01,E180*F180,0) -> 0
C181: =IFERROR(VLOOKUP(B181,'Lunch Recipe Calculator'!$A$403:$C$414,2,FALSE),"") -> 0 | D181: 1 | G181: 0 | H181: 0 | I181: 0
C182: =IFERROR(VLOOKUP(B182,'Lunch Recipe Calculator'!$A$403:$C$414,2,FALSE),"") -> 0 | D182: 1 | G182: 0 | H182: 0 | I182: 0
C183: =IFERROR(VLOOKUP(B183,'Lunch Recipe Calculator'!$A$403:$C$414,2,FALSE),"") -> 0 | D183: 1 | G183: 0 | H183: 0 | I183: 0
C184: =IFERROR(VLOOKUP(B184,'Lunch Recipe Calculator'!$A$403:$C$414,2,FALSE),"") -> 0 | D184: 1 | G184: 0 | H184: 0 | I184: 0
C185: =IFERROR(VLOOKUP(B185,'Lunch Recipe Calculator'!$A$403:$C$414,2,FALSE),"") -> 0 | D185: 1 | G185: 0 | H185: 0 | I185: 0
C186: =IFERROR(VLOOKUP(B187,'Lunch Recipe Calculator'!$A$403:$C$414,2,FALSE),"") -> 0 | D186: 1 | G186: 0 | H186: 0 | I186: 0
C187: =IFERROR(VLOOKUP(#REF!,'Lunch Recipe Calculator'!$A$403:$C$414,2,FALSE),"") ->  | D187: 1 | G187: 0 | H187: 0 | I187: 0
B188: Pre-Calculated and/or Pre-Packaged Entrees
C189: 0 | D189: =IF(ISBLANK(B189),0,1) -> 0 | G189: =IFERROR(IF(C189>0.01,C189/D189,0),0) -> 0 | H189: =G189*F189 -> 0 | I189: =IF(H189>0.01,E189*F189,0) -> 0
C190: 0 | D190: =IF(ISBLANK(B190),0,1) -> 0 | G190: 0 | H190: 0 | I190: 0
C191: 0 | D191: 0 | G191: 0 | H191: 0 | I191: 0
C192: 0 | D192: 0 | G192: 0 | H192: 0 | I192: 0
C193: 0 | D193: 0 | G193: 0 | H193: 0 | I193: 0
C194: 0 | D194: 0 | G194: 0 | H194: 0 | I194: 0
C195: 0 | D195: 0 | G195: 0 | H195: 0 | I195: 0
C196: 0 | D196: 0 | G196: 0 | H196: 0 | I196: 0
C197: 0 | D197: 0 | G197: 0 | H197: 0 | I197: 0
C198: 0 | D198: 0 | G198: 0 | H198: 0 | I198: 0
C199: 0 | D199: 0 | G199: 0 | H199: 0 | I199: 0
C200: 0 | D200: =IF(ISBLANK(B200),0,1) -> 0 | G200: 0 | H200: 0 | I200: 0
C201: 0 | D201: 0 | G201: 0 | H201: 0 | I201: 0
C202: 0 | D202: 0 | G202: 0 | H202: 0 | I202: 0
C203: 0 | D203: 0 | G203: 0 | H203: 0 | I203: 0
C204: 0 | D204: 0 | G204: 0 | H204: 0 | I204: 0
C205: 0 | D205: 0 | G205: 0 | H205: 0 | I205: 0
... 71 more rows

Sheet Lunch Menu 4 (hidden)
A1: Lunch Menu Costing Worksheet
A2: Select Grade Level:
A3: Sponsor Name: | B3: =IF('Instructions (START HERE)'!C2="","",'Instructions (START HERE)'!C2) -> 
A4: Week Selected for Review: | B4: ='Lunch Menu'!B4 -> 0 | C4: Site:
A6: Average Cost of Milk Calculator
A7: Types of Milk Served: | B7: Cost per Unit: | F7: Cost | G7: Revenue | H7: No. Served
A8: Non-fat Milk | B8: =Non_fat_Milk -> 0 | E8: Adult | F8: =SUM(H22:H23) -> 0 | G8: =SUM(I22:I23) -> 0
A9: Non-fat Flavored Milk | B9: =NonFatFlavor -> 0 | E9: Student | F9: =SUM(H16:H21) -> 0 | G9: =SUM(I16:I21) -> 0
A10: 1% Milk | B10: =Milk1 -> 0 | E10: Reim. Meals | F10: =SUM(H16,H19,H20,H21) -> 0 | G10: =SUM(I16,I19:I21) -> 0 | H10: =SUM(C16:G16,C19:G21) -> 0
A11: 1% Flavored Milk | B11: =Flav1 -> 0 | E11: Total a la carte | F11: =SUM(H73,H123,H173,H223,H273) -> 0 | G11: =SUM(I73,I123,I173,I223,I273) -> 0
A12: Average Milk Cost: | B12: ='Lunch Menu'!B12 ->  | E12: total adult meals sold | F12: =SUM(C22:G23) -> 0
E13: total a la carte entrée/side items sold | F13: =SUM(F28:F37,F39:F58,F61:F72,F78:F87,F89:F108,F111:F122,F128:F137,F139:F158,F161:F172,F178:F187,F189:F208,F211:F222,F228:F237,F239:F258,F261:F272) -> 0
A14: Program Food Revenue
A15: Reimbursement Rates + 8 Cents | C15: Monday Meal Counts | D15: Tuesday Meal Counts | E15: Wednesday Meal Counts | F15: Thursday Meal Counts | G15: Friday Meal Counts | H15: cost | I15: revenue
A16: Free | B16: =FreeLunchRates -> 0 | H16: =(C16*$G$73)+(D16*$G$123)+(E16*$G$173)+(F16*$G$223)+(G16*$G$273) -> 0 | I16: =SUM(C16:G16)*B16 -> 0
A17: Reduced | B17: =ReducedLunchRates -> 0
A18: Paid | B18: =PaidLunchRates -> 0
A19: Paid Student Price 1 | B19: 0 | H19: 0 | I19: =(SUM(C19:G19)*B19)+(SUM(C19:G19)*$B$18) -> 0
A20: Paid Student Price 2 | B20: =PaidStud2 -> 0 | H20: 0 | I20: =(SUM(C20:G20)*B20)+(SUM(C20:G20)*$B$18) -> 0
A21: Reduced Price | B21: =RP -> 0.4 | H21: 0 | I21: =(SUM(C21:G21)*B21)+(SUM(C21:G21)*$B$17) -> 0
A22: Adult Meal Price | B22: =AMP -> 0 | H22: =(C22*$G$73)+(D22*$G$123)+(E22*$G$173)+(F22*$G$223)+(G22*$G$273) -> 0 | I22: =SUM(C22:G22)*B22 -> 0
A23: Food Service Staff Meal Price | B23: =FSS -> 0 | H23: =(C23*$G$73)+(D23*$G$123)+(E23*$G$173)+(F23*$G$223)+(G23*$G$273) -> 0 | I23: =SUM(C23:G23)*B23 -> 0
A25: Monday
B26: Item | C26: Cost Per Purchase Unit OR Portion | D26: No. of Portions per Purchase Unit | E26: A La Carte Price Charged Per Portion | F26: No. of Portions Sold A La Carte | G26: Cost per Portion | H26: Total Nonprogram Food Cost | I26: Total Revenue per Item
B27: Recipes
A28: Entrée Items | C28: =IFERROR(VLOOKUP(B28,'Lunch Recipe Calculator'!$A$403:$C$414,2,FALSE),"") -> 0 | D28: 1 | G28: =IFERROR(IF(C28>0.01,C28/D28,0),0) -> 0 | H28: =G28*F28 -> 0 | I28: =IF(H28>0.01,E28*F28,0) -> 0
C29: =IFERROR(VLOOKUP(B29,'Lunch Recipe Calculator'!$A$403:$C$414,2,FALSE),"") -> 0 | D29: 1 | G29: =IFERROR(IF(C29>0.01,C29/D29,0),0) -> 0 | H29: =G29*F29 -> 0 | I29: =IF(H29>0.01,E29*F29,0) -> 0
C30: =IFERROR(VLOOKUP(B30,'Lunch Recipe Calculator'!$A$403:$C$414,2,FALSE),"") -> 0 | D30: 1 | G30: =IFERROR(IF(C30>0.01,C30/D30,0),0) -> 0 | H30: =G30*F30 -> 0 | I30: =IF(H30>0.01,E30*F30,0) -> 0
C31: =IFERROR(VLOOKUP(B31,'Lunch Recipe Calculator'!$A$403:$C$414,2,FALSE),"") -> 0 | D31: 1 | G31: 0 | H31: 0 | I31: 0
C32: =IFERROR(VLOOKUP(B32,'Lunch Recipe Calculator'!$A$403:$C$414,2,FALSE),"") -> 0 | D32: 1 | G32: 0 | H32: 0 | I32: 0
C33: =IFERROR(VLOOKUP(B33,'Lunch Recipe Calculator'!$A$403:$C$414,2,FALSE),"") -> 0 | D33: 1 | G33: 0 | H33: 0 | I33: 0
C34: =IFERROR(VLOOKUP(B34,'Lunch Recipe Calculator'!$A$403:$C$414,2,FALSE),"") -> 0 | D34: 1 | G34: 0 | H34: 0 | I34: 0
C35: =IFERROR(VLOOKUP(B35,'Lunch Recipe Calculator'!$A$403:$C$414,2,FALSE),"") -> 0 | D35: 1 | G35: 0 | H35: 0 | I35: 0
C36: =IFERROR(VLOOKUP(B36,'Lunch Recipe Calculator'!$A$403:$C$414,2,FALSE),"") -> 0 | D36: 1 | G36: 0 | H36: 0 | I36: 0
C37: =IFERROR(VLOOKUP(B37,'Lunch Recipe Calculator'!$A$403:$C$414,2,FALSE),"") -> 0 | D37: 1 | G37: 0 | H37: 0 | I37: 0
B38: Pre-Calculated and/or Pre-Packaged Entrees
C39: 0 | D39: =IF(ISBLANK(B39),0,1) -> 0 | G39: =IFERROR(IF(C39>0.01,C39/D39,0),0) -> 0 | H39: =G39*F39 -> 0 | I39: =IF(H39>0.01,E39*F39,0) -> 0
C40: 0 | D40: =IF(ISBLANK(B40),0,1) -> 0 | G40: 0 | H40: 0 | I40: 0
C41: 0 | D41: 0 | G41: 0 | H41: 0 | I41: 0
C42: 0 | D42: 0 | G42: 0 | H42: 0 | I42: 0
C43: 0 | D43: 0 | G43: 0 | H43: 0 | I43: 0
C44: 0 | D44: 0 | G44: 0 | H44: 0 | I44: 0
C45: 0 | D45: 0 | G45: 0 | H45: 0 | I45: 0
C46: 0 | D46: 0 | G46: 0 | H46: 0 | I46: 0
C47: 0 | D47: 0 | G47: 0 | H47: 0 | I47: 0
C48: 0 | D48: 0 | G48: 0 | H48: 0 | I48: 0
C49: 0 | D49: 0 | G49: 0 | H49: 0 | I49: 0
C50: 0 | D50: 0 | G50: 0 | H50: 0 | I50: 0
C51: 0 | D51: 0 | G51: 0 | H51: 0 | I51: 0
C52: 0 | D52: 0 | G52: 0 | H52: 0 | I52: 0
C53: 0 | D53: 0 | G53: 0 | H53: 0 | I53: 0
C54: 0 | D54: 0 | G54: 0 | H54: 0 | I54: 0
C55: 0 | D55: 0 | G55: 0 | H55: 0 | I55: 0
C56: 0 | D56: 0 | G56: 0 | H56: 0 | I56: 0
C57: 0 | D57: 0 | G57: 0 | H57: 0 | I57: 0
C58: 0 | D58: 0 | G58: 0 | H58: 0 | I58: 0
F59: Average Entrée Cost: | G59: =IFERROR(AVERAGEIF(G28:G58,">0"),0) -> 0
B60: Item | C60: Cost Per Purchase Unit OR Portion | D60: No. of Portions per Purchase Unit | E60: A La Carte Price Charged Per Portion | F60: No. of Portions Sold A La Carte | G60: Cost per Portion | H60: Total Nonprogram Food Cost | I60: Total Revenue per Item
A61: Fruit Sides | G61: =IFERROR(IF(C61>0.01,C61/D61,0),0) -> 0 | H61: =G61*F61 -> 0 | I61: =IF(H61>0.01,E61*F61,0) -> 0
A62: =IFERROR(AVERAGEIF(G61:G63,">0"),0) -> 0 | G62: 0 | H62: 0 | I62: 0
G63: 0 | H63: 0 | I63: 0
A64: Salad Bar | B64: - | C64: =IFERROR(VLOOKUP(B64,'Fruit & Veg Bar'!A:G,3,FALSE),"") ->  | D64: 1 | G64: 0 | H64: 0 | I64: 0
A65: Vegetable Sides | G65: 0 | H65: 0 | I65: 0
A66: =IFERROR(AVERAGEIF(G65:G67,">0"),0) -> 0 | G66: 0 | H66: 0 | I66: 0
G67: 0 | H67: 0 | I67: 0
A68: Grain/Other Sides | G68: 0 | H68: 0 | I68: 0
A69: =IFERROR(AVERAGEIF(G68:G72,">0"),0) -> 0 | G69: 0 | H69: 0 | I69: 0
G70: 0 | H70: 0 | I70: 0
G71: 0 | H71: 0 | I71: 0
G72: 0 | H72: 0 | I72: 0
F73: Total Meal Cost (Avg. Entrée Cost + Avg. Side Item Cost + Avg. Milk Cost ): | G73: =IFERROR(B12+G59+A62+A66+A69,0) -> 0 | H73: =SUM(H61:H72,H39:H58,H28:H37) -> 0 | I73: =SUM(I61:I72,I39:I58,I28:I37) -> 0
A75: Tuesday
B76: Item | C76: Cost Per Purchase Unit OR Portion | D76: No. of Portions per Purchase Unit | E76: A La Carte Price Charged Per Portion | F76: No. of Portions Sold A La Carte | G76: Cost per Portion | H76: Total Nonprogram Food Cost | I76: Total Revenue per Item
B77: Recipes
A78: Entrée Items | C78: =IFERROR(VLOOKUP(B78,'Lunch Recipe Calculator'!$A$403:$C$414,2,FALSE),"") -> 0 | D78: 1 | G78: =IFERROR(IF(C78>0.01,C78/D78,0),0) -> 0 | H78: =G78*F78 -> 0 | I78: =IF(H78>0.01,E78*F78,0) -> 0
C79: =IFERROR(VLOOKUP(B79,'Lunch Recipe Calculator'!$A$403:$C$414,2,FALSE),"") -> 0 | D79: 1 | G79: =IFERROR(IF(C79>0.01,C79/D79,0),0) -> 0 | H79: =G79*F79 -> 0 | I79: =IF(H79>0.01,E79*F79,0) -> 0
C80: =IFERROR(VLOOKUP(B80,'Lunch Recipe Calculator'!$A$403:$C$414,2,FALSE),"") -> 0 | D80: 1 | G80: =IFERROR(IF(C80>0.01,C80/D80,0),0) -> 0 | H80: =G80*F80 -> 0 | I80: =IF(H80>0.01,E80*F80,0) -> 0
C81: =IFERROR(VLOOKUP(B81,'Lunch Recipe Calculator'!$A$403:$C$414,2,FALSE),"") -> 0 | D81: 1 | G81: 0 | H81: 0 | I81: 0
C82: =IFERROR(VLOOKUP(B82,'Lunch Recipe Calculator'!$A$403:$C$414,2,FALSE),"") -> 0 | D82: 1 | G82: 0 | H82: 0 | I82: 0
C83: =IFERROR(VLOOKUP(B83,'Lunch Recipe Calculator'!$A$403:$C$414,2,FALSE),"") -> 0 | D83: 1 | G83: 0 | H83: 0 | I83: 0
C84: =IFERROR(VLOOKUP(B84,'Lunch Recipe Calculator'!$A$403:$C$414,2,FALSE),"") -> 0 | D84: 1 | G84: 0 | H84: 0 | I84: 0
C85: =IFERROR(VLOOKUP(B85,'Lunch Recipe Calculator'!$A$403:$C$414,2,FALSE),"") -> 0 | D85: 1 | G85: 0 | H85: 0 | I85: 0
C86: =IFERROR(VLOOKUP(B86,'Lunch Recipe Calculator'!$A$403:$C$414,2,FALSE),"") -> 0 | D86: 1 | G86: 0 | H86: 0 | I86: 0
C87: =IFERROR(VLOOKUP(B87,'Lunch Recipe Calculator'!$A$403:$C$414,2,FALSE),"") -> 0 | D87: 1 | G87: 0 | H87: 0 | I87: 0
B88: Pre-Calculated and/or Pre-Packaged Entrees
C89: 0 | D89: =IF(ISBLANK(B89),0,1) -> 0 | G89: =IFERROR(IF(C89>0.01,C89/D89,0),0) -> 0 | H89: =G89*F89 -> 0 | I89: =IF(H89>0.01,E89*F89,0) -> 0
C90: 0 | D90: =IF(ISBLANK(B90),0,1) -> 0 | G90: 0 | H90: 0 | I90: 0
C91: 0 | D91: 0 | G91: 0 | H91: 0 | I91: 0
C92: 0 | D92: 0 | G92: 0 | H92: 0 | I92: 0
C93: 0 | D93: 0 | G93: 0 | H93: 0 | I93: 0
C94: 0 | D94: 0 | G94: 0 | H94: 0 | I94: 0
C95: 0 | D95: 0 | G95: 0 | H95: 0 | I95: 0
C96: 0 | D96: 0 | G96: 0 | H96: 0 | I96: 0
C97: 0 | D97: 0 | G97: 0 | H97: 0 | I97: 0
C98: 0 | D98: 0 | G98: 0 | H98: 0 | I98: 0
C99: 0 | D99: 0 | G99: 0 | H99: 0 | I99: 0
C100: 0 | D100: =IF(ISBLANK(B100),0,1) -> 0 | G100: 0 | H100: 0 | I100: 0
C101: 0 | D101: 0 | G101: 0 | H101: 0 | I101: 0
C102: 0 | D102: 0 | G102: 0 | H102: 0 | I102: 0
C103: 0 | D103: 0 | G103: 0 | H103: 0 | I103: 0
C104: 0 | D104: 0 | G104: 0 | H104: 0 | I104: 0
C105: 0 | D105: 0 | G105: 0 | H105: 0 | I105: 0
C106: 0 | D106: 0 | G106: 0 | H106: 0 | I106: 0
C107: 0 | D107: 0 | G107: 0 | H107: 0 | I107: 0
C108: 0 | D108: 0 | G108: 0 | H108: 0 | I108: 0
F109: Average Entrée Cost: | G109: =IFERROR(AVERAGEIF(G78:G108,">0"),0) -> 0
B110: Item | C110: Cost Per Purchase Unit OR Portion | D110: No. of Portions per Purchase Unit | E110: A La Carte Price Charged Per Portion | F110: No. of Portions Sold A La Carte | G110: Cost per Portion | H110: Total Nonprogram Food Cost | I110: Total Revenue per Item
A111: Fruit Sides | G111: =IFERROR(IF(C111>0.01,C111/D111,0),0) -> 0 | H111: =G111*F111 -> 0 | I111: =IF(H111>0.01,E111*F111,0) -> 0
A112: =IFERROR(AVERAGEIF(G111:G113,"<>0"),0) -> 0 | G112: 0 | H112: 0 | I112: 0
G113: 0 | H113: 0 | I113: 0
A114: Salad Bar | B114: - | C114: =IFERROR(VLOOKUP(B114,'Fruit & Veg Bar'!A:G,3,FALSE),"") ->  | D114: 1 | G114: 0 | H114: 0 | I114: 0
A115: Vegetable Sides | G115: 0 | H115: 0 | I115: 0
A116: =IFERROR(AVERAGEIF(G115:G117,">0"),0) -> 0 | G116: 0 | H116: 0 | I116: 0
G117: 0 | H117: 0 | I117: 0
A118: Grain/Other Sides | G118: 0 | H118: 0 | I118: 0
A119: =IFERROR(AVERAGEIF(G118:G122,"<>0"),0) -> 0 | G119: 0 | H119: 0 | I119: 0
G120: 0 | H120: 0 | I120: 0
G121: 0 | H121: 0 | I121: 0
G122: 0 | H122: 0 | I122: 0
F123: Total Meal Cost (Avg. Entrée Cost + Avg. Side Item Cost + Avg. Milk Cost ): | G123: =IFERROR(B12+G109+A112+A116+A119,0) -> 0 | H123: =SUM(H111:H122,H89:H108,H78:H87) -> 0 | I123: =SUM(I111:I122,I89:I108,I78:I87) -> 0
A125: Wednesday
B126: Item | C126: Cost Per Purchase Unit OR Portion | D126: No. of Portions per Purchase Unit | E126: A La Carte Price Charged Per Portion | F126: No. of Portions Sold A La Carte | G126: Cost per Portion | H126: Total Nonprogram Food Cost | I126: Total Revenue per Item
B127: Recipes
A128: Entrée Items | C128: =IFERROR(VLOOKUP(B128,'Lunch Recipe Calculator'!$A$403:$C$414,2,FALSE),"") -> 0 | D128: 1 | G128: =IFERROR(IF(C128>0.01,C128/D128,0),0) -> 0 | H128: =G128*F128 -> 0 | I128: =IF(H128>0.01,E128*F128,0) -> 0
C129: =IFERROR(VLOOKUP(B129,'Lunch Recipe Calculator'!$A$403:$C$414,2,FALSE),"") -> 0 | D129: 1 | G129: =IFERROR(IF(C129>0.01,C129/D129,0),0) -> 0 | H129: =G129*F129 -> 0 | I129: =IF(H129>0.01,E129*F129,0) -> 0
C130: =IFERROR(VLOOKUP(B130,'Lunch Recipe Calculator'!$A$403:$C$414,2,FALSE),"") -> 0 | D130: 1 | G130: =IFERROR(IF(C130>0.01,C130/D130,0),0) -> 0 | H130: =G130*F130 -> 0 | I130: =IF(H130>0.01,E130*F130,0) -> 0
C131: =IFERROR(VLOOKUP(B131,'Lunch Recipe Calculator'!$A$403:$C$414,2,FALSE),"") -> 0 | D131: 1 | G131: 0 | H131: 0 | I131: 0
C132: =IFERROR(VLOOKUP(B132,'Lunch Recipe Calculator'!$A$403:$C$414,2,FALSE),"") -> 0 | D132: 1 | G132: 0 | H132: 0 | I132: 0
C133: =IFERROR(VLOOKUP(B133,'Lunch Recipe Calculator'!$A$403:$C$414,2,FALSE),"") -> 0 | D133: 1 | G133: 0 | H133: 0 | I133: 0
C134: =IFERROR(VLOOKUP(B134,'Lunch Recipe Calculator'!$A$403:$C$414,2,FALSE),"") -> 0 | D134: 1 | G134: 0 | H134: 0 | I134: 0
C135: =IFERROR(VLOOKUP(B135,'Lunch Recipe Calculator'!$A$403:$C$414,2,FALSE),"") -> 0 | D135: 1 | G135: 0 | H135: 0 | I135: 0
C136: =IFERROR(VLOOKUP(B136,'Lunch Recipe Calculator'!$A$403:$C$414,2,FALSE),"") -> 0 | D136: 1 | G136: 0 | H136: 0 | I136: 0
C137: =IFERROR(VLOOKUP(B137,'Lunch Recipe Calculator'!$A$403:$C$414,2,FALSE),"") -> 0 | D137: 1 | G137: 0 | H137: 0 | I137: 0
B138: Pre-Calculated and/or Pre-Packaged Entrees
C139: 0 | D139: =IF(ISBLANK(B139),0,1) -> 0 | G139: =IFERROR(IF(C139>0.01,C139/D139,0),0) -> 0 | H139: =G139*F139 -> 0 | I139: =IF(H139>0.01,E139*F139,0) -> 0
C140: 0 | D140: =IF(ISBLANK(B140),0,1) -> 0 | G140: 0 | H140: 0 | I140: 0
C141: 0 | D141: 0 | G141: 0 | H141: 0 | I141: 0
C142: 0 | D142: 0 | G142: 0 | H142: 0 | I142: 0
C143: 0 | D143: 0 | G143: 0 | H143: 0 | I143: 0
C144: 0 | D144: 0 | G144: 0 | H144: 0 | I144: 0
C145: 0 | D145: 0 | G145: 0 | H145: 0 | I145: 0
C146: 0 | D146: 0 | G146: 0 | H146: 0 | I146: 0
C147: 0 | D147: 0 | G147: 0 | H147: 0 | I147: 0
C148: 0 | D148: 0 | G148: 0 | H148: 0 | I148: 0
C149: 0 | D149: 0 | G149: 0 | H149: 0 | I149: 0
C150: 0 | D150: =IF(ISBLANK(B150),0,1) -> 0 | G150: 0 | H150: 0 | I150: 0
C151: 0 | D151: 0 | G151: 0 | H151: 0 | I151: 0
C152: 0 | D152: 0 | G152: 0 | H152: 0 | I152: 0
C153: 0 | D153: 0 | G153: 0 | H153: 0 | I153: 0
C154: 0 | D154: 0 | G154: 0 | H154: 0 | I154: 0
C155: 0 | D155: 0 | G155: 0 | H155: 0 | I155: 0
C156: 0 | D156: 0 | G156: 0 | H156: 0 | I156: 0
C157: 0 | D157: 0 | G157: 0 | H157: 0 | I157: 0
C158: 0 | D158: 0 | G158: 0 | H158: 0 | I158: 0
F159: Average Entrée Cost: | G159: =IFERROR(AVERAGEIF(G128:G158,">0"),0) -> 0
B160: Item | C160: Cost Per Purchase Unit OR Portion | D160: No. of Portions per Purchase Unit | E160: A La Carte Price Charged Per Portion | F160: No. of Portions Sold A La Carte | G160: Cost per Portion | H160: Total Nonprogram Food Cost | I160: Total Revenue per Item
A161: Fruit Sides | G161: =IFERROR(IF(C161>0.01,C161/D161,0),0) -> 0 | H161: =G161*F161 -> 0 | I161: =IF(H161>0.01,E161*F161,0) -> 0
A162: =IFERROR(AVERAGEIF(G161:G163,">0"),0) -> 0 | G162: 0 | H162: 0 | I162: 0
G163: 0 | H163: 0 | I163: 0
A164: Salad Bar | B164: - | C164: =IFERROR(VLOOKUP(B164,'Fruit & Veg Bar'!A:G,3,FALSE),"") ->  | D164: 1 | G164: 0 | H164: 0 | I164: 0
A165: Vegetable Sides | G165: 0 | H165: 0 | I165: 0
A166: =IFERROR(AVERAGEIF(G165:G167,">0"),0) -> 0 | G166: 0 | H166: 0 | I166: 0
G167: 0 | H167: 0 | I167: 0
A168: Grain/Other Sides | G168: 0 | H168: 0 | I168: 0
A169: =IFERROR(AVERAGEIF(G168:G172,">0"),0) -> 0 | G169: 0 | H169: 0 | I169: 0
G170: 0 | H170: 0 | I170: 0
G171: 0 | H171: 0 | I171: 0
G172: 0 | H172: 0 | I172: 0
F173: Total Meal Cost (Avg. Entrée Cost + Avg. Side Item Cost + Avg. Milk Cost ): | G173: =IFERROR(B12+G159+A162+A166+A169,0) -> 0 | H173: =SUM(H161:H172,H139:H158,H128:H137) -> 0 | I173: =SUM(I161:I172,I139:I158,I128:I137) -> 0
A175: Thursday
B176: Item | C176: Cost Per Purchase Unit OR Portion | D176: No. of Portions per Purchase Unit | E176: A La Carte Price Charged Per Portion | F176: No. of Portions Sold A La Carte | G176: Cost per Portion | H176: Total Nonprogram Food Cost | I176: Total Revenue per Item
B177: Recipes
A178: Entrée Items | C178: =IFERROR(VLOOKUP(B178,'Lunch Recipe Calculator'!$A$403:$C$414,2,FALSE),"") -> 0 | D178: 1 | G178: =IFERROR(IF(C178>0.01,C178/D178,0),0) -> 0 | H178: =G178*F178 -> 0 | I178: =IF(H178>0.01,E178*F178,0) -> 0
C179: =IFERROR(VLOOKUP(B179,'Lunch Recipe Calculator'!$A$403:$C$414,2,FALSE),"") -> 0 | D179: 1 | G179: =IFERROR(IF(C179>0.01,C179/D179,0),0) -> 0 | H179: =G179*F179 -> 0 | I179: =IF(H179>0.01,E179*F179,0) -> 0
C180: =IFERROR(VLOOKUP(B180,'Lunch Recipe Calculator'!$A$403:$C$414,2,FALSE),"") -> 0 | D180: 1 | G180: =IFERROR(IF(C180>0.01,C180/D180,0),0) -> 0 | H180: =G180*F180 -> 0 | I180: =IF(H180>0.01,E180*F180,0) -> 0
C181: =IFERROR(VLOOKUP(B181,'Lunch Recipe Calculator'!$A$403:$C$414,2,FALSE),"") -> 0 | D181: 1 | G181: 0 | H181: 0 | I181: 0
C182: =IFERROR(VLOOKUP(B182,'Lunch Recipe Calculator'!$A$403:$C$414,2,FALSE),"") -> 0 | D182: 1 | G182: 0 | H182: 0 | I182: 0
C183: =IFERROR(VLOOKUP(B183,'Lunch Recipe Calculator'!$A$403:$C$414,2,FALSE),"") -> 0 | D183: 1 | G183: 0 | H183: 0 | I183: 0
C184: =IFERROR(VLOOKUP(B184,'Lunch Recipe Calculator'!$A$403:$C$414,2,FALSE),"") -> 0 | D184: 1 | G184: 0 | H184: 0 | I184: 0
C185: =IFERROR(VLOOKUP(B185,'Lunch Recipe Calculator'!$A$403:$C$414,2,FALSE),"") -> 0 | D185: 1 | G185: 0 | H185: 0 | I185: 0
C186: =IFERROR(VLOOKUP(B186,'Lunch Recipe Calculator'!$A$403:$C$414,2,FALSE),"") -> 0 | D186: 1 | G186: 0 | H186: 0 | I186: 0
C187: =IFERROR(VLOOKUP(B187,'Lunch Recipe Calculator'!$A$403:$C$414,2,FALSE),"") -> 0 | D187: 1 | G187: 0 | H187: 0 | I187: 0
B188: Pre-Calculated and/or Pre-Packaged Entrees
C189: 0 | D189: =IF(ISBLANK(B189),0,1) -> 0 | G189: =IFERROR(IF(C189>0.01,C189/D189,0),0) -> 0 | H189: =G189*F189 -> 0 | I189: =IF(H189>0.01,E189*F189,0) -> 0
C190: 0 | D190: =IF(ISBLANK(B190),0,1) -> 0 | G190: 0 | H190: 0 | I190: 0
C191: 0 | D191: 0 | G191: 0 | H191: 0 | I191: 0
C192: 0 | D192: 0 | G192: 0 | H192: 0 | I192: 0
C193: 0 | D193: 0 | G193: 0 | H193: 0 | I193: 0
C194: 0 | D194: 0 | G194: 0 | H194: 0 | I194: 0
C195: 0 | D195: 0 | G195: 0 | H195: 0 | I195: 0
C196: 0 | D196: 0 | G196: 0 | H196: 0 | I196: 0
C197: 0 | D197: 0 | G197: 0 | H197: 0 | I197: 0
C198: 0 | D198: 0 | G198: 0 | H198: 0 | I198: 0
C199: 0 | D199: 0 | G199: 0 | H199: 0 | I199: 0
C200: 0 | D200: =IF(ISBLANK(B200),0,1) -> 0 | G200: 0 | H200: 0 | I200: 0
C201: 0 | D201: 0 | G201: 0 | H201: 0 | I201: 0
C202: 0 | D202: 0 | G202: 0 | H202: 0 | I202: 0
C203: 0 | D203: 0 | G203: 0 | H203: 0 | I203: 0
C204: 0 | D204: 0 | G204: 0 | H204: 0 | I204: 0
C205: 0 | D205: 0 | G205: 0 | H205: 0 | I205: 0
... 70 more rows

Sheet Breakfast Recipe Calculator
A1: Breakfast Recipe Calculator
A2: Sponsor Name: | B2: =IF('Instructions (START HERE)'!C2="","",'Instructions (START HERE)'!C2) -> 
A4: Recipe Name: | E4: Recipe Yield:
B6: Ingredient(s): | C6: Purchase Unit (lb, box, canister) | D6: Number of Items per Purchase Unit (e.g. 6 cans in a case) | E6: Purchase Unit Cost | F6: Number of Items Used in Recipe (e.g. 2 cans) | G6: Cost per Portion
A7: Example | B7: Cheese | C7: lb | D7: 40 | E7: 41.18 | F7: 3.5 | G7: =IFERROR(IF(F7=0,0,E7/D7*F7),0) -> 3.60325
G8: =IFERROR(IF(F8=0,0,E8/D8*F8),0) -> 0
G9: 0
G10: =IFERROR(IF(F10=0,0,E10/D10*F10),0) -> 0
G11: 0
G12: 0
G13: 0
G14: 0
G15: 0
G16: 0
G17: =IFERROR(IF(F17=0,0,E17/D17*F17),0) -> 0
G18: 0
G19: 0
G20: 0
G21: 0
G22: 0
G23: 0
G24: 0
G25: 0
F26: Total Entrée Cost: | G26: =IFERROR(SUM(G8:G25),0) -> 0
F27: Cost per Serving: | G27: =IFERROR(ROUND(G26/F4,2),0) -> 0
A30: Recipe Name: | E30: Recipe Yield:
B32: Ingredient(s): | C32: Purchase Unit (lb, box, canister) | D32: Number of Items per Purchase Unit (e.g. 6 cans in a case) | E32: Purchase Unit Cost | F32: Number of Items Used in Recipe (e.g. 2 cans) | G32: Cost per Portion
G33: =IFERROR(IF(F33=0,0,E33/D33*F33),0) -> 0
G34: 0
G35: =IFERROR(IF(F35=0,0,E35/D35*F35),0) -> 0
G36: 0
G37: 0
G38: 0
G39: 0
G40: 0
G41: 0
G42: 0
G43: 0
G44: 0
G45: 0
G46: 0
G47: 0
G48: 0
G49: 0
G50: 0
F51: Total Entrée Cost: | G51: =SUM(G33:G50) -> 0
F52: Cost per Serving: | G52: =IFERROR(ROUND(G51/F30,2),0) -> 0
A55: Recipe Name: | E55: Recipe Yield:
B57: Ingredient(s): | C57: Purchase Unit (lb, box, canister) | D57: Number of Items per Purchase Unit (e.g. 6 cans in a case) | E57: Purchase Unit Cost | F57: Number of Items Used in Recipe (e.g. 2 cans) | G57: Cost per Portion
G58: =IFERROR(IF(F58=0,0,E58/D58*F58),0) -> 0
G59: =IFERROR(IF(F59=0,0,E59/D59*F59),0) -> 0
G60: =IFERROR(IF(F60=0,0,E60/D60*F60),0) -> 0
G61: 0
G62: 0
G63: 0
G64: 0
G65: 0
G66: 0
G67: 0
G68: 0
G69: 0
G70: 0
G71: 0
G72: 0
G73: 0
G74: 0
G75: 0
F76: Total Entrée Cost: | G76: =SUM(G58:G75) -> 0
F77: Cost per Serving: | G77: =IFERROR(ROUND(G76/F55,2),0) -> 0
A80: Recipe Name: | E80: Recipe Yield:
B82: Ingredient(s): | C82: Purchase Unit (lb, box, canister) | D82: Number of Items per Purchase Unit (e.g. 6 cans in a case) | E82: Purchase Unit Cost | F82: Number of Items Used in Recipe (e.g. 2 cans) | G82: Cost per Portion
G83: =IFERROR(IF(F83=0,0,E83/D83*F83),0) -> 0
G84: =IFERROR(IF(F84=0,0,E84/D84*F84),0) -> 0
G85: =IFERROR(IF(F85=0,0,E85/D85*F85),0) -> 0
G86: 0
G87: 0
G88: 0
G89: 0
G90: 0
G91: 0
G92: 0
G93: 0
G94: 0
G95: 0
G96: 0
G97: 0
G98: 0
G99: 0
G100: 0
F101: Total Entrée Cost: | G101: =SUM(G83:G100) -> 0
F102: Cost per Serving: | G102: =IFERROR(ROUND(G101/F80,2),0) -> 0
A105: Recipe Name: | E105: Recipe Yield:
B107: Ingredient(s): | C107: Purchase Unit (lb, box, canister) | D107: Number of Items per Purchase Unit (e.g. 6 cans in a case) | E107: Purchase Unit Cost | F107: Number of Items Used in Recipe (e.g. 2 cans) | G107: Cost per Portion
G108: =IFERROR(IF(F108=0,0,E108/D108*F108),0) -> 0
G109: =IFERROR(IF(F109=0,0,E109/D109*F109),0) -> 0
G110: =IFERROR(IF(F110=0,0,E110/D110*F110),0) -> 0
G111: 0
G112: 0
G113: 0
G114: 0
G115: 0
G116: 0
G117: 0
G118: 0
G119: 0
G120: 0
G121: 0
G122: 0
G123: 0
G124: 0
G125: 0
F126: Total Entrée Cost: | G126: =SUM(G108:G125) -> 0
F127: Cost per Serving: | G127: =IFERROR(ROUND(G126/F105,2),0) -> 0
A130: Recipe Name: | E130: Recipe Yield:
B132: Ingredient(s): | C132: Purchase Unit (lb, box, canister) | D132: Number of Items per Purchase Unit (e.g. 6 cans in a case) | E132: Purchase Unit Cost | F132: Number of Items Used in Recipe (e.g. 2 cans) | G132: Cost per Portion
G133: =IFERROR(IF(F133=0,0,E133/D133*F133),0) -> 0
G134: 0
G135: =IFERROR(IF(F135=0,0,E135/D135*F135),0) -> 0
G136: 0
G137: 0
G138: 0
G139: 0
G140: 0
G141: 0
G142: 0
G143: 0
G144: 0
G145: 0
G146: 0
G147: 0
G148: 0
G149: 0
G150: 0
F151: Total Entrée Cost: | G151: =SUM(G133:G150) -> 0
F152: Cost per Serving: | G152: =IFERROR(ROUND(G151/F130,2),0) -> 0
A155: Recipe Name: | E155: Recipe Yield:
B157: Ingredient(s): | C157: Purchase Unit (lb, box, canister) | D157: Number of Items per Purchase Unit (e.g. 6 cans in a case) | E157: Purchase Unit Cost | F157: Number of Items Used in Recipe (e.g. 2 cans) | G157: Cost per Portion
G158: =IFERROR(IF(F158=0,0,E158/D158*F158),0) -> 0
G159: =IFERROR(IF(F159=0,0,E159/D159*F159),0) -> 0
G160: =IFERROR(IF(F160=0,0,E160/D160*F160),0) -> 0
G161: 0
G162: 0
G163: 0
G164: 0
G165: 0
G166: 0
G167: 0
G168: 0
G169: 0
G170: 0
G171: 0
G172: 0
G173: 0
G174: 0
G175: 0
F176: Total Entrée Cost: | G176: =SUM(G158:G175) -> 0
F177: Cost per Serving: | G177: =IFERROR(ROUND(G176/F155,2),0) -> 0
A180: Recipe Name: | E180: Recipe Yield:
B182: Ingredient(s): | C182: Purchase Unit (lb, box, canister) | D182: Number of Items per Purchase Unit (e.g. 6 cans in a case) | E182: Purchase Unit Cost | F182: Number of Items Used in Recipe (e.g. 2 cans) | G182: Cost per Portion
G183: =IFERROR(IF(F183=0,0,E183/D183*F183),0) -> 0
G184: =IFERROR(IF(F184=0,0,E184/D184*F184),0) -> 0
G185: =IFERROR(IF(F185=0,0,E185/D185*F185),0) -> 0
G186: 0
G187: 0
G188: 0
G189: 0
G190: 0
G191: 0
G192: 0
G193: 0
G194: 0
G195: 0
G196: 0
G197: 0
G198: 0
G199: 0
G200: 0
F201: Total Entrée Cost: | G201: =SUM(G183:G200) -> 0
F202: Cost per Serving: | G202: =IFERROR(ROUND(G201/F180,2),0) -> 0
A204: Recipe Name: | E204: Recipe Yield:
B206: Ingredient(s): | C206: Purchase Unit (lb, box, canister) | D206: Number of Items per Purchase Unit (e.g. 6 cans in a case) | E206: Purchase Unit Cost | F206: Number of Items Used in Recipe (e.g. 2 cans) | G206: Cost per Portion
G207: =IFERROR(IF(F207=0,0,E207/D207*F207),0) -> 0
G208: =IFERROR(IF(F208=0,0,E208/D208*F208),0) -> 0
G209: 0
G210: 0
G211: 0
G212: 0
G213: 0
G214: 0
G215: 0
G216: 0
G217: 0
G218: 0
G219: 0
G220: 0
G221: 0
G222: 0
G223: 0
G224: 0
F225: Total Entrée Cost: | G225: =IFERROR(SUM(G207:G224),0) -> 0
... 174 more rows

Sheet Breakfast Menu
A1: Breakfast Menu Costing Worksheet
A2: Select Grade Level:
A3: Sponsor Name: | B3: =IF('Instructions (START HERE)'!C2="","",'Instructions (START HERE)'!C2) -> 
A4: Week Selected for Review: | B4: ='Lunch Menu'!B4 -> 0 | C4: Site:
A6: Average Cost of Milk Calculator
A7: Types of Milk Served: | B7: Cost per Unit: | F7: Cost | G7: Revenue | H7: No. Served
A8: Non-fat Milk | B8: =Non_fat_Milk -> 0 | E8: Adult | F8: =SUM(H22:H23) -> 0 | G8: =SUM(I22:I23) -> 0
A9: Non-fat Flavored Milk | B9: =NonFatFlavor -> 0 | E9: Student | F9: =SUM(H16:H21) -> 0 | G9: =SUM(I16:I21) -> 0
A10: 1% Milk | B10: =Milk1 -> 0 | E10: Reim. Meals | F10: =SUM(H16,H19,H20,H21) -> 0 | G10: =SUM(I16,I19:I21) -> 0 | H10: =SUM(C16:G16,C19:G21) -> 0
A11: 1% Flavored Milk | B11: =Flav1 -> 0 | E11: Total a la carte | F11: =SUM(H62,H101,H140,H179,H218) -> 0 | G11: =SUM(I62,I101,I140,I179,I218) -> 0
A12: Average Milk Cost: | B12: ='Lunch Menu'!B12 ->  | E12: total adult meals sold | F12: =SUM(C22:G23) -> 0
E13: total a la carte entrée/side items sold | F13: =SUM(F28:F37,F39:F48,F51:F61,F67:F76,F78:F87,F90:F100,F106:F115,F117:F126,F129:F139,F145:F154,F156:F165,F168:F178,F184:F193,F195:F204,F207:F217) -> 0
A14: Program Food Revenue
A15: Reimbursement Rates | C15: Monday Meal Counts | D15: Tuesday Meal Counts | E15: Wednesday Meal Counts | F15: Thursday Meal Counts | G15: Friday Meal Counts | H15: cost | I15: revenue
A16: Free | B16: 0 | H16: =(C16*$G$62)+(D16*$G$101)+(E16*$G$140)+(F16*$G$179)+(G16*$G$218) -> 0 | I16: =SUM(C16:G16)*B16 -> 0
A17: Reduced | B17: 0
A18: Paid | B18: 0.5
A19: Paid Student Price 1 | B19: 0 | H19: 0 | I19: =(SUM(C19:G19)*B19)+(SUM(C19:G19)*$B$18) -> 0
A20: Paid Student Price 2 | B20: 0 | H20: 0 | I20: =(SUM(C20:G20)*B20)+(SUM(C20:G20)*$B$18) -> 0
A21: Reduced Price | B21: 0.3 | H21: 0 | I21: =(SUM(C21:G21)*B21)+(SUM(C21:G21)*$B$17) -> 0
A22: Adult Meal Price | B22: 0 | H22: =(C22*$G$62)+(D22*$G$101)+(E22*$G$140)+(F22*$G$179)+(G22*$G$218) -> 0 | I22: =SUM(C22:G22)*B22 -> 0
A23: Food Service Staff Meal Price | B23: 0 | H23: =(C23*$G$62)+(D23*$G$101)+(E23*$G$140)+(F23*$G$179)+(G23*$G$218) -> 0 | I23: =SUM(C23:G23)*B23 -> 0
A25: Monday
B26: Item | C26: Cost Per Purchase Unit OR Portion | D26: No. of Portions per Purchase Unit | E26: A La Carte Price Charged Per Portion | F26: No. of Portions Sold A La Carte | G26: Cost per Portion | H26: Total Nonprogram Food Cost | I26: Total Revenue per Item
B27: Recipes
A28: Entrée Items | C28: =IFERROR(VLOOKUP(B28,'Breakfast Recipe Calculator'!$A$409:$C$424,2,FALSE),"") -> 0 | D28: 1 | G28: =IFERROR(IF(C28>0.01,C28/D28,0),0) -> 0 | H28: =G28*F28 -> 0 | I28: =IF(H28>0.01,E28*F28,0) -> 0
C29: =IFERROR(VLOOKUP(B29,'Breakfast Recipe Calculator'!$A$409:$C$424,2,FALSE),"") -> 0 | D29: 1 | G29: =IFERROR(IF(C29>0.01,C29/D29,0),0) -> 0 | H29: =G29*F29 -> 0 | I29: =IF(H29>0.01,E29*F29,0) -> 0
C30: =IFERROR(VLOOKUP(B30,'Breakfast Recipe Calculator'!$A$409:$C$424,2,FALSE),"") -> 0 | D30: 1 | G30: =IFERROR(IF(C30>0.01,C30/D30,0),0) -> 0 | H30: =G30*F30 -> 0 | I30: =IF(H30>0.01,E30*F30,0) -> 0
C31: =IFERROR(VLOOKUP(B31,'Breakfast Recipe Calculator'!$A$409:$C$424,2,FALSE),"") -> 0 | D31: 1 | G31: 0 | H31: 0 | I31: 0
C32: =IFERROR(VLOOKUP(B32,'Breakfast Recipe Calculator'!$A$409:$C$424,2,FALSE),"") -> 0 | D32: 1 | G32: 0 | H32: 0 | I32: 0
C33: =IFERROR(VLOOKUP(B33,'Breakfast Recipe Calculator'!$A$409:$C$424,2,FALSE),"") -> 0 | D33: 1 | G33: 0 | H33: 0 | I33: 0
C34: =IFERROR(VLOOKUP(B34,'Breakfast Recipe Calculator'!$A$409:$C$424,2,FALSE),"") -> 0 | D34: 1 | G34: 0 | H34: 0 | I34: 0
C35: =IFERROR(VLOOKUP(B35,'Breakfast Recipe Calculator'!$A$409:$C$424,2,FALSE),"") -> 0 | D35: 1 | G35: 0 | H35: 0 | I35: 0
C36: =IFERROR(VLOOKUP(B36,'Breakfast Recipe Calculator'!$A$409:$C$424,2,FALSE),"") -> 0 | D36: 1 | G36: 0 | H36: 0 | I36: 0
C37: =IFERROR(VLOOKUP(B37,'Breakfast Recipe Calculator'!$A$409:$C$424,2,FALSE),"") -> 0 | D37: 1 | G37: 0 | H37: 0 | I37: 0
B38: Pre-Calculated and/or Pre-Packaged Entrees
C39: 0 | D39: =IF(ISBLANK(B39),0,1) -> 0 | G39: =IFERROR(IF(C39>0.01,C39/D39,0),0) -> 0 | H39: =G39*F39 -> 0 | I39: =IF(H39>0.01,E39*F39,0) -> 0
C40: 0 | D40: =IF(ISBLANK(B40),0,1) -> 0 | G40: 0 | H40: 0 | I40: 0
C41: 0 | D41: 0 | G41: 0 | H41: 0 | I41: 0
C42: 0 | D42: 0 | G42: 0 | H42: 0 | I42: 0
C43: 0 | D43: 0 | G43: 0 | H43: 0 | I43: 0
C44: 0 | D44: 0 | G44: 0 | H44: 0 | I44: 0
C45: 0 | D45: 0 | G45: 0 | H45: 0 | I45: 0
C46: 0 | D46: 0 | G46: 0 | H46: 0 | I46: 0
C47: 0 | D47: 0 | G47: 0 | H47: 0 | I47: 0
C48: 0 | D48: 0 | G48: 0 | H48: 0 | I48: 0
F49: Average Entrée Cost: | G49: =IFERROR(AVERAGEIF(G28:G48,">0"),0) -> 0
B50: Item | C50: Cost Per Purchase Unit OR Portion | D50: No. of Portions per Purchase Unit | E50: A La Carte Price Charged Per Portion | F50: No. of Portions Sold A La Carte | G50: Cost per Portion | H50: Total Nonprogram Food Cost | I50: Total Revenue per Item
A51: Fruit or Vegetable Sides | G51: =IFERROR(IF(C51>0.01,C51/D51,0),0) -> 0 | H51: =G51*F51 -> 0 | I51: =IF(H51>0.01,E51*F51,0) -> 0
A52: =IFERROR(AVERAGEIF(G51:G53,">0"),0) -> 0 | G52: 0 | H52: 0 | I52: 0
G53: 0 | H53: 0 | I53: 0
G54: 0 | H54: 0 | I54: 0
A55: =IFERROR(AVERAGEIF(G54:G56,">0"),0) -> 0 | G55: 0 | H55: 0 | I55: 0
G56: 0 | H56: 0 | I56: 0
A57: Grain/Other Sides | G57: 0 | H57: 0 | I57: 0
A58: =IFERROR(AVERAGEIF(G57:G61,">0"),0) -> 0 | G58: 0 | H58: 0 | I58: 0
G59: 0 | H59: 0 | I59: 0
G60: 0 | H60: 0 | I60: 0
G61: 0 | H61: 0 | I61: 0
F62: Total Meal Cost (Avg. Entrée Cost + Avg. Side Item Cost + Avg. Milk Cost ): | G62: =IFERROR(B12+G49+A52+A55+A58,0) -> 0 | H62: =SUM(H51:H61,H39:H48,H28:H37) -> 0 | I62: =SUM(I51:I61,I39:I48,I28:I37) -> 0
A64: Tuesday
B65: Item | C65: Cost Per Purchase Unit OR Portion | D65: No. of Portions per Purchase Unit | E65: A La Carte Price Charged Per Portion | F65: No. of Portions Sold A La Carte | G65: Cost per Portion | H65: Total Nonprogram Food Cost | I65: Total Revenue per Item
B66: Recipes
A67: Entrée Items | C67: =IFERROR(VLOOKUP(B67,'Breakfast Recipe Calculator'!$A$409:$C$424,2,FALSE),"") -> 0 | D67: 1 | G67: =IFERROR(IF(C67>0.01,C67/D67,0),0) -> 0 | H67: =G67*F67 -> 0 | I67: =IF(H67>0.01,E67*F67,0) -> 0
C68: =IFERROR(VLOOKUP(B68,'Breakfast Recipe Calculator'!$A$409:$C$424,2,FALSE),"") -> 0 | D68: 1 | G68: =IFERROR(IF(C68>0.01,C68/D68,0),0) -> 0 | H68: =G68*F68 -> 0 | I68: =IF(H68>0.01,E68*F68,0) -> 0
C69: =IFERROR(VLOOKUP(B69,'Breakfast Recipe Calculator'!$A$409:$C$424,2,FALSE),"") -> 0 | D69: 1 | G69: =IFERROR(IF(C69>0.01,C69/D69,0),0) -> 0 | H69: =G69*F69 -> 0 | I69: =IF(H69>0.01,E69*F69,0) -> 0
C70: =IFERROR(VLOOKUP(B70,'Breakfast Recipe Calculator'!$A$409:$C$424,2,FALSE),"") -> 0 | D70: 1 | G70: 0 | H70: 0 | I70: 0
C71: =IFERROR(VLOOKUP(B71,'Breakfast Recipe Calculator'!$A$409:$C$424,2,FALSE),"") -> 0 | D71: 1 | G71: 0 | H71: 0 | I71: 0
C72: =IFERROR(VLOOKUP(B72,'Breakfast Recipe Calculator'!$A$409:$C$424,2,FALSE),"") -> 0 | D72: 1 | G72: 0 | H72: 0 | I72: 0
C73: =IFERROR(VLOOKUP(B73,'Breakfast Recipe Calculator'!$A$409:$C$424,2,FALSE),"") -> 0 | D73: 1 | G73: 0 | H73: 0 | I73: 0
C74: =IFERROR(VLOOKUP(B74,'Breakfast Recipe Calculator'!$A$409:$C$424,2,FALSE),"") -> 0 | D74: 1 | G74: 0 | H74: 0 | I74: 0
C75: =IFERROR(VLOOKUP(B75,'Breakfast Recipe Calculator'!$A$409:$C$424,2,FALSE),"") -> 0 | D75: 1 | G75: 0 | H75: 0 | I75: 0
C76: =IFERROR(VLOOKUP(B76,'Breakfast Recipe Calculator'!$A$409:$C$424,2,FALSE),"") -> 0 | D76: 1 | G76: 0 | H76: 0 | I76: 0
B77: Pre-Calculated and/or Pre-Packaged Entrees
C78: 0 | D78: =IF(ISBLANK(B78),0,1) -> 0 | G78: =IFERROR(IF(C78>0.01,C78/D78,0),0) -> 0 | H78: =G78*F78 -> 0 | I78: =IF(H78>0.01,E78*F78,0) -> 0
C79: 0 | D79: =IF(ISBLANK(B79),0,1) -> 0 | G79: 0 | H79: 0 | I79: 0
C80: 0 | D80: 0 | G80: 0 | H80: 0 | I80: 0
C81: 0 | D81: 0 | G81: 0 | H81: 0 | I81: 0
C82: 0 | D82: 0 | G82: 0 | H82: 0 | I82: 0
C83: 0 | D83: 0 | G83: 0 | H83: 0 | I83: 0
C84: 0 | D84: 0 | G84: 0 | H84: 0 | I84: 0
C85: 0 | D85: 0 | G85: 0 | H85: 0 | I85: 0
C86: 0 | D86: 0 | G86: 0 | H86: 0 | I86: 0
C87: 0 | D87: 0 | G87: 0 | H87: 0 | I87: 0
F88: Average Entrée Cost: | G88: =IFERROR(AVERAGEIF(G67:G87,">0"),0) -> 0
B89: Item | C89: Cost Per Purchase Unit OR Portion | D89: No. of Portions per Purchase Unit | E89: A La Carte Price Charged Per Portion | F89: No. of Portions Sold A La Carte | G89: Cost per Portion | H89: Total Nonprogram Food Cost | I89: Total Revenue per Item
A90: Fruit or Vegetable Sides | G90: =IFERROR(IF(C90>0.01,C90/D90,0),0) -> 0 | H90: =G90*F90 -> 0 | I90: =IF(H90>0.01,E90*F90,0) -> 0
A91: =IFERROR(AVERAGEIF(G90:G92,"<>0"),0) -> 0 | G91: 0 | H91: 0 | I91: 0
G92: 0 | H92: 0 | I92: 0
G93: 0 | H93: 0 | I93: 0
A94: =IFERROR(AVERAGEIF(G93:G95,"<>0"),0) -> 0 | G94: 0 | H94: 0 | I94: 0
G95: 0 | H95: 0 | I95: 0
A96: Grain/Other Sides | G96: 0 | H96: 0 | I96: 0
A97: =IFERROR(AVERAGEIF(G96:G100,"<>0"),0) -> 0 | G97: 0 | H97: 0 | I97: 0
G98: 0 | H98: 0 | I98: 0
G99: 0 | H99: 0 | I99: 0
G100: 0 | H100: 0 | I100: 0
F101: Total Meal Cost (Avg. Entrée Cost + Avg. Side Item Cost + Avg. Milk Cost ): | G101: =IFERROR(B12+G88+A91+A94+A97,0) -> 0 | H101: =SUM(H90:H100,H78:H87,H67:H76) -> 0 | I101: =SUM(I90:I100,I78:I87,I67:I76) -> 0
A103: Wednesday
B104: Item | C104: Cost Per Purchase Unit OR Portion | D104: No. of Portions per Purchase Unit | E104: A La Carte Price Charged Per Portion | F104: No. of Portions Sold A La Carte | G104: Cost per Portion | H104: Total Nonprogram Food Cost | I104: Total Revenue per Item
B105: Recipes
A106: Entrée Items | C106: =IFERROR(VLOOKUP(B106,'Breakfast Recipe Calculator'!$A$409:$C$424,2,FALSE),"") -> 0 | D106: 1 | G106: =IFERROR(IF(C106>0.01,C106/D106,0),0) -> 0 | H106: =G106*F106 -> 0 | I106: =IF(H106>0.01,E106*F106,0) -> 0
C107: =IFERROR(VLOOKUP(B107,'Breakfast Recipe Calculator'!$A$409:$C$424,2,FALSE),"") -> 0 | D107: 1 | G107: =IFERROR(IF(C107>0.01,C107/D107,0),0) -> 0 | H107: =G107*F107 -> 0 | I107: =IF(H107>0.01,E107*F107,0) -> 0
C108: =IFERROR(VLOOKUP(B108,'Breakfast Recipe Calculator'!$A$409:$C$424,2,FALSE),"") -> 0 | D108: 1 | G108: =IFERROR(IF(C108>0.01,C108/D108,0),0) -> 0 | H108: =G108*F108 -> 0 | I108: =IF(H108>0.01,E108*F108,0) -> 0
C109: =IFERROR(VLOOKUP(B109,'Breakfast Recipe Calculator'!$A$409:$C$424,2,FALSE),"") -> 0 | D109: 1 | G109: 0 | H109: 0 | I109: 0
C110: =IFERROR(VLOOKUP(B110,'Breakfast Recipe Calculator'!$A$409:$C$424,2,FALSE),"") -> 0 | D110: 1 | G110: 0 | H110: 0 | I110: 0
C111: =IFERROR(VLOOKUP(B111,'Breakfast Recipe Calculator'!$A$409:$C$424,2,FALSE),"") -> 0 | D111: 1 | G111: 0 | H111: 0 | I111: 0
C112: =IFERROR(VLOOKUP(B112,'Breakfast Recipe Calculator'!$A$409:$C$424,2,FALSE),"") -> 0 | D112: 1 | G112: 0 | H112: 0 | I112: 0
C113: =IFERROR(VLOOKUP(B113,'Breakfast Recipe Calculator'!$A$409:$C$424,2,FALSE),"") -> 0 | D113: 1 | G113: 0 | H113: 0 | I113: 0
C114: =IFERROR(VLOOKUP(B114,'Breakfast Recipe Calculator'!$A$409:$C$424,2,FALSE),"") -> 0 | D114: 1 | G114: 0 | H114: 0 | I114: 0
C115: =IFERROR(VLOOKUP(B115,'Breakfast Recipe Calculator'!$A$409:$C$424,2,FALSE),"") -> 0 | D115: 1 | G115: 0 | H115: 0 | I115: 0
B116: Pre-Calculated and/or Pre-Packaged Entrees
C117: 0 | D117: =IF(ISBLANK(B117),0,1) -> 0 | G117: =IFERROR(IF(C117>0.01,C117/D117,0),0) -> 0 | H117: =G117*F117 -> 0 | I117: =IF(H117>0.01,E117*F117,0) -> 0
C118: 0 | D118: =IF(ISBLANK(B118),0,1) -> 0 | G118: 0 | H118: 0 | I118: 0
C119: 0 | D119: 0 | G119: 0 | H119: 0 | I119: 0
C120: 0 | D120: 0 | G120: 0 | H120: 0 | I120: 0
C121: 0 | D121: 0 | G121: 0 | H121: 0 | I121: 0
C122: 0 | D122: 0 | G122: 0 | H122: 0 | I122: 0
C123: 0 | D123: 0 | G123: 0 | H123: 0 | I123: 0
C124: 0 | D124: 0 | G124: 0 | H124: 0 | I124: 0
C125: 0 | D125: 0 | G125: 0 | H125: 0 | I125: 0
C126: 0 | D126: 0 | G126: 0 | H126: 0 | I126: 0
F127: Average Entrée Cost: | G127: =IFERROR(AVERAGEIF(G106:G126,">0"),0) -> 0
B128: Item | C128: Cost Per Purchase Unit OR Portion | D128: No. of Portions per Purchase Unit | E128: A La Carte Price Charged Per Portion | F128: No. of Portions Sold A La Carte | G128: Cost per Portion | H128: Total Nonprogram Food Cost | I128: Total Revenue per Item
A129: Fruit or Vegetable Sides | G129: =IFERROR(IF(C129>0.01,C129/D129,0),0) -> 0 | H129: =G129*F129 -> 0 | I129: =IF(H129>0.01,E129*F129,0) -> 0
A130: =IFERROR(AVERAGEIF(G129:G131,">0"),0) -> 0 | G130: 0 | H130: 0 | I130: 0
G131: 0 | H131: 0 | I131: 0
G132: 0 | H132: 0 | I132: 0
A133: =IFERROR(AVERAGEIF(G132:G134,">0"),0) -> 0 | G133: 0 | H133: 0 | I133: 0
G134: 0 | H134: 0 | I134: 0
A135: Grain/Other Sides | G135: 0 | H135: 0 | I135: 0
A136: =IFERROR(AVERAGEIF(G135:G139,">0"),0) -> 0 | G136: 0 | H136: 0 | I136: 0
G137: 0 | H137: 0 | I137: 0
G138: 0 | H138: 0 | I138: 0
G139: 0 | H139: 0 | I139: 0
F140: Total Meal Cost (Avg. Entrée Cost + Avg. Side Item Cost + Avg. Milk Cost ): | G140: =IFERROR(B12+G127+A130+A133+A136,0) -> 0 | H140: =SUM(H129:H139,H117:H126,H106:H115) -> 0 | I140: =SUM(I129:I139,I117:I126,I106:I115) -> 0
A142: Thursday
B143: Item | C143: Cost Per Purchase Unit OR Portion | D143: No. of Portions per Purchase Unit | E143: A La Carte Price Charged Per Portion | F143: No. of Portions Sold A La Carte | G143: Cost per Portion | H143: Total Nonprogram Food Cost | I143: Total Revenue per Item
B144: Recipes
A145: Entrée Items | C145: =IFERROR(VLOOKUP(B145,'Breakfast Recipe Calculator'!$A$409:$C$424,2,FALSE),"") -> 0 | D145: 1 | G145: =IFERROR(IF(C145>0.01,C145/D145,0),0) -> 0 | H145: =G145*F145 -> 0 | I145: =IF(H145>0.01,E145*F145,0) -> 0
C146: =IFERROR(VLOOKUP(B146,'Breakfast Recipe Calculator'!$A$409:$C$424,2,FALSE),"") -> 0 | D146: 1 | G146: =IFERROR(IF(C146>0.01,C146/D146,0),0) -> 0 | H146: =G146*F146 -> 0 | I146: =IF(H146>0.01,E146*F146,0) -> 0
C147: =IFERROR(VLOOKUP(B147,'Breakfast Recipe Calculator'!$A$409:$C$424,2,FALSE),"") -> 0 | D147: 1 | G147: =IFERROR(IF(C147>0.01,C147/D147,0),0) -> 0 | H147: =G147*F147 -> 0 | I147: =IF(H147>0.01,E147*F147,0) -> 0
C148: =IFERROR(VLOOKUP(B148,'Breakfast Recipe Calculator'!$A$409:$C$424,2,FALSE),"") -> 0 | D148: 1 | G148: 0 | H148: 0 | I148: 0
C149: =IFERROR(VLOOKUP(B149,'Breakfast Recipe Calculator'!$A$409:$C$424,2,FALSE),"") -> 0 | D149: 1 | G149: 0 | H149: 0 | I149: 0
C150: =IFERROR(VLOOKUP(B150,'Breakfast Recipe Calculator'!$A$409:$C$424,2,FALSE),"") -> 0 | D150: 1 | G150: 0 | H150: 0 | I150: 0
C151: =IFERROR(VLOOKUP(B151,'Breakfast Recipe Calculator'!$A$409:$C$424,2,FALSE),"") -> 0 | D151: 1 | G151: 0 | H151: 0 | I151: 0
C152: =IFERROR(VLOOKUP(B152,'Breakfast Recipe Calculator'!$A$409:$C$424,2,FALSE),"") -> 0 | D152: 1 | G152: 0 | H152: 0 | I152: 0
C153: =IFERROR(VLOOKUP(B153,'Breakfast Recipe Calculator'!$A$409:$C$424,2,FALSE),"") -> 0 | D153: 1 | G153: 0 | H153: 0 | I153: 0
C154: =IFERROR(VLOOKUP(B154,'Breakfast Recipe Calculator'!$A$409:$C$424,2,FALSE),"") -> 0 | D154: 1 | G154: 0 | H154: 0 | I154: 0
B155: Pre-Calculated and/or Pre-Packaged Entrees
C156: 0 | D156: =IF(ISBLANK(B156),0,1) -> 0 | G156: =IFERROR(IF(C156>0.01,C156/D156,0),0) -> 0 | H156: =G156*F156 -> 0 | I156: =IF(H156>0.01,E156*F156,0) -> 0
C157: 0 | D157: =IF(ISBLANK(B157),0,1) -> 0 | G157: 0 | H157: 0 | I157: 0
C158: 0 | D158: 0 | G158: 0 | H158: 0 | I158: 0
C159: 0 | D159: 0 | G159: 0 | H159: 0 | I159: 0
C160: 0 | D160: 0 | G160: 0 | H160: 0 | I160: 0
C161: 0 | D161: 0 | G161: 0 | H161: 0 | I161: 0
C162: 0 | D162: 0 | G162: 0 | H162: 0 | I162: 0
C163: 0 | D163: 0 | G163: 0 | H163: 0 | I163: 0
C164: 0 | D164: 0 | G164: 0 | H164: 0 | I164: 0
C165: 0 | D165: 0 | G165: 0 | H165: 0 | I165: 0
F166: Average Entrée Cost: | G166: =IFERROR(AVERAGEIF(G145:G165,">0"),0) -> 0
B167: Item | C167: Cost Per Purchase Unit OR Portion | D167: No. of Portions per Purchase Unit | E167: A La Carte Price Charged Per Portion | F167: No. of Portions Sold A La Carte | G167: Cost per Portion | H167: Total Nonprogram Food Cost | I167: Total Revenue per Item
A168: Fruit or Vegetable Sides | G168: =IFERROR(IF(C168>0.01,C168/D168,0),0) -> 0 | H168: =G168*F168 -> 0 | I168: =IF(H168>0.01,E168*F168,0) -> 0
A169: =IFERROR(AVERAGEIF(G168:G170,">0"),0) -> 0 | G169: 0 | H169: 0 | I169: 0
G170: 0 | H170: 0 | I170: 0
G171: 0 | H171: 0 | I171: 0
A172: =IFERROR(AVERAGEIF(G171:G173,">0"),0) -> 0 | G172: 0 | H172: 0 | I172: 0
G173: 0 | H173: 0 | I173: 0
A174: Grain/Other Sides | G174: 0 | H174: 0 | I174: 0
A175: =IFERROR(AVERAGEIF(G174:G178,">0"),0) -> 0 | G175: 0 | H175: 0 | I175: 0
G176: 0 | H176: 0 | I176: 0
G177: 0 | H177: 0 | I177: 0
G178: 0 | H178: 0 | I178: 0
F179: Total Meal Cost (Avg. Entrée Cost + Avg. Side Item Cost + Avg. Milk Cost ): | G179: =IFERROR(B12+G166+A169+A172+A175,0) -> 0 | H179: =SUM(H168:H178,H156:H165,H145:H154) -> 0 | I179: =SUM(I168:I178,I156:I165,I145:I154) -> 0
A181: Friday
B182: Item | C182: Cost Per Purchase Unit OR Portion | D182: No. of Portions per Purchase Unit | E182: A La Carte Price Charged Per Portion | F182: No. of Portions Sold A La Carte | G182: Cost per Portion | H182: Total Nonprogram Food Cost | I182: Total Revenue per Item
B183: Recipes
A184: Entrée Items | C184: =IFERROR(VLOOKUP(B184,'Breakfast Recipe Calculator'!$A$409:$C$424,2,FALSE),"") -> 0 | D184: 1 | G184: =IFERROR(IF(C184>0.01,C184/D184,0),0) -> 0 | H184: =G184*F184 -> 0 | I184: =IF(H184>0.01,E184*F184,0) -> 0
C185: =IFERROR(VLOOKUP(B185,'Breakfast Recipe Calculator'!$A$409:$C$424,2,FALSE),"") -> 0 | D185: 1 | G185: =IFERROR(IF(C185>0.01,C185/D185,0),0) -> 0 | H185: =G185*F185 -> 0 | I185: =IF(H185>0.01,E185*F185,0) -> 0
C186: =IFERROR(VLOOKUP(B186,'Breakfast Recipe Calculator'!$A$409:$C$424,2,FALSE),"") -> 0 | D186: 1 | G186: =IFERROR(IF(C186>0.01,C186/D186,0),0) -> 0 | H186: =G186*F186 -> 0 | I186: =IF(H186>0.01,E186*F186,0) -> 0
C187: =IFERROR(VLOOKUP(B187,'Breakfast Recipe Calculator'!$A$409:$C$424,2,FALSE),"") -> 0 | D187: 1 | G187: 0 | H187: 0 | I187: 0
C188: =IFERROR(VLOOKUP(B188,'Breakfast Recipe Calculator'!$A$409:$C$424,2,FALSE),"") -> 0 | D188: 1 | G188: 0 | H188: 0 | I188: 0
C189: =IFERROR(VLOOKUP(B189,'Breakfast Recipe Calculator'!$A$409:$C$424,2,FALSE),"") -> 0 | D189: 1 | G189: 0 | H189: 0 | I189: 0
C190: =IFERROR(VLOOKUP(B190,'Breakfast Recipe Calculator'!$A$409:$C$424,2,FALSE),"") -> 0 | D190: 1 | G190: 0 | H190: 0 | I190: 0
C191: =IFERROR(VLOOKUP(B191,'Breakfast Recipe Calculator'!$A$409:$C$424,2,FALSE),"") -> 0 | D191: 1 | G191: 0 | H191: 0 | I191: 0
C192: =IFERROR(VLOOKUP(B192,'Breakfast Recipe Calculator'!$A$409:$C$424,2,FALSE),"") -> 0 | D192: 1 | G192: 0 | H192: 0 | I192: 0
C193: =IFERROR(VLOOKUP(B193,'Breakfast Recipe Calculator'!$A$409:$C$424,2,FALSE),"") -> 0 | D193: 1 | G193: 0 | H193: 0 | I193: 0
B194: Pre-Calculated and/or Pre-Packaged Entrees
C195: 0 | D195: =IF(ISBLANK(B195),0,1) -> 0 | G195: =IFERROR(IF(C195>0.01,C195/D195,0),0) -> 0 | H195: =G195*F195 -> 0 | I195: =IF(H195>0.01,E195*F195,0) -> 0
C196: 0 | D196: =IF(ISBLANK(B196),0,1) -> 0 | G196: 0 | H196: 0 | I196: 0
C197: 0 | D197: 0 | G197: 0 | H197: 0 | I197: 0
C198: 0 | D198: 0 | G198: 0 | H198: 0 | I198: 0
C199: 0 | D199: 0 | G199: 0 | H199: 0 | I199: 0
C200: 0 | D200: 0 | G200: 0 | H200: 0 | I200: 0
C201: 0 | D201: 0 | G201: 0 | H201: 0 | I201: 0
C202: 0 | D202: 0 | G202: 0 | H202: 0 | I202: 0
C203: 0 | D203: 0 | G203: 0 | H203: 0 | I203: 0
C204: 0 | D204: 0 | G204: 0 | H204: 0 | I204: 0
F205: Average Entrée Cost: | G205: =IFERROR(AVERAGEIF(G184:G204,">0"),0) -> 0
B206: Item | C206: Cost Per Purchase Unit OR Portion | D206: No. of Portions per Purchase Unit | E206: A La Carte Price Charged Per Portion | F206: No. of Portions Sold A La Carte | G206: Cost per Portion | H206: Total Nonprogram Food Cost | I206: Total Revenue per Item
... 14 more rows

Sheet Breakfast Menu 2 (hidden)
A1: Breakfast Menu Costing Worksheet
A2: Select Grade Level:
A3: Sponsor Name: | B3: =IF('Instructions (START HERE)'!C2="","",'Instructions (START HERE)'!C2) -> 
A4: Week Selected for Review: | B4: ='Lunch Menu'!B4 -> 0 | C4: Site:
A6: Average Cost of Milk Calculator
A7: Types of Milk Served: | B7: Cost per Unit: | F7: Cost | G7: Revenue | H7: No. Served
A8: Non-fat Milk | B8: =Non_fat_Milk -> 0 | E8: Adult | F8: =SUM(H22:H23) -> 0 | G8: =SUM(I22:I23) -> 0
A9: Non-fat Flavored Milk | B9: =NonFatFlavor -> 0 | E9: Student | F9: =SUM(H16:H21) -> 0 | G9: =SUM(I16:I21) -> 0
A10: 1% Milk | B10: =Milk1 -> 0 | E10: Reim. Meals | F10: =SUM(H16,H19,H20,H21) -> 0 | G10: =SUM(I16,I19:I21) -> 0 | H10: =SUM(C16:G16,C19:G21) -> 0
A11: 1% Flavored Milk | B11: ='Lunch Menu'!B11 -> 0 | E11: Total a la carte | F11: =SUM(H62,H101,H140,H179,H218) -> 0 | G11: =SUM(I62,I101,I140,I179,I218) -> 0
A12: Average Milk Cost: | B12: ='Lunch Menu'!B12 ->  | E12: total adult meals sold | F12: =SUM(C22:G23) -> 0
E13: total a la carte entrée/side items sold | F13: =SUM(F28:F37,F39:F48,F51:F61,F67:F76,F78:F87,F90:F100,F106:F115,F117:F126,F129:F139,F145:F154,F156:F165,F168:F178,F184:F193,F195:F204,F207:F217) -> 0
A14: Program Food Revenue
A15: Reimbursement Rates | C15: Monday Meal Counts | D15: Tuesday Meal Counts | E15: Wednesday Meal Counts | F15: Thursday Meal Counts | G15: Friday Meal Counts | H15: cost | I15: revenue
A16: Free | B16: =FreeBreakfastRates -> 0 | H16: =(C16*$G$62)+(D16*$G$101)+(E16*$G$140)+(F16*$G$179)+(G16*$G$218) -> 0 | I16: =SUM(C16:G16)*B16 -> 0
A17: Reduced | B17: =ReducedBreakfastRates -> 0
A18: Paid | B18: =BPaid -> 0.5
A19: Paid Student Price 1 | B19: =BPSP1 -> 0 | H19: 0 | I19: =(SUM(C19:G19)*B19)+(SUM(C19:G19)*$B$18) -> 0
A20: Paid Student Price 2 | B20: =BPSP2 -> 0 | H20: 0 | I20: =(SUM(C20:G20)*B20)+(SUM(C20:G20)*$B$18) -> 0
A21: Reduced Price | B21: 0.3 | H21: 0 | I21: =(SUM(C21:G21)*B21)+(SUM(C21:G21)*$B$17) -> 0
A22: Adult Meal Price | B22: =BAM -> 0 | H22: =(C22*$G$62)+(D22*$G$101)+(E22*$G$140)+(F22*$G$179)+(G22*$G$218) -> 0 | I22: =SUM(C22:G22)*B22 -> 0
A23: Food Service Staff Meal Price | B23: =BFSS -> 0 | H23: =(C23*$G$62)+(D23*$G$101)+(E23*$G$140)+(F23*$G$179)+(G23*$G$218) -> 0 | I23: =SUM(C23:G23)*B23 -> 0
A25: Monday
B26: Item | C26: Cost Per Purchase Unit OR Portion | D26: No. of Portions per Purchase Unit | E26: A La Carte Price Charged Per Portion | F26: No. of Portions Sold A La Carte | G26: Cost per Portion | H26: Total Nonprogram Food Cost | I26: Total Revenue per Item
B27: Recipes
A28: Entrée Items | C28: =IFERROR(VLOOKUP(B28,'Breakfast Recipe Calculator'!$A$409:$C$424,2,FALSE),"") -> 0 | D28: 1 | G28: =IFERROR(IF(C28>0.01,C28/D28,0),0) -> 0 | H28: =G28*F28 -> 0 | I28: =IF(H28>0.01,E28*F28,0) -> 0
C29: =IFERROR(VLOOKUP(B29,'Breakfast Recipe Calculator'!$A$409:$C$424,2,FALSE),"") -> 0 | D29: 1 | G29: =IFERROR(IF(C29>0.01,C29/D29,0),0) -> 0 | H29: =G29*F29 -> 0 | I29: =IF(H29>0.01,E29*F29,0) -> 0
C30: =IFERROR(VLOOKUP(B30,'Breakfast Recipe Calculator'!$A$409:$C$424,2,FALSE),"") -> 0 | D30: 1 | G30: =IFERROR(IF(C30>0.01,C30/D30,0),0) -> 0 | H30: =G30*F30 -> 0 | I30: =IF(H30>0.01,E30*F30,0) -> 0
C31: =IFERROR(VLOOKUP(B31,'Breakfast Recipe Calculator'!$A$409:$C$424,2,FALSE),"") -> 0 | D31: 1 | G31: 0 | H31: 0 | I31: 0
C32: =IFERROR(VLOOKUP(B32,'Breakfast Recipe Calculator'!$A$409:$C$424,2,FALSE),"") -> 0 | D32: 1 | G32: 0 | H32: 0 | I32: 0
C33: =IFERROR(VLOOKUP(B33,'Breakfast Recipe Calculator'!$A$409:$C$424,2,FALSE),"") -> 0 | D33: 1 | G33: 0 | H33: 0 | I33: 0
C34: =IFERROR(VLOOKUP(B34,'Breakfast Recipe Calculator'!$A$409:$C$424,2,FALSE),"") -> 0 | D34: 1 | G34: 0 | H34: 0 | I34: 0
C35: =IFERROR(VLOOKUP(B35,'Breakfast Recipe Calculator'!$A$409:$C$424,2,FALSE),"") -> 0 | D35: 1 | G35: 0 | H35: 0 | I35: 0
C36: =IFERROR(VLOOKUP(B36,'Breakfast Recipe Calculator'!$A$409:$C$424,2,FALSE),"") -> 0 | D36: 1 | G36: 0 | H36: 0 | I36: 0
C37: =IFERROR(VLOOKUP(B37,'Breakfast Recipe Calculator'!$A$409:$C$424,2,FALSE),"") -> 0 | D37: 1 | G37: 0 | H37: 0 | I37: 0
B38: Pre-Calculated and/or Pre-Packaged Entrees
C39: 0 | D39: =IF(ISBLANK(B39),0,1) -> 0 | G39: =IFERROR(IF(C39>0.01,C39/D39,0),0) -> 0 | H39: =G39*F39 -> 0 | I39: =IF(H39>0.01,E39*F39,0) -> 0
C40: 0 | D40: =IF(ISBLANK(B40),0,1) -> 0 | G40: 0 | H40: 0 | I40: 0
C41: 0 | D41: 0 | G41: 0 | H41: 0 | I41: 0
C42: 0 | D42: 0 | G42: 0 | H42: 0 | I42: 0
C43: 0 | D43: 0 | G43: 0 | H43: 0 | I43: 0
C44: 0 | D44: 0 | G44: 0 | H44: 0 | I44: 0
C45: 0 | D45: 0 | G45: 0 | H45: 0 | I45: 0
C46: 0 | D46: 0 | G46: 0 | H46: 0 | I46: 0
C47: 0 | D47: 0 | G47: 0 | H47: 0 | I47: 0
C48: 0 | D48: 0 | G48: 0 | H48: 0 | I48: 0
F49: Average Entrée Cost: | G49: =IFERROR(AVERAGEIF(G28:G48,">0"),0) -> 0
B50: Item | C50: Cost Per Purchase Unit OR Portion | D50: No. of Portions per Purchase Unit | E50: A La Carte Price Charged Per Portion | F50: No. of Portions Sold A La Carte | G50: Cost per Portion | H50: Total Nonprogram Food Cost | I50: Total Revenue per Item
A51: Fruit or Vegetable Sides | G51: =IFERROR(IF(C51>0.01,C51/D51,0),0) -> 0 | H51: =G51*F51 -> 0 | I51: =IF(H51>0.01,E51*F51,0) -> 0
A52: =IFERROR(AVERAGEIF(G51:G53,">0"),0) -> 0 | G52: 0 | H52: 0 | I52: 0
G53: 0 | H53: 0 | I53: 0
G54: 0 | H54: 0 | I54: 0
A55: =IFERROR(AVERAGEIF(G54:G56,">0"),0) -> 0 | G55: 0 | H55: 0 | I55: 0
G56: 0 | H56: 0 | I56: 0
A57: Grain/Other Sides | G57: 0 | H57: 0 | I57: 0
A58: =IFERROR(AVERAGEIF(G57:G61,">0"),0) -> 0 | G58: 0 | H58: 0 | I58: 0
G59: 0 | H59: 0 | I59: 0
G60: 0 | H60: 0 | I60: 0
G61: 0 | H61: 0 | I61: 0
F62: Total Meal Cost (Avg. Entrée Cost + Avg. Side Item Cost + Avg. Milk Cost ): | G62: =IFERROR(B12+G49+A52+A55+A58,0) -> 0 | H62: =SUM(H51:H61,H39:H48,H28:H37) -> 0 | I62: =SUM(I51:I61,I39:I48,I28:I37) -> 0
A64: Tuesday
B65: Item | C65: Cost Per Purchase Unit OR Portion | D65: No. of Portions per Purchase Unit | E65: A La Carte Price Charged Per Portion | F65: No. of Portions Sold A La Carte | G65: Cost per Portion | H65: Total Nonprogram Food Cost | I65: Total Revenue per Item
B66: Recipes
A67: Entrée Items | C67: =IFERROR(VLOOKUP(B67,'Breakfast Recipe Calculator'!$A$409:$C$424,2,FALSE),"") -> 0 | D67: 1 | G67: =IFERROR(IF(C67>0.01,C67/D67,0),0) -> 0 | H67: =G67*F67 -> 0 | I67: =IF(H67>0.01,E67*F67,0) -> 0
C68: =IFERROR(VLOOKUP(B68,'Breakfast Recipe Calculator'!$A$409:$C$424,2,FALSE),"") -> 0 | D68: 1 | G68: =IFERROR(IF(C68>0.01,C68/D68,0),0) -> 0 | H68: =G68*F68 -> 0 | I68: =IF(H68>0.01,E68*F68,0) -> 0
C69: =IFERROR(VLOOKUP(B69,'Breakfast Recipe Calculator'!$A$409:$C$424,2,FALSE),"") -> 0 | D69: 1 | G69: =IFERROR(IF(C69>0.01,C69/D69,0),0) -> 0 | H69: =G69*F69 -> 0 | I69: =IF(H69>0.01,E69*F69,0) -> 0
C70: =IFERROR(VLOOKUP(B70,'Breakfast Recipe Calculator'!$A$409:$C$424,2,FALSE),"") -> 0 | D70: 1 | G70: 0 | H70: 0 | I70: 0
C71: =IFERROR(VLOOKUP(B71,'Breakfast Recipe Calculator'!$A$409:$C$424,2,FALSE),"") -> 0 | D71: 1 | G71: 0 | H71: 0 | I71: 0
C72: =IFERROR(VLOOKUP(B72,'Breakfast Recipe Calculator'!$A$409:$C$424,2,FALSE),"") -> 0 | D72: 1 | G72: 0 | H72: 0 | I72: 0
C73: =IFERROR(VLOOKUP(B73,'Breakfast Recipe Calculator'!$A$409:$C$424,2,FALSE),"") -> 0 | D73: 1 | G73: 0 | H73: 0 | I73: 0
C74: =IFERROR(VLOOKUP(B74,'Breakfast Recipe Calculator'!$A$409:$C$424,2,FALSE),"") -> 0 | D74: 1 | G74: 0 | H74: 0 | I74: 0
C75: =IFERROR(VLOOKUP(B75,'Breakfast Recipe Calculator'!$A$409:$C$424,2,FALSE),"") -> 0 | D75: 1 | G75: 0 | H75: 0 | I75: 0
C76: =IFERROR(VLOOKUP(B76,'Breakfast Recipe Calculator'!$A$409:$C$424,2,FALSE),"") -> 0 | D76: 1 | G76: 0 | H76: 0 | I76: 0
B77: Pre-Calculated and/or Pre-Packaged Entrees
C78: 0 | D78: =IF(ISBLANK(B78),0,1) -> 0 | G78: =IFERROR(IF(C78>0.01,C78/D78,0),0) -> 0 | H78: =G78*F78 -> 0 | I78: =IF(H78>0.01,E78*F78,0) -> 0
C79: 0 | D79: =IF(ISBLANK(B79),0,1) -> 0 | G79: 0 | H79: 0 | I79: 0
C80: 0 | D80: 0 | G80: 0 | H80: 0 | I80: 0
C81: 0 | D81: 0 | G81: 0 | H81: 0 | I81: 0
C82: 0 | D82: 0 | G82: 0 | H82: 0 | I82: 0
C83: 0 | D83: 0 | G83: 0 | H83: 0 | I83: 0
C84: 0 | D84: 0 | G84: 0 | H84: 0 | I84: 0
C85: 0 | D85: 0 | G85: 0 | H85: 0 | I85: 0
C86: 0 | D86: 0 | G86: 0 | H86: 0 | I86: 0
C87: 0 | D87: 0 | G87: 0 | H87: 0 | I87: 0
F88: Average Entrée Cost: | G88: =IFERROR(AVERAGEIF(G67:G87,">0"),0) -> 0
B89: Item | C89: Cost Per Purchase Unit OR Portion | D89: No. of Portions per Purchase Unit | E89: A La Carte Price Charged Per Portion | F89: No. of Portions Sold A La Carte | G89: Cost per Portion | H89: Total Nonprogram Food Cost | I89: Total Revenue per Item
A90: Fruit or Vegetable Sides | G90: =IFERROR(IF(C90>0.01,C90/D90,0),0) -> 0 | H90: =G90*F90 -> 0 | I90: =IF(H90>0.01,E90*F90,0) -> 0
A91: =IFERROR(AVERAGEIF(G90:G92,"<>0"),0) -> 0 | G91: 0 | H91: 0 | I91: 0
G92: 0 | H92: 0 | I92: 0
G93: 0 | H93: 0 | I93: 0
A94: =IFERROR(AVERAGEIF(G93:G95,"<>0"),0) -> 0 | G94: 0 | H94: 0 | I94: 0
G95: 0 | H95: 0 | I95: 0
A96: Grain/Other Sides | G96: 0 | H96: 0 | I96: 0
A97: =IFERROR(AVERAGEIF(G96:G100,"<>0"),0) -> 0 | G97: 0 | H97: 0 | I97: 0
G98: 0 | H98: 0 | I98: 0
G99: 0 | H99: 0 | I99: 0
G100: 0 | H100: 0 | I100: 0
F101: Total Meal Cost (Avg. Entrée Cost + Avg. Side Item Cost + Avg. Milk Cost ): | G101: =IFERROR(B12+G88+A91+A94+A97,0) -> 0 | H101: =SUM(H90:H100,H78:H87,H67:H76) -> 0 | I101: =SUM(I90:I100,I78:I87,I67:I76) -> 0
A103: Wednesday
B104: Item | C104: Cost Per Purchase Unit OR Portion | D104: No. of Portions per Purchase Unit | E104: A La Carte Price Charged Per Portion | F104: No. of Portions Sold A La Carte | G104: Cost per Portion | H104: Total Nonprogram Food Cost | I104: Total Revenue per Item
B105: Recipes
A106: Entrée Items | C106: =IFERROR(VLOOKUP(B106,'Breakfast Recipe Calculator'!$A$409:$C$424,2,FALSE),"") -> 0 | D106: 1 | G106: =IFERROR(IF(C106>0.01,C106/D106,0),0) -> 0 | H106: =G106*F106 -> 0 | I106: =IF(H106>0.01,E106*F106,0) -> 0
C107: =IFERROR(VLOOKUP(B107,'Breakfast Recipe Calculator'!$A$409:$C$424,2,FALSE),"") -> 0 | D107: 1 | G107: =IFERROR(IF(C107>0.01,C107/D107,0),0) -> 0 | H107: =G107*F107 -> 0 | I107: =IF(H107>0.01,E107*F107,0) -> 0
C108: =IFERROR(VLOOKUP(B108,'Breakfast Recipe Calculator'!$A$409:$C$424,2,FALSE),"") -> 0 | D108: 1 | G108: =IFERROR(IF(C108>0.01,C108/D108,0),0) -> 0 | H108: =G108*F108 -> 0 | I108: =IF(H108>0.01,E108*F108,0) -> 0
C109: =IFERROR(VLOOKUP(B109,'Breakfast Recipe Calculator'!$A$409:$C$424,2,FALSE),"") -> 0 | D109: 1 | G109: 0 | H109: 0 | I109: 0
C110: =IFERROR(VLOOKUP(B110,'Breakfast Recipe Calculator'!$A$409:$C$424,2,FALSE),"") -> 0 | D110: 1 | G110: 0 | H110: 0 | I110: 0
C111: =IFERROR(VLOOKUP(B111,'Breakfast Recipe Calculator'!$A$409:$C$424,2,FALSE),"") -> 0 | D111: 1 | G111: 0 | H111: 0 | I111: 0
C112: =IFERROR(VLOOKUP(B112,'Breakfast Recipe Calculator'!$A$409:$C$424,2,FALSE),"") -> 0 | D112: 1 | G112: 0 | H112: 0 | I112: 0
C113: =IFERROR(VLOOKUP(B113,'Breakfast Recipe Calculator'!$A$409:$C$424,2,FALSE),"") -> 0 | D113: 1 | G113: 0 | H113: 0 | I113: 0
C114: =IFERROR(VLOOKUP(B114,'Breakfast Recipe Calculator'!$A$409:$C$424,2,FALSE),"") -> 0 | D114: 1 | G114: 0 | H114: 0 | I114: 0
C115: =IFERROR(VLOOKUP(B115,'Breakfast Recipe Calculator'!$A$409:$C$424,2,FALSE),"") -> 0 | D115: 1 | G115: 0 | H115: 0 | I115: 0
B116: Pre-Calculated and/or Pre-Packaged Entrees
C117: 0 | D117: =IF(ISBLANK(B117),0,1) -> 0 | G117: =IFERROR(IF(C117>0.01,C117/D117,0),0) -> 0 | H117: =G117*F117 -> 0 | I117: =IF(H117>0.01,E117*F117,0) -> 0
C118: 0 | D118: =IF(ISBLANK(B118),0,1) -> 0 | G118: 0 | H118: 0 | I118: 0
C119: 0 | D119: 0 | G119: 0 | H119: 0 | I119: 0
C120: 0 | D120: 0 | G120: 0 | H120: 0 | I120: 0
C121: 0 | D121: 0 | G121: 0 | H121: 0 | I121: 0
C122: 0 | D122: 0 | G122: 0 | H122: 0 | I122: 0
C123: 0 | D123: 0 | G123: 0 | H123: 0 | I123: 0
C124: 0 | D124: 0 | G124: 0 | H124: 0 | I124: 0
C125: 0 | D125: 0 | G125: 0 | H125: 0 | I125: 0
C126: 0 | D126: 0 | G126: 0 | H126: 0 | I126: 0
F127: Average Entrée Cost: | G127: =IFERROR(AVERAGEIF(G106:G126,">0"),0) -> 0
B128: Item | C128: Cost Per Purchase Unit OR Portion | D128: No. of Portions per Purchase Unit | E128: A La Carte Price Charged Per Portion | F128: No. of Portions Sold A La Carte | G128: Cost per Portion | H128: Total Nonprogram Food Cost | I128: Total Revenue per Item
A129: Fruit or Vegetable Sides | G129: =IFERROR(IF(C129>0.01,C129/D129,0),0) -> 0 | H129: =G129*F129 -> 0 | I129: =IF(H129>0.01,E129*F129,0) -> 0
A130: =IFERROR(AVERAGEIF(G129:G131,">0"),0) -> 0 | G130: 0 | H130: 0 | I130: 0
G131: 0 | H131: 0 | I131: 0
G132: 0 | H132: 0 | I132: 0
A133: =IFERROR(AVERAGEIF(G132:G134,">0"),0) -> 0 | G133: 0 | H133: 0 | I133: 0
G134: 0 | H134: 0 | I134: 0
A135: Grain/Other Sides | G135: 0 | H135: 0 | I135: 0
A136: =IFERROR(AVERAGEIF(G135:G139,">0"),0) -> 0 | G136: 0 | H136: 0 | I136: 0
G137: 0 | H137: 0 | I137: 0
G138: 0 | H138: 0 | I138: 0
G139: 0 | H139: 0 | I139: 0
F140: Total Meal Cost (Avg. Entrée Cost + Avg. Side Item Cost + Avg. Milk Cost ): | G140: =IFERROR(B12+G127+A130+A133+A136,0) -> 0 | H140: =SUM(H129:H139,H117:H126,H106:H115) -> 0 | I140: =SUM(I129:I139,I117:I126,I106:I115) -> 0
A142: Thursday
B143: Item | C143: Cost Per Purchase Unit OR Portion | D143: No. of Portions per Purchase Unit | E143: A La Carte Price Charged Per Portion | F143: No. of Portions Sold A La Carte | G143: Cost per Portion | H143: Total Nonprogram Food Cost | I143: Total Revenue per Item
B144: Recipes
A145: Entrée Items | C145: =IFERROR(VLOOKUP(B145,'Breakfast Recipe Calculator'!$A$409:$C$424,2,FALSE),"") -> 0 | D145: 1 | G145: =IFERROR(IF(C145>0.01,C145/D145,0),0) -> 0 | H145: =G145*F145 -> 0 | I145: =IF(H145>0.01,E145*F145,0) -> 0
C146: =IFERROR(VLOOKUP(B146,'Breakfast Recipe Calculator'!$A$409:$C$424,2,FALSE),"") -> 0 | D146: 1 | G146: =IFERROR(IF(C146>0.01,C146/D146,0),0) -> 0 | H146: =G146*F146 -> 0 | I146: =IF(H146>0.01,E146*F146,0) -> 0
C147: =IFERROR(VLOOKUP(B147,'Breakfast Recipe Calculator'!$A$409:$C$424,2,FALSE),"") -> 0 | D147: 1 | G147: =IFERROR(IF(C147>0.01,C147/D147,0),0) -> 0 | H147: =G147*F147 -> 0 | I147: =IF(H147>0.01,E147*F147,0) -> 0
C148: =IFERROR(VLOOKUP(B148,'Breakfast Recipe Calculator'!$A$409:$C$424,2,FALSE),"") -> 0 | D148: 1 | G148: 0 | H148: 0 | I148: 0
C149: =IFERROR(VLOOKUP(B149,'Breakfast Recipe Calculator'!$A$409:$C$424,2,FALSE),"") -> 0 | D149: 1 | G149: 0 | H149: 0 | I149: 0
C150: =IFERROR(VLOOKUP(B150,'Breakfast Recipe Calculator'!$A$409:$C$424,2,FALSE),"") -> 0 | D150: 1 | G150: 0 | H150: 0 | I150: 0
C151: =IFERROR(VLOOKUP(B151,'Breakfast Recipe Calculator'!$A$409:$C$424,2,FALSE),"") -> 0 | D151: 1 | G151: 0 | H151: 0 | I151: 0
C152: =IFERROR(VLOOKUP(B152,'Breakfast Recipe Calculator'!$A$409:$C$424,2,FALSE),"") -> 0 | D152: 1 | G152: 0 | H152: 0 | I152: 0
C153: =IFERROR(VLOOKUP(B153,'Breakfast Recipe Calculator'!$A$409:$C$424,2,FALSE),"") -> 0 | D153: 1 | G153: 0 | H153: 0 | I153: 0
C154: =IFERROR(VLOOKUP(B154,'Breakfast Recipe Calculator'!$A$409:$C$424,2,FALSE),"") -> 0 | D154: 1 | G154: 0 | H154: 0 | I154: 0
B155: Pre-Calculated and/or Pre-Packaged Entrees
C156: 0 | D156: =IF(ISBLANK(B156),0,1) -> 0 | G156: =IFERROR(IF(C156>0.01,C156/D156,0),0) -> 0 | H156: =G156*F156 -> 0 | I156: =IF(H156>0.01,E156*F156,0) -> 0
C157: 0 | D157: =IF(ISBLANK(B157),0,1) -> 0 | G157: 0 | H157: 0 | I157: 0
C158: 0 | D158: 0 | G158: 0 | H158: 0 | I158: 0
C159: 0 | D159: 0 | G159: 0 | H159: 0 | I159: 0
C160: 0 | D160: 0 | G160: 0 | H160: 0 | I160: 0
C161: 0 | D161: 0 | G161: 0 | H161: 0 | I161: 0
C162: 0 | D162: 0 | G162: 0 | H162: 0 | I162: 0
C163: 0 | D163: 0 | G163: 0 | H163: 0 | I163: 0
C164: 0 | D164: 0 | G164: 0 | H164: 0 | I164: 0
C165: 0 | D165: 0 | G165: 0 | H165: 0 | I165: 0
F166: Average Entrée Cost: | G166: =IFERROR(AVERAGEIF(G145:G165,">0"),0) -> 0
B167: Item | C167: Cost Per Purchase Unit OR Portion | D167: No. of Portions per Purchase Unit | E167: A La Carte Price Charged Per Portion | F167: No. of Portions Sold A La Carte | G167: Cost per Portion | H167: Total Nonprogram Food Cost | I167: Total Revenue per Item
A168: Fruit or Vegetable Sides | G168: =IFERROR(IF(C168>0.01,C168/D168,0),0) -> 0 | H168: =G168*F168 -> 0 | I168: =IF(H168>0.01,E168*F168,0) -> 0
A169: =IFERROR(AVERAGEIF(G168:G170,">0"),0) -> 0 | G169: 0 | H169: 0 | I169: 0
G170: 0 | H170: 0 | I170: 0
G171: 0 | H171: 0 | I171: 0
A172: =IFERROR(AVERAGEIF(G171:G173,">0"),0) -> 0 | G172: 0 | H172: 0 | I172: 0
G173: 0 | H173: 0 | I173: 0
A174: Grain/Other Sides | G174: 0 | H174: 0 | I174: 0
A175: =IFERROR(AVERAGEIF(G174:G178,">0"),0) -> 0 | G175: 0 | H175: 0 | I175: 0
G176: 0 | H176: 0 | I176: 0
G177: 0 | H177: 0 | I177: 0
G178: 0 | H178: 0 | I178: 0
F179: Total Meal Cost (Avg. Entrée Cost + Avg. Side Item Cost + Avg. Milk Cost ): | G179: =IFERROR(B12+G166+A169+A172+A175,0) -> 0 | H179: =SUM(H168:H178,H156:H165,H145:H154) -> 0 | I179: =SUM(I168:I178,I156:I165,I145:I154) -> 0
A181: Friday
B182: Item | C182: Cost Per Purchase Unit OR Portion | D182: No. of Portions per Purchase Unit | E182: A La Carte Price Charged Per Portion | F182: No. of Portions Sold A La Carte | G182: Cost per Portion | H182: Total Nonprogram Food Cost | I182: Total Revenue per Item
B183: Recipes
A184: Entrée Items | C184: =IFERROR(VLOOKUP(B184,'Breakfast Recipe Calculator'!$A$409:$C$424,2,FALSE),"") -> 0 | D184: 1 | G184: =IFERROR(IF(C184>0.01,C184/D184,0),0) -> 0 | H184: =G184*F184 -> 0 | I184: =IF(H184>0.01,E184*F184,0) -> 0
C185: =IFERROR(VLOOKUP(B185,'Breakfast Recipe Calculator'!$A$409:$C$424,2,FALSE),"") -> 0 | D185: 1 | G185: =IFERROR(IF(C185>0.01,C185/D185,0),0) -> 0 | H185: =G185*F185 -> 0 | I185: =IF(H185>0.01,E185*F185,0) -> 0
C186: =IFERROR(VLOOKUP(B186,'Breakfast Recipe Calculator'!$A$409:$C$424,2,FALSE),"") -> 0 | D186: 1 | G186: =IFERROR(IF(C186>0.01,C186/D186,0),0) -> 0 | H186: =G186*F186 -> 0 | I186: =IF(H186>0.01,E186*F186,0) -> 0
C187: =IFERROR(VLOOKUP(B187,'Breakfast Recipe Calculator'!$A$409:$C$424,2,FALSE),"") -> 0 | D187: 1 | G187: 0 | H187: 0 | I187: 0
C188: =IFERROR(VLOOKUP(B188,'Breakfast Recipe Calculator'!$A$409:$C$424,2,FALSE),"") -> 0 | D188: 1 | G188: 0 | H188: 0 | I188: 0
C189: =IFERROR(VLOOKUP(B189,'Breakfast Recipe Calculator'!$A$409:$C$424,2,FALSE),"") -> 0 | D189: 1 | G189: 0 | H189: 0 | I189: 0
C190: =IFERROR(VLOOKUP(B190,'Breakfast Recipe Calculator'!$A$409:$C$424,2,FALSE),"") -> 0 | D190: 1 | G190: 0 | H190: 0 | I190: 0
C191: =IFERROR(VLOOKUP(B191,'Breakfast Recipe Calculator'!$A$409:$C$424,2,FALSE),"") -> 0 | D191: 1 | G191: 0 | H191: 0 | I191: 0
C192: =IFERROR(VLOOKUP(B192,'Breakfast Recipe Calculator'!$A$409:$C$424,2,FALSE),"") -> 0 | D192: 1 | G192: 0 | H192: 0 | I192: 0
C193: =IFERROR(VLOOKUP(B193,'Breakfast Recipe Calculator'!$A$409:$C$424,2,FALSE),"") -> 0 | D193: 1 | G193: 0 | H193: 0 | I193: 0
B194: Pre-Calculated and/or Pre-Packaged Entrees
C195: 0 | D195: =IF(ISBLANK(B195),0,1) -> 0 | G195: =IFERROR(IF(C195>0.01,C195/D195,0),0) -> 0 | H195: =G195*F195 -> 0 | I195: =IF(H195>0.01,E195*F195,0) -> 0
C196: 0 | D196: =IF(ISBLANK(B196),0,1) -> 0 | G196: 0 | H196: 0 | I196: 0
C197: 0 | D197: 0 | G197: 0 | H197: 0 | I197: 0
C198: 0 | D198: 0 | G198: 0 | H198: 0 | I198: 0
C199: 0 | D199: 0 | G199: 0 | H199: 0 | I199: 0
C200: 0 | D200: 0 | G200: 0 | H200: 0 | I200: 0
C201: 0 | D201: 0 | G201: 0 | H201: 0 | I201: 0
C202: 0 | D202: 0 | G202: 0 | H202: 0 | I202: 0
C203: 0 | D203: 0 | G203: 0 | H203: 0 | I203: 0
C204: 0 | D204: 0 | G204: 0 | H204: 0 | I204: 0
F205: Average Entrée Cost: | G205: =IFERROR(AVERAGEIF(G184:G204,">0"),0) -> 0
B206: Item | C206: Cost Per Purchase Unit OR Portion | D206: No. of Portions per Purchase Unit | E206: A La Carte Price Charged Per Portion | F206: No. of Portions Sold A La Carte | G206: Cost per Portion | H206: Total Nonprogram Food Cost | I206: Total Revenue per Item
... 14 more rows

Sheet Breakfast Menu 3 (hidden)
A1: Breakfast Menu Costing Worksheet
A2: Select Grade Level:
A3: Sponsor Name: | B3: =IF('Instructions (START HERE)'!C2="","",'Instructions (START HERE)'!C2) -> 
A4: Week Selected for Review: | B4: ='Lunch Menu'!B4 -> 0 | C4: Site:
A6: Average Cost of Milk Calculator
A7: Types of Milk Served: | B7: Cost per Unit: | F7: Cost | G7: Revenue | H7: No. Served
A8: Non-fat Milk | B8: =Non_fat_Milk -> 0 | E8: Adult | F8: =SUM(H22:H23) -> 0 | G8: =SUM(I22:I23) -> 0
A9: Non-fat Flavored Milk | B9: =NonFatFlavor -> 0 | E9: Student | F9: =SUM(H16:H21) -> 0 | G9: =SUM(I16:I21) -> 0
A10: 1% Milk | B10: =Milk1 -> 0 | E10: Reim. Meals | F10: =SUM(H16,H19,H20,H21) -> 0 | G10: =SUM(I16,I19:I21) -> 0 | H10: =SUM(C16:G16,C19:G21) -> 0
A11: 1% Flavored Milk | B11: =Flav1 -> 0 | E11: Total a la carte | F11: =SUM(H62,H101,H140,H179,H218) -> 0 | G11: =SUM(I62,I101,I140,I179,I218) -> 0
A12: Average Milk Cost: | B12: ='Lunch Menu'!B12 ->  | E12: total adult meals sold | F12: =SUM(C22:G23) -> 0
E13: total a la carte entrée/side items sold | F13: =SUM(F28:F37,F39:F48,F51:F61,F67:F76,F78:F87,F90:F100,F106:F115,F117:F126,F129:F139,F145:F154,F156:F165,F168:F178,F184:F193,F195:F204,F207:F217) -> 0
A14: Program Food Revenue
A15: Reimbursement Rates | C15: Monday Meal Counts | D15: Tuesday Meal Counts | E15: Wednesday Meal Counts | F15: Thursday Meal Counts | G15: Friday Meal Counts | H15: cost | I15: revenue
A16: Free | B16: =FreeBreakfastRates -> 0 | H16: =(C16*$G$62)+(D16*$G$101)+(E16*$G$140)+(F16*$G$179)+(G16*$G$218) -> 0 | I16: =SUM(C16:G16)*B16 -> 0
A17: Reduced | B17: =ReducedBreakfastRates -> 0
A18: Paid | B18: =BPaid -> 0.5
A19: Paid Student Price 1 | B19: =BPSP1 -> 0 | H19: 0 | I19: =(SUM(C19:G19)*B19)+(SUM(C19:G19)*$B$18) -> 0
A20: Paid Student Price 2 | B20: =BPSP2 -> 0 | H20: 0 | I20: =(SUM(C20:G20)*B20)+(SUM(C20:G20)*$B$18) -> 0
A21: Reduced Price | B21: 0.3 | H21: 0 | I21: =(SUM(C21:G21)*B21)+(SUM(C21:G21)*$B$17) -> 0
A22: Adult Meal Price | B22: =BAM -> 0 | H22: =(C22*$G$62)+(D22*$G$101)+(E22*$G$140)+(F22*$G$179)+(G22*$G$218) -> 0 | I22: =SUM(C22:G22)*B22 -> 0
A23: Food Service Staff Meal Price | B23: =BFSS -> 0 | H23: =(C23*$G$62)+(D23*$G$101)+(E23*$G$140)+(F23*$G$179)+(G23*$G$218) -> 0 | I23: =SUM(C23:G23)*B23 -> 0
A25: Monday
B26: Item | C26: Cost Per Purchase Unit OR Portion | D26: No. of Portions per Purchase Unit | E26: A La Carte Price Charged Per Portion | F26: No. of Portions Sold A La Carte | G26: Cost per Portion | H26: Total Nonprogram Food Cost | I26: Total Revenue per Item
B27: Recipes
A28: Entrée Items | C28: =IFERROR(VLOOKUP(B28,'Breakfast Recipe Calculator'!$A$409:$C$424,2,FALSE),"") -> 0 | D28: 1 | G28: =IFERROR(IF(C28>0.01,C28/D28,0),0) -> 0 | H28: =G28*F28 -> 0 | I28: =IF(H28>0.01,E28*F28,0) -> 0
C29: =IFERROR(VLOOKUP(B29,'Breakfast Recipe Calculator'!$A$409:$C$424,2,FALSE),"") -> 0 | D29: 1 | G29: =IFERROR(IF(C29>0.01,C29/D29,0),0) -> 0 | H29: =G29*F29 -> 0 | I29: =IF(H29>0.01,E29*F29,0) -> 0
C30: =IFERROR(VLOOKUP(B30,'Breakfast Recipe Calculator'!$A$409:$C$424,2,FALSE),"") -> 0 | D30: 1 | G30: =IFERROR(IF(C30>0.01,C30/D30,0),0) -> 0 | H30: =G30*F30 -> 0 | I30: =IF(H30>0.01,E30*F30,0) -> 0
C31: =IFERROR(VLOOKUP(B31,'Breakfast Recipe Calculator'!$A$409:$C$424,2,FALSE),"") -> 0 | D31: 1 | G31: 0 | H31: 0 | I31: 0
C32: =IFERROR(VLOOKUP(B32,'Breakfast Recipe Calculator'!$A$409:$C$424,2,FALSE),"") -> 0 | D32: 1 | G32: 0 | H32: 0 | I32: 0
C33: =IFERROR(VLOOKUP(B33,'Breakfast Recipe Calculator'!$A$409:$C$424,2,FALSE),"") -> 0 | D33: 1 | G33: 0 | H33: 0 | I33: 0
C34: =IFERROR(VLOOKUP(B34,'Breakfast Recipe Calculator'!$A$409:$C$424,2,FALSE),"") -> 0 | D34: 1 | G34: 0 | H34: 0 | I34: 0
C35: =IFERROR(VLOOKUP(B35,'Breakfast Recipe Calculator'!$A$409:$C$424,2,FALSE),"") -> 0 | D35: 1 | G35: 0 | H35: 0 | I35: 0
C36: =IFERROR(VLOOKUP(B36,'Breakfast Recipe Calculator'!$A$409:$C$424,2,FALSE),"") -> 0 | D36: 1 | G36: 0 | H36: 0 | I36: 0
C37: =IFERROR(VLOOKUP(B37,'Breakfast Recipe Calculator'!$A$409:$C$424,2,FALSE),"") -> 0 | D37: 1 | G37: 0 | H37: 0 | I37: 0
B38: Pre-Calculated and/or Pre-Packaged Entrees
C39: 0 | D39: =IF(ISBLANK(B39),0,1) -> 0 | G39: =IFERROR(IF(C39>0.01,C39/D39,0),0) -> 0 | H39: =G39*F39 -> 0 | I39: =IF(H39>0.01,E39*F39,0) -> 0
C40: 0 | D40: =IF(ISBLANK(B40),0,1) -> 0 | G40: 0 | H40: 0 | I40: 0
C41: 0 | D41: 0 | G41: 0 | H41: 0 | I41: 0
C42: 0 | D42: 0 | G42: 0 | H42: 0 | I42: 0
C43: 0 | D43: 0 | G43: 0 | H43: 0 | I43: 0
C44: 0 | D44: 0 | G44: 0 | H44: 0 | I44: 0
C45: 0 | D45: 0 | G45: 0 | H45: 0 | I45: 0
C46: 0 | D46: 0 | G46: 0 | H46: 0 | I46: 0
C47: 0 | D47: 0 | G47: 0 | H47: 0 | I47: 0
C48: 0 | D48: 0 | G48: 0 | H48: 0 | I48: 0
F49: Average Entrée Cost: | G49: =IFERROR(AVERAGEIF(G28:G48,">0"),0) -> 0
B50: Item | C50: Cost Per Purchase Unit OR Portion | D50: No. of Portions per Purchase Unit | E50: A La Carte Price Charged Per Portion | F50: No. of Portions Sold A La Carte | G50: Cost per Portion | H50: Total Nonprogram Food Cost | I50: Total Revenue per Item
A51: Fruit or Vegetable Sides | G51: =IFERROR(IF(C51>0.01,C51/D51,0),0) -> 0 | H51: =G51*F51 -> 0 | I51: =IF(H51>0.01,E51*F51,0) -> 0
A52: =IFERROR(AVERAGEIF(G51:G53,">0"),0) -> 0 | G52: 0 | H52: 0 | I52: 0
G53: 0 | H53: 0 | I53: 0
G54: 0 | H54: 0 | I54: 0
A55: =IFERROR(AVERAGEIF(G54:G56,">0"),0) -> 0 | G55: 0 | H55: 0 | I55: 0
G56: 0 | H56: 0 | I56: 0
A57: Grain/Other Sides | G57: 0 | H57: 0 | I57: 0
A58: =IFERROR(AVERAGEIF(G57:G61,">0"),0) -> 0 | G58: 0 | H58: 0 | I58: 0
G59: 0 | H59: 0 | I59: 0
G60: 0 | H60: 0 | I60: 0
G61: 0 | H61: 0 | I61: 0
F62: Total Meal Cost (Avg. Entrée Cost + Avg. Side Item Cost + Avg. Milk Cost ): | G62: =IFERROR(B12+G49+A52+A55+A58,0) -> 0 | H62: =SUM(H51:H61,H39:H48,H28:H37) -> 0 | I62: =SUM(I51:I61,I39:I48,I28:I37) -> 0
A64: Tuesday
B65: Item | C65: Cost Per Purchase Unit OR Portion | D65: No. of Portions per Purchase Unit | E65: A La Carte Price Charged Per Portion | F65: No. of Portions Sold A La Carte | G65: Cost per Portion | H65: Total Nonprogram Food Cost | I65: Total Revenue per Item
B66: Recipes
A67: Entrée Items | C67: =IFERROR(VLOOKUP(B67,'Breakfast Recipe Calculator'!$A$409:$C$424,2,FALSE),"") -> 0 | D67: 1 | G67: =IFERROR(IF(C67>0.01,C67/D67,0),0) -> 0 | H67: =G67*F67 -> 0 | I67: =IF(H67>0.01,E67*F67,0) -> 0
C68: =IFERROR(VLOOKUP(B68,'Breakfast Recipe Calculator'!$A$409:$C$424,2,FALSE),"") -> 0 | D68: 1 | G68: =IFERROR(IF(C68>0.01,C68/D68,0),0) -> 0 | H68: =G68*F68 -> 0 | I68: =IF(H68>0.01,E68*F68,0) -> 0
C69: =IFERROR(VLOOKUP(B69,'Breakfast Recipe Calculator'!$A$409:$C$424,2,FALSE),"") -> 0 | D69: 1 | G69: =IFERROR(IF(C69>0.01,C69/D69,0),0) -> 0 | H69: =G69*F69 -> 0 | I69: =IF(H69>0.01,E69*F69,0) -> 0
C70: =IFERROR(VLOOKUP(B70,'Breakfast Recipe Calculator'!$A$409:$C$424,2,FALSE),"") -> 0 | D70: 1 | G70: 0 | H70: 0 | I70: 0
C71: =IFERROR(VLOOKUP(B71,'Breakfast Recipe Calculator'!$A$409:$C$424,2,FALSE),"") -> 0 | D71: 1 | G71: 0 | H71: 0 | I71: 0
C72: =IFERROR(VLOOKUP(B72,'Breakfast Recipe Calculator'!$A$409:$C$424,2,FALSE),"") -> 0 | D72: 1 | G72: 0 | H72: 0 | I72: 0
C73: =IFERROR(VLOOKUP(B73,'Breakfast Recipe Calculator'!$A$409:$C$424,2,FALSE),"") -> 0 | D73: 1 | G73: 0 | H73: 0 | I73: 0
C74: =IFERROR(VLOOKUP(B74,'Breakfast Recipe Calculator'!$A$409:$C$424,2,FALSE),"") -> 0 | D74: 1 | G74: 0 | H74: 0 | I74: 0
C75: =IFERROR(VLOOKUP(B75,'Breakfast Recipe Calculator'!$A$409:$C$424,2,FALSE),"") -> 0 | D75: 1 | G75: 0 | H75: 0 | I75: 0
C76: =IFERROR(VLOOKUP(B76,'Breakfast Recipe Calculator'!$A$409:$C$424,2,FALSE),"") -> 0 | D76: 1 | G76: 0 | H76: 0 | I76: 0
B77: Pre-Calculated and/or Pre-Packaged Entrees
C78: 0 | D78: =IF(ISBLANK(B78),0,1) -> 0 | G78: =IFERROR(IF(C78>0.01,C78/D78,0),0) -> 0 | H78: =G78*F78 -> 0 | I78: =IF(H78>0.01,E78*F78,0) -> 0
C79: 0 | D79: =IF(ISBLANK(B79),0,1) -> 0 | G79: 0 | H79: 0 | I79: 0
C80: 0 | D80: 0 | G80: 0 | H80: 0 | I80: 0
C81: 0 | D81: 0 | G81: 0 | H81: 0 | I81: 0
C82: 0 | D82: 0 | G82: 0 | H82: 0 | I82: 0
C83: 0 | D83: 0 | G83: 0 | H83: 0 | I83: 0
C84: 0 | D84: 0 | G84: 0 | H84: 0 | I84: 0
C85: 0 | D85: 0 | G85: 0 | H85: 0 | I85: 0
C86: 0 | D86: 0 | G86: 0 | H86: 0 | I86: 0
C87: 0 | D87: 0 | G87: 0 | H87: 0 | I87: 0
F88: Average Entrée Cost: | G88: =IFERROR(AVERAGEIF(G67:G87,">0"),0) -> 0
B89: Item | C89: Cost Per Purchase Unit OR Portion | D89: No. of Portions per Purchase Unit | E89: A La Carte Price Charged Per Portion | F89: No. of Portions Sold A La Carte | G89: Cost per Portion | H89: Total Nonprogram Food Cost | I89: Total Revenue per Item
A90: Fruit or Vegetable Sides | G90: =IFERROR(IF(C90>0.01,C90/D90,0),0) -> 0 | H90: =G90*F90 -> 0 | I90: =IF(H90>0.01,E90*F90,0) -> 0
A91: =IFERROR(AVERAGEIF(G90:G92,"<>0"),0) -> 0 | G91: 0 | H91: 0 | I91: 0
G92: 0 | H92: 0 | I92: 0
G93: 0 | H93: 0 | I93: 0
A94: =IFERROR(AVERAGEIF(G93:G95,"<>0"),0) -> 0 | G94: 0 | H94: 0 | I94: 0
G95: 0 | H95: 0 | I95: 0
A96: Grain/Other Sides | G96: 0 | H96: 0 | I96: 0
A97: =IFERROR(AVERAGEIF(G96:G100,"<>0"),0) -> 0 | G97: 0 | H97: 0 | I97: 0
G98: 0 | H98: 0 | I98: 0
G99: 0 | H99: 0 | I99: 0
G100: 0 | H100: 0 | I100: 0
F101: Total Meal Cost (Avg. Entrée Cost + Avg. Side Item Cost + Avg. Milk Cost ): | G101: =IFERROR(B12+G88+A91+A94+A97,0) -> 0 | H101: =SUM(H90:H100,H78:H87,H67:H76) -> 0 | I101: =SUM(I90:I100,I78:I87,I67:I76) -> 0
A103: Wednesday
B104: Item | C104: Cost Per Purchase Unit OR Portion | D104: No. of Portions per Purchase Unit | E104: A La Carte Price Charged Per Portion | F104: No. of Portions Sold A La Carte | G104: Cost per Portion | H104: Total Nonprogram Food Cost | I104: Total Revenue per Item
B105: Recipes
A106: Entrée Items | C106: =IFERROR(VLOOKUP(B106,'Breakfast Recipe Calculator'!$A$409:$C$424,2,FALSE),"") -> 0 | D106: 1 | G106: =IFERROR(IF(C106>0.01,C106/D106,0),0) -> 0 | H106: =G106*F106 -> 0 | I106: =IF(H106>0.01,E106*F106,0) -> 0
C107: =IFERROR(VLOOKUP(B107,'Breakfast Recipe Calculator'!$A$409:$C$424,2,FALSE),"") -> 0 | D107: 1 | G107: =IFERROR(IF(C107>0.01,C107/D107,0),0) -> 0 | H107: =G107*F107 -> 0 | I107: =IF(H107>0.01,E107*F107,0) -> 0
C108: =IFERROR(VLOOKUP(B108,'Breakfast Recipe Calculator'!$A$409:$C$424,2,FALSE),"") -> 0 | D108: 1 | G108: =IFERROR(IF(C108>0.01,C108/D108,0),0) -> 0 | H108: =G108*F108 -> 0 | I108: =IF(H108>0.01,E108*F108,0) -> 0
C109: =IFERROR(VLOOKUP(B109,'Breakfast Recipe Calculator'!$A$409:$C$424,2,FALSE),"") -> 0 | D109: 1 | G109: 0 | H109: 0 | I109: 0
C110: =IFERROR(VLOOKUP(B110,'Breakfast Recipe Calculator'!$A$409:$C$424,2,FALSE),"") -> 0 | D110: 1 | G110: 0 | H110: 0 | I110: 0
C111: =IFERROR(VLOOKUP(B111,'Breakfast Recipe Calculator'!$A$409:$C$424,2,FALSE),"") -> 0 | D111: 1 | G111: 0 | H111: 0 | I111: 0
C112: =IFERROR(VLOOKUP(B112,'Breakfast Recipe Calculator'!$A$409:$C$424,2,FALSE),"") -> 0 | D112: 1 | G112: 0 | H112: 0 | I112: 0
C113: =IFERROR(VLOOKUP(B113,'Breakfast Recipe Calculator'!$A$409:$C$424,2,FALSE),"") -> 0 | D113: 1 | G113: 0 | H113: 0 | I113: 0
C114: =IFERROR(VLOOKUP(B114,'Breakfast Recipe Calculator'!$A$409:$C$424,2,FALSE),"") -> 0 | D114: 1 | G114: 0 | H114: 0 | I114: 0
C115: =IFERROR(VLOOKUP(B115,'Breakfast Recipe Calculator'!$A$409:$C$424,2,FALSE),"") -> 0 | D115: 1 | G115: 0 | H115: 0 | I115: 0
B116: Pre-Calculated and/or Pre-Packaged Entrees
C117: 0 | D117: =IF(ISBLANK(B117),0,1) -> 0 | G117: =IFERROR(IF(C117>0.01,C117/D117,0),0) -> 0 | H117: =G117*F117 -> 0 | I117: =IF(H117>0.01,E117*F117,0) -> 0
C118: 0 | D118: =IF(ISBLANK(B118),0,1) -> 0 | G118: 0 | H118: 0 | I118: 0
C119: 0 | D119: 0 | G119: 0 | H119: 0 | I119: 0
C120: 0 | D120: 0 | G120: 0 | H120: 0 | I120: 0
C121: 0 | D121: 0 | G121: 0 | H121: 0 | I121: 0
C122: 0 | D122: 0 | G122: 0 | H122: 0 | I122: 0
C123: 0 | D123: 0 | G123: 0 | H123: 0 | I123: 0
C124: 0 | D124: 0 | G124: 0 | H124: 0 | I124: 0
C125: 0 | D125: 0 | G125: 0 | H125: 0 | I125: 0
C126: 0 | D126: 0 | G126: 0 | H126: 0 | I126: 0
F127: Average Entrée Cost: | G127: =IFERROR(AVERAGEIF(G106:G126,">0"),0) -> 0
B128: Item | C128: Cost Per Purchase Unit OR Portion | D128: No. of Portions per Purchase Unit | E128: A La Carte Price Charged Per Portion | F128: No. of Portions Sold A La Carte | G128: Cost per Portion | H128: Total Nonprogram Food Cost | I128: Total Revenue per Item
A129: Fruit or Vegetable Sides | G129: =IFERROR(IF(C129>0.01,C129/D129,0),0) -> 0 | H129: =G129*F129 -> 0 | I129: =IF(H129>0.01,E129*F129,0) -> 0
A130: =IFERROR(AVERAGEIF(G129:G131,">0"),0) -> 0 | G130: 0 | H130: 0 | I130: 0
G131: 0 | H131: 0 | I131: 0
G132: 0 | H132: 0 | I132: 0
A133: =IFERROR(AVERAGEIF(G132:G134,">0"),0) -> 0 | G133: 0 | H133: 0 | I133: 0
G134: 0 | H134: 0 | I134: 0
A135: Grain/Other Sides | G135: 0 | H135: 0 | I135: 0
A136: =IFERROR(AVERAGEIF(G135:G139,">0"),0) -> 0 | G136: 0 | H136: 0 | I136: 0
G137: 0 | H137: 0 | I137: 0
G138: 0 | H138: 0 | I138: 0
G139: 0 | H139: 0 | I139: 0
F140: Total Meal Cost (Avg. Entrée Cost + Avg. Side Item Cost + Avg. Milk Cost ): | G140: =IFERROR(B12+G127+A130+A133+A136,0) -> 0 | H140: =SUM(H129:H139,H117:H126,H106:H115) -> 0 | I140: =SUM(I129:I139,I117:I126,I106:I115) -> 0
A142: Thursday
B143: Item | C143: Cost Per Purchase Unit OR Portion | D143: No. of Portions per Purchase Unit | E143: A La Carte Price Charged Per Portion | F143: No. of Portions Sold A La Carte | G143: Cost per Portion | H143: Total Nonprogram Food Cost | I143: Total Revenue per Item
B144: Recipes
A145: Entrée Items | C145: =IFERROR(VLOOKUP(B145,'Breakfast Recipe Calculator'!$A$409:$C$424,2,FALSE),"") -> 0 | D145: 1 | G145: =IFERROR(IF(C145>0.01,C145/D145,0),0) -> 0 | H145: =G145*F145 -> 0 | I145: =IF(H145>0.01,E145*F145,0) -> 0
C146: =IFERROR(VLOOKUP(B146,'Breakfast Recipe Calculator'!$A$409:$C$424,2,FALSE),"") -> 0 | D146: 1 | G146: =IFERROR(IF(C146>0.01,C146/D146,0),0) -> 0 | H146: =G146*F146 -> 0 | I146: =IF(H146>0.01,E146*F146,0) -> 0
C147: =IFERROR(VLOOKUP(B147,'Breakfast Recipe Calculator'!$A$409:$C$424,2,FALSE),"") -> 0 | D147: 1 | G147: =IFERROR(IF(C147>0.01,C147/D147,0),0) -> 0 | H147: =G147*F147 -> 0 | I147: =IF(H147>0.01,E147*F147,0) -> 0
C148: =IFERROR(VLOOKUP(B148,'Breakfast Recipe Calculator'!$A$409:$C$424,2,FALSE),"") -> 0 | D148: 1 | G148: 0 | H148: 0 | I148: 0
C149: =IFERROR(VLOOKUP(B149,'Breakfast Recipe Calculator'!$A$409:$C$424,2,FALSE),"") -> 0 | D149: 1 | G149: 0 | H149: 0 | I149: 0
C150: =IFERROR(VLOOKUP(B150,'Breakfast Recipe Calculator'!$A$409:$C$424,2,FALSE),"") -> 0 | D150: 1 | G150: 0 | H150: 0 | I150: 0
C151: =IFERROR(VLOOKUP(B151,'Breakfast Recipe Calculator'!$A$409:$C$424,2,FALSE),"") -> 0 | D151: 1 | G151: 0 | H151: 0 | I151: 0
C152: =IFERROR(VLOOKUP(B152,'Breakfast Recipe Calculator'!$A$409:$C$424,2,FALSE),"") -> 0 | D152: 1 | G152: 0 | H152: 0 | I152: 0
C153: =IFERROR(VLOOKUP(B153,'Breakfast Recipe Calculator'!$A$409:$C$424,2,FALSE),"") -> 0 | D153: 1 | G153: 0 | H153: 0 | I153: 0
C154: =IFERROR(VLOOKUP(B154,'Breakfast Recipe Calculator'!$A$409:$C$424,2,FALSE),"") -> 0 | D154: 1 | G154: 0 | H154: 0 | I154: 0
B155: Pre-Calculated and/or Pre-Packaged Entrees
C156: 0 | D156: =IF(ISBLANK(B156),0,1) -> 0 | G156: =IFERROR(IF(C156>0.01,C156/D156,0),0) -> 0 | H156: =G156*F156 -> 0 | I156: =IF(H156>0.01,E156*F156,0) -> 0
C157: 0 | D157: =IF(ISBLANK(B157),0,1) -> 0 | G157: 0 | H157: 0 | I157: 0
C158: 0 | D158: 0 | G158: 0 | H158: 0 | I158: 0
C159: 0 | D159: 0 | G159: 0 | H159: 0 | I159: 0
C160: 0 | D160: 0 | G160: 0 | H160: 0 | I160: 0
C161: 0 | D161: 0 | G161: 0 | H161: 0 | I161: 0
C162: 0 | D162: 0 | G162: 0 | H162: 0 | I162: 0
C163: 0 | D163: 0 | G163: 0 | H163: 0 | I163: 0
C164: 0 | D164: 0 | G164: 0 | H164: 0 | I164: 0
C165: 0 | D165: 0 | G165: 0 | H165: 0 | I165: 0
F166: Average Entrée Cost: | G166: =IFERROR(AVERAGEIF(G145:G165,">0"),0) -> 0
B167: Item | C167: Cost Per Purchase Unit OR Portion | D167: No. of Portions per Purchase Unit | E167: A La Carte Price Charged Per Portion | F167: No. of Portions Sold A La Carte | G167: Cost per Portion | H167: Total Nonprogram Food Cost | I167: Total Revenue per Item
A168: Fruit or Vegetable Sides | G168: =IFERROR(IF(C168>0.01,C168/D168,0),0) -> 0 | H168: =G168*F168 -> 0 | I168: =IF(H168>0.01,E168*F168,0) -> 0
A169: =IFERROR(AVERAGEIF(G168:G170,">0"),0) -> 0 | G169: 0 | H169: 0 | I169: 0
G170: 0 | H170: 0 | I170: 0
G171: 0 | H171: 0 | I171: 0
A172: =IFERROR(AVERAGEIF(G171:G173,">0"),0) -> 0 | G172: 0 | H172: 0 | I172: 0
G173: 0 | H173: 0 | I173: 0
A174: Grain/Other Sides | G174: 0 | H174: 0 | I174: 0
A175: =IFERROR(AVERAGEIF(G174:G178,">0"),0) -> 0 | G175: 0 | H175: 0 | I175: 0
G176: 0 | H176: 0 | I176: 0
G177: 0 | H177: 0 | I177: 0
G178: 0 | H178: 0 | I178: 0
F179: Total Meal Cost (Avg. Entrée Cost + Avg. Side Item Cost + Avg. Milk Cost ): | G179: =IFERROR(B12+G166+A169+A172+A175,0) -> 0 | H179: =SUM(H168:H178,H156:H165,H145:H154) -> 0 | I179: =SUM(I168:I178,I156:I165,I145:I154) -> 0
A181: Friday
B182: Item | C182: Cost Per Purchase Unit OR Portion | D182: No. of Portions per Purchase Unit | E182: A La Carte Price Charged Per Portion | F182: No. of Portions Sold A La Carte | G182: Cost per Portion | H182: Total Nonprogram Food Cost | I182: Total Revenue per Item
B183: Recipes
A184: Entrée Items | C184: =IFERROR(VLOOKUP(B184,'Breakfast Recipe Calculator'!$A$409:$C$424,2,FALSE),"") -> 0 | D184: 1 | G184: =IFERROR(IF(C184>0.01,C184/D184,0),0) -> 0 | H184: =G184*F184 -> 0 | I184: =IF(H184>0.01,E184*F184,0) -> 0
C185: =IFERROR(VLOOKUP(B185,'Breakfast Recipe Calculator'!$A$409:$C$424,2,FALSE),"") -> 0 | D185: 1 | G185: =IFERROR(IF(C185>0.01,C185/D185,0),0) -> 0 | H185: =G185*F185 -> 0 | I185: =IF(H185>0.01,E185*F185,0) -> 0
C186: =IFERROR(VLOOKUP(B186,'Breakfast Recipe Calculator'!$A$409:$C$424,2,FALSE),"") -> 0 | D186: 1 | G186: =IFERROR(IF(C186>0.01,C186/D186,0),0) -> 0 | H186: =G186*F186 -> 0 | I186: =IF(H186>0.01,E186*F186,0) -> 0
C187: =IFERROR(VLOOKUP(B187,'Breakfast Recipe Calculator'!$A$409:$C$424,2,FALSE),"") -> 0 | D187: 1 | G187: 0 | H187: 0 | I187: 0
C188: =IFERROR(VLOOKUP(B188,'Breakfast Recipe Calculator'!$A$409:$C$424,2,FALSE),"") -> 0 | D188: 1 | G188: 0 | H188: 0 | I188: 0
C189: =IFERROR(VLOOKUP(B189,'Breakfast Recipe Calculator'!$A$409:$C$424,2,FALSE),"") -> 0 | D189: 1 | G189: 0 | H189: 0 | I189: 0
C190: =IFERROR(VLOOKUP(B190,'Breakfast Recipe Calculator'!$A$409:$C$424,2,FALSE),"") -> 0 | D190: 1 | G190: 0 | H190: 0 | I190: 0
C191: =IFERROR(VLOOKUP(B191,'Breakfast Recipe Calculator'!$A$409:$C$424,2,FALSE),"") -> 0 | D191: 1 | G191: 0 | H191: 0 | I191: 0
C192: =IFERROR(VLOOKUP(B192,'Breakfast Recipe Calculator'!$A$409:$C$424,2,FALSE),"") -> 0 | D192: 1 | G192: 0 | H192: 0 | I192: 0
C193: =IFERROR(VLOOKUP(B193,'Breakfast Recipe Calculator'!$A$409:$C$424,2,FALSE),"") -> 0 | D193: 1 | G193: 0 | H193: 0 | I193: 0
B194: Pre-Calculated and/or Pre-Packaged Entrees
C195: 0 | D195: =IF(ISBLANK(B195),0,1) -> 0 | G195: =IFERROR(IF(C195>0.01,C195/D195,0),0) -> 0 | H195: =G195*F195 -> 0 | I195: =IF(H195>0.01,E195*F195,0) -> 0
C196: 0 | D196: =IF(ISBLANK(B196),0,1) -> 0 | G196: 0 | H196: 0 | I196: 0
C197: 0 | D197: 0 | G197: 0 | H197: 0 | I197: 0
C198: 0 | D198: 0 | G198: 0 | H198: 0 | I198: 0
C199: 0 | D199: 0 | G199: 0 | H199: 0 | I199: 0
C200: 0 | D200: 0 | G200: 0 | H200: 0 | I200: 0
C201: 0 | D201: 0 | G201: 0 | H201: 0 | I201: 0
C202: 0 | D202: 0 | G202: 0 | H202: 0 | I202: 0
C203: 0 | D203: 0 | G203: 0 | H203: 0 | I203: 0
C204: 0 | D204: 0 | G204: 0 | H204: 0 | I204: 0
F205: Average Entrée Cost: | G205: =IFERROR(AVERAGEIF(G184:G204,">0"),0) -> 0
B206: Item | C206: Cost Per Purchase Unit OR Portion | D206: No. of Portions per Purchase Unit | E206: A La Carte Price Charged Per Portion | F206: No. of Portions Sold A La Carte | G206: Cost per Portion | H206: Total Nonprogram Food Cost | I206: Total Revenue per Item
... 14 more rows

Sheet Breakfast Menu 4 (hidden)
A1: Breakfast Menu Costing Worksheet
A2: Select Grade Level:
A3: Sponsor Name: | B3: =IF('Instructions (START HERE)'!C2="","",'Instructions (START HERE)'!C2) -> 
A4: Week Selected for Review: | B4: ='Lunch Menu'!B4 -> 0 | C4: Site:
A6: Average Cost of Milk Calculator
A7: Types of Milk Served: | B7: Cost per Unit: | F7: Cost | G7: Revenue | H7: No. Served
A8: Non-fat Milk | B8: =Non_fat_Milk -> 0 | E8: Adult | F8: =SUM(H22:H23) -> 0 | G8: =SUM(I22:I23) -> 0
A9: Non-fat Flavored Milk | B9: =NonFatFlavor -> 0 | E9: Student | F9: =SUM(H16:H21) -> 0 | G9: =SUM(I16:I21) -> 0
A10: 1% Milk | B10: =Milk1 -> 0 | E10: Reim. Meals | F10: =SUM(H16,H19,H20,H21) -> 0 | G10: =SUM(I16,I19:I21) -> 0 | H10: =SUM(C16:G16,C19:G21) -> 0
A11: 1% Flavored Milk | B11: =Flav1 -> 0 | E11: Total a la carte | F11: =SUM(H62,H101,H140,H179,H218) -> 0 | G11: =SUM(I62,I101,I140,I179,I218) -> 0
A12: Average Milk Cost: | B12: ='Lunch Menu'!B12 ->  | E12: total adult meals sold | F12: =SUM(C22:G23) -> 0
E13: total a la carte entrée/side items sold | F13: =SUM(F28:F37,F39:F48,F51:F61,F67:F76,F78:F87,F90:F100,F106:F115,F117:F126,F129:F139,F145:F154,F156:F165,F168:F178,F184:F193,F195:F204,F207:F217) -> 0
A14: Program Food Revenue
A15: Reimbursement Rates | C15: Monday Meal Counts | D15: Tuesday Meal Counts | E15: Wednesday Meal Counts | F15: Thursday Meal Counts | G15: Friday Meal Counts | H15: cost | I15: revenue
A16: Free | B16: =FreeBreakfastRates -> 0 | H16: =(C16*$G$62)+(D16*$G$101)+(E16*$G$140)+(F16*$G$179)+(G16*$G$218) -> 0 | I16: =SUM(C16:G16)*B16 -> 0
A17: Reduced | B17: =ReducedBreakfastRates -> 0
A18: Paid | B18: =BPaid -> 0.5
A19: Paid Student Price 1 | B19: =BPSP1 -> 0 | H19: 0 | I19: =(SUM(C19:G19)*B19)+(SUM(C19:G19)*$B$18) -> 0
A20: Paid Student Price 2 | B20: =BPSP2 -> 0 | H20: 0 | I20: =(SUM(C20:G20)*B20)+(SUM(C20:G20)*$B$18) -> 0
A21: Reduced Price | B21: 0.3 | H21: 0 | I21: =(SUM(C21:G21)*B21)+(SUM(C21:G21)*$B$17) -> 0
A22: Adult Meal Price | B22: =BAM -> 0 | H22: =(C22*$G$62)+(D22*$G$101)+(E22*$G$140)+(F22*$G$179)+(G22*$G$218) -> 0 | I22: =SUM(C22:G22)*B22 -> 0
A23: Food Service Staff Meal Price | B23: =BFSS -> 0 | H23: =(C23*$G$62)+(D23*$G$101)+(E23*$G$140)+(F23*$G$179)+(G23*$G$218) -> 0 | I23: =SUM(C23:G23)*B23 -> 0
A25: Monday
B26: Item | C26: Cost Per Purchase Unit OR Portion | D26: No. of Portions per Purchase Unit | E26: A La Carte Price Charged Per Portion | F26: No. of Portions Sold A La Carte | G26: Cost per Portion | H26: Total Nonprogram Food Cost | I26: Total Revenue per Item
B27: Recipes
A28: Entrée Items | C28: =IFERROR(VLOOKUP(B28,'Breakfast Recipe Calculator'!$A$409:$C$424,2,FALSE),"") -> 0 | D28: 1 | G28: =IFERROR(IF(C28>0.01,C28/D28,0),0) -> 0 | H28: =G28*F28 -> 0 | I28: =IF(H28>0.01,E28*F28,0) -> 0
C29: =IFERROR(VLOOKUP(B29,'Breakfast Recipe Calculator'!$A$409:$C$424,2,FALSE),"") -> 0 | D29: 1 | G29: =IFERROR(IF(C29>0.01,C29/D29,0),0) -> 0 | H29: =G29*F29 -> 0 | I29: =IF(H29>0.01,E29*F29,0) -> 0
C30: =IFERROR(VLOOKUP(B30,'Breakfast Recipe Calculator'!$A$409:$C$424,2,FALSE),"") -> 0 | D30: 1 | G30: =IFERROR(IF(C30>0.01,C30/D30,0),0) -> 0 | H30: =G30*F30 -> 0 | I30: =IF(H30>0.01,E30*F30,0) -> 0
C31: =IFERROR(VLOOKUP(B31,'Breakfast Recipe Calculator'!$A$409:$C$424,2,FALSE),"") -> 0 | D31: 1 | G31: 0 | H31: 0 | I31: 0
C32: =IFERROR(VLOOKUP(B32,'Breakfast Recipe Calculator'!$A$409:$C$424,2,FALSE),"") -> 0 | D32: 1 | G32: 0 | H32: 0 | I32: 0
C33: =IFERROR(VLOOKUP(B33,'Breakfast Recipe Calculator'!$A$409:$C$424,2,FALSE),"") -> 0 | D33: 1 | G33: 0 | H33: 0 | I33: 0
C34: =IFERROR(VLOOKUP(B34,'Breakfast Recipe Calculator'!$A$409:$C$424,2,FALSE),"") -> 0 | D34: 1 | G34: 0 | H34: 0 | I34: 0
C35: =IFERROR(VLOOKUP(B35,'Breakfast Recipe Calculator'!$A$409:$C$424,2,FALSE),"") -> 0 | D35: 1 | G35: 0 | H35: 0 | I35: 0
C36: =IFERROR(VLOOKUP(B36,'Breakfast Recipe Calculator'!$A$409:$C$424,2,FALSE),"") -> 0 | D36: 1 | G36: 0 | H36: 0 | I36: 0
C37: =IFERROR(VLOOKUP(B37,'Breakfast Recipe Calculator'!$A$409:$C$424,2,FALSE),"") -> 0 | D37: 1 | G37: 0 | H37: 0 | I37: 0
B38: Pre-Calculated and/or Pre-Packaged Entrees
C39: 0 | D39: =IF(ISBLANK(B39),0,1) -> 0 | G39: =IFERROR(IF(C39>0.01,C39/D39,0),0) -> 0 | H39: =G39*F39 -> 0 | I39: =IF(H39>0.01,E39*F39,0) -> 0
C40: 0 | D40: =IF(ISBLANK(B40),0,1) -> 0 | G40: 0 | H40: 0 | I40: 0
C41: 0 | D41: 0 | G41: 0 | H41: 0 | I41: 0
C42: 0 | D42: 0 | G42: 0 | H42: 0 | I42: 0
C43: 0 | D43: 0 | G43: 0 | H43: 0 | I43: 0
C44: 0 | D44: 0 | G44: 0 | H44: 0 | I44: 0
C45: 0 | D45: 0 | G45: 0 | H45: 0 | I45: 0
C46: 0 | D46: 0 | G46: 0 | H46: 0 | I46: 0
C47: 0 | D47: 0 | G47: 0 | H47: 0 | I47: 0
C48: 0 | D48: 0 | G48: 0 | H48: 0 | I48: 0
F49: Average Entrée Cost: | G49: =IFERROR(AVERAGEIF(G28:G48,">0"),0) -> 0
B50: Item | C50: Cost Per Purchase Unit OR Portion | D50: No. of Portions per Purchase Unit | E50: A La Carte Price Charged Per Portion | F50: No. of Portions Sold A La Carte | G50: Cost per Portion | H50: Total Nonprogram Food Cost | I50: Total Revenue per Item
A51: Fruit & Vegetable Sides | G51: =IFERROR(IF(C51>0.01,C51/D51,0),0) -> 0 | H51: =G51*F51 -> 0 | I51: =IF(H51>0.01,E51*F51,0) -> 0
A52: =IFERROR(AVERAGEIF(G51:G53,">0"),0) -> 0 | G52: 0 | H52: 0 | I52: 0
G53: 0 | H53: 0 | I53: 0
G54: 0 | H54: 0 | I54: 0
A55: =IFERROR(AVERAGEIF(G54:G56,">0"),0) -> 0 | G55: 0 | H55: 0 | I55: 0
G56: 0 | H56: 0 | I56: 0
A57: Grain/Other Sides | G57: 0 | H57: 0 | I57: 0
A58: =IFERROR(AVERAGEIF(G57:G61,">0"),0) -> 0 | G58: 0 | H58: 0 | I58: 0
G59: 0 | H59: 0 | I59: 0
G60: 0 | H60: 0 | I60: 0
G61: 0 | H61: 0 | I61: 0
F62: Total Meal Cost (Avg. Entrée Cost + Avg. Side Item Cost + Avg. Milk Cost ): | G62: =IFERROR(B12+G49+A52+A55+A58,0) -> 0 | H62: =SUM(H51:H61,H39:H48,H28:H37) -> 0 | I62: =SUM(I51:I61,I39:I48,I28:I37) -> 0
A64: Tuesday
B65: Item | C65: Cost Per Purchase Unit OR Portion | D65: No. of Portions per Purchase Unit | E65: A La Carte Price Charged Per Portion | F65: No. of Portions Sold A La Carte | G65: Cost per Portion | H65: Total Nonprogram Food Cost | I65: Total Revenue per Item
B66: Recipes
A67: Entrée Items | C67: =IFERROR(VLOOKUP(B67,'Breakfast Recipe Calculator'!$A$409:$C$424,2,FALSE),"") -> 0 | D67: 1 | G67: =IFERROR(IF(C67>0.01,C67/D67,0),0) -> 0 | H67: =G67*F67 -> 0 | I67: =IF(H67>0.01,E67*F67,0) -> 0
C68: =IFERROR(VLOOKUP(B68,'Breakfast Recipe Calculator'!$A$409:$C$424,2,FALSE),"") -> 0 | D68: 1 | G68: =IFERROR(IF(C68>0.01,C68/D68,0),0) -> 0 | H68: =G68*F68 -> 0 | I68: =IF(H68>0.01,E68*F68,0) -> 0
C69: =IFERROR(VLOOKUP(B69,'Breakfast Recipe Calculator'!$A$409:$C$424,2,FALSE),"") -> 0 | D69: 1 | G69: =IFERROR(IF(C69>0.01,C69/D69,0),0) -> 0 | H69: =G69*F69 -> 0 | I69: =IF(H69>0.01,E69*F69,0) -> 0
C70: =IFERROR(VLOOKUP(B70,'Breakfast Recipe Calculator'!$A$409:$C$424,2,FALSE),"") -> 0 | D70: 1 | G70: 0 | H70: 0 | I70: 0
C71: =IFERROR(VLOOKUP(B71,'Breakfast Recipe Calculator'!$A$409:$C$424,2,FALSE),"") -> 0 | D71: 1 | G71: 0 | H71: 0 | I71: 0
C72: =IFERROR(VLOOKUP(B72,'Breakfast Recipe Calculator'!$A$409:$C$424,2,FALSE),"") -> 0 | D72: 1 | G72: 0 | H72: 0 | I72: 0
C73: =IFERROR(VLOOKUP(B73,'Breakfast Recipe Calculator'!$A$409:$C$424,2,FALSE),"") -> 0 | D73: 1 | G73: 0 | H73: 0 | I73: 0
C74: =IFERROR(VLOOKUP(B74,'Breakfast Recipe Calculator'!$A$409:$C$424,2,FALSE),"") -> 0 | D74: 1 | G74: 0 | H74: 0 | I74: 0
C75: =IFERROR(VLOOKUP(B75,'Breakfast Recipe Calculator'!$A$409:$C$424,2,FALSE),"") -> 0 | D75: 1 | G75: 0 | H75: 0 | I75: 0
C76: =IFERROR(VLOOKUP(B76,'Breakfast Recipe Calculator'!$A$409:$C$424,2,FALSE),"") -> 0 | D76: 1 | G76: 0 | H76: 0 | I76: 0
B77: Pre-Calculated and/or Pre-Packaged Entrees
C78: 0 | D78: =IF(ISBLANK(B78),0,1) -> 0 | G78: =IFERROR(IF(C78>0.01,C78/D78,0),0) -> 0 | H78: =G78*F78 -> 0 | I78: =IF(H78>0.01,E78*F78,0) -> 0
C79: 0 | D79: =IF(ISBLANK(B79),0,1) -> 0 | G79: 0 | H79: 0 | I79: 0
C80: 0 | D80: 0 | G80: 0 | H80: 0 | I80: 0
C81: 0 | D81: 0 | G81: 0 | H81: 0 | I81: 0
C82: 0 | D82: 0 | G82: 0 | H82: 0 | I82: 0
C83: 0 | D83: 0 | G83: 0 | H83: 0 | I83: 0
C84: 0 | D84: 0 | G84: 0 | H84: 0 | I84: 0
C85: 0 | D85: 0 | G85: 0 | H85: 0 | I85: 0
C86: 0 | D86: 0 | G86: 0 | H86: 0 | I86: 0
C87: 0 | D87: 0 | G87: 0 | H87: 0 | I87: 0
F88: Average Entrée Cost: | G88: =IFERROR(AVERAGEIF(G67:G87,">0"),0) -> 0
B89: Item | C89: Cost Per Purchase Unit OR Portion | D89: No. of Portions per Purchase Unit | E89: A La Carte Price Charged Per Portion | F89: No. of Portions Sold A La Carte | G89: Cost per Portion | H89: Total Nonprogram Food Cost | I89: Total Revenue per Item
A90: Fruit & Vegetable Sides | G90: =IFERROR(IF(C90>0.01,C90/D90,0),0) -> 0 | H90: =G90*F90 -> 0 | I90: =IF(H90>0.01,E90*F90,0) -> 0
A91: =IFERROR(AVERAGEIF(G90:G92,">0"),0) -> 0 | G91: 0 | H91: 0 | I91: 0
G92: 0 | H92: 0 | I92: 0
G93: 0 | H93: 0 | I93: 0
A94: =IFERROR(AVERAGEIF(G93:G95,">0"),0) -> 0 | G94: 0 | H94: 0 | I94: 0
G95: 0 | H95: 0 | I95: 0
A96: Grain/Other Sides | G96: 0 | H96: 0 | I96: 0
A97: =IFERROR(AVERAGEIF(G96:G100,"<>0"),0) -> 0 | G97: 0 | H97: 0 | I97: 0
G98: 0 | H98: 0 | I98: 0
G99: 0 | H99: 0 | I99: 0
G100: 0 | H100: 0 | I100: 0
F101: Total Meal Cost (Avg. Entrée Cost + Avg. Side Item Cost + Avg. Milk Cost ): | G101: =IFERROR(B12+G88+A91+A94+A97,0) -> 0 | H101: =SUM(H90:H100,H78:H87,H67:H76) -> 0 | I101: =SUM(I90:I100,I78:I87,I67:I76) -> 0
A103: Wednesday
B104: Item | C104: Cost Per Purchase Unit OR Portion | D104: No. of Portions per Purchase Unit | E104: A La Carte Price Charged Per Portion | F104: No. of Portions Sold A La Carte | G104: Cost per Portion | H104: Total Nonprogram Food Cost | I104: Total Revenue per Item
B105: Recipes
A106: Entrée Items | C106: =IFERROR(VLOOKUP(B106,'Breakfast Recipe Calculator'!$A$409:$C$424,2,FALSE),"") -> 0 | D106: 1 | G106: =IFERROR(IF(C106>0.01,C106/D106,0),0) -> 0 | H106: =G106*F106 -> 0 | I106: =IF(H106>0.01,E106*F106,0) -> 0
C107: =IFERROR(VLOOKUP(B107,'Breakfast Recipe Calculator'!$A$409:$C$424,2,FALSE),"") -> 0 | D107: 1 | G107: =IFERROR(IF(C107>0.01,C107/D107,0),0) -> 0 | H107: =G107*F107 -> 0 | I107: =IF(H107>0.01,E107*F107,0) -> 0
C108: =IFERROR(VLOOKUP(B108,'Breakfast Recipe Calculator'!$A$409:$C$424,2,FALSE),"") -> 0 | D108: 1 | G108: =IFERROR(IF(C108>0.01,C108/D108,0),0) -> 0 | H108: =G108*F108 -> 0 | I108: =IF(H108>0.01,E108*F108,0) -> 0
C109: =IFERROR(VLOOKUP(B109,'Breakfast Recipe Calculator'!$A$409:$C$424,2,FALSE),"") -> 0 | D109: 1 | G109: 0 | H109: 0 | I109: 0
C110: =IFERROR(VLOOKUP(B110,'Breakfast Recipe Calculator'!$A$409:$C$424,2,FALSE),"") -> 0 | D110: 1 | G110: 0 | H110: 0 | I110: 0
C111: =IFERROR(VLOOKUP(B111,'Breakfast Recipe Calculator'!$A$409:$C$424,2,FALSE),"") -> 0 | D111: 1 | G111: 0 | H111: 0 | I111: 0
C112: =IFERROR(VLOOKUP(B112,'Breakfast Recipe Calculator'!$A$409:$C$424,2,FALSE),"") -> 0 | D112: 1 | G112: 0 | H112: 0 | I112: 0
C113: =IFERROR(VLOOKUP(B113,'Breakfast Recipe Calculator'!$A$409:$C$424,2,FALSE),"") -> 0 | D113: 1 | G113: 0 | H113: 0 | I113: 0
C114: =IFERROR(VLOOKUP(B114,'Breakfast Recipe Calculator'!$A$409:$C$424,2,FALSE),"") -> 0 | D114: 1 | G114: 0 | H114: 0 | I114: 0
C115: =IFERROR(VLOOKUP(B115,'Breakfast Recipe Calculator'!$A$409:$C$424,2,FALSE),"") -> 0 | D115: 1 | G115: 0 | H115: 0 | I115: 0
B116: Pre-Calculated and/or Pre-Packaged Entrees
C117: 0 | D117: =IF(ISBLANK(B117),0,1) -> 0 | G117: =IFERROR(IF(C117>0.01,C117/D117,0),0) -> 0 | H117: =G117*F117 -> 0 | I117: =IF(H117>0.01,E117*F117,0) -> 0
C118: 0 | D118: =IF(ISBLANK(B118),0,1) -> 0 | G118: 0 | H118: 0 | I118: 0
C119: 0 | D119: 0 | G119: 0 | H119: 0 | I119: 0
C120: 0 | D120: 0 | G120: 0 | H120: 0 | I120: 0
C121: 0 | D121: 0 | G121: 0 | H121: 0 | I121: 0
C122: 0 | D122: 0 | G122: 0 | H122: 0 | I122: 0
C123: 0 | D123: 0 | G123: 0 | H123: 0 | I123: 0
C124: 0 | D124: 0 | G124: 0 | H124: 0 | I124: 0
C125: 0 | D125: 0 | G125: 0 | H125: 0 | I125: 0
C126: 0 | D126: 0 | G126: 0 | H126: 0 | I126: 0
F127: Average Entrée Cost: | G127: =IFERROR(AVERAGEIF(G106:G126,">0"),0) -> 0
B128: Item | C128: Cost Per Purchase Unit OR Portion | D128: No. of Portions per Purchase Unit | E128: A La Carte Price Charged Per Portion | F128: No. of Portions Sold A La Carte | G128: Cost per Portion | H128: Total Nonprogram Food Cost | I128: Total Revenue per Item
A129: Fruit & Vegetable Sides | G129: =IFERROR(IF(C129>0.01,C129/D129,0),0) -> 0 | H129: =G129*F129 -> 0 | I129: =IF(H129>0.01,E129*F129,0) -> 0
A130: =IFERROR(AVERAGEIF(G129:G131,">0"),0) -> 0 | G130: 0 | H130: 0 | I130: 0
G131: 0 | H131: 0 | I131: 0
G132: 0 | H132: 0 | I132: 0
A133: =IFERROR(AVERAGEIF(G132:G134,">0"),0) -> 0 | G133: 0 | H133: 0 | I133: 0
G134: 0 | H134: 0 | I134: 0
A135: Grain/Other Sides | G135: 0 | H135: 0 | I135: 0
A136: =IFERROR(AVERAGEIF(G135:G139,">0"),0) -> 0 | G136: 0 | H136: 0 | I136: 0
G137: 0 | H137: 0 | I137: 0
G138: 0 | H138: 0 | I138: 0
G139: 0 | H139: 0 | I139: 0
F140: Total Meal Cost (Avg. Entrée Cost + Avg. Side Item Cost + Avg. Milk Cost ): | G140: =IFERROR(B12+G127+A130+A133+A136,0) -> 0 | H140: =SUM(H129:H139,H117:H126,H106:H115) -> 0 | I140: =SUM(I129:I139,I117:I126,I106:I115) -> 0
A142: Thursday
B143: Item | C143: Cost Per Purchase Unit OR Portion | D143: No. of Portions per Purchase Unit | E143: A La Carte Price Charged Per Portion | F143: No. of Portions Sold A La Carte | G143: Cost per Portion | H143: Total Nonprogram Food Cost | I143: Total Revenue per Item
B144: Recipes
A145: Entrée Items | C145: =IFERROR(VLOOKUP(B145,'Breakfast Recipe Calculator'!$A$409:$C$424,2,FALSE),"") -> 0 | D145: 1 | G145: =IFERROR(IF(C145>0.01,C145/D145,0),0) -> 0 | H145: =G145*F145 -> 0 | I145: =IF(H145>0.01,E145*F145,0) -> 0
C146: =IFERROR(VLOOKUP(B146,'Breakfast Recipe Calculator'!$A$409:$C$424,2,FALSE),"") -> 0 | D146: 1 | G146: =IFERROR(IF(C146>0.01,C146/D146,0),0) -> 0 | H146: =G146*F146 -> 0 | I146: =IF(H146>0.01,E146*F146,0) -> 0
C147: =IFERROR(VLOOKUP(B147,'Breakfast Recipe Calculator'!$A$409:$C$424,2,FALSE),"") -> 0 | D147: 1 | G147: =IFERROR(IF(C147>0.01,C147/D147,0),0) -> 0 | H147: =G147*F147 -> 0 | I147: =IF(H147>0.01,E147*F147,0) -> 0
C148: =IFERROR(VLOOKUP(B148,'Breakfast Recipe Calculator'!$A$409:$C$424,2,FALSE),"") -> 0 | D148: 1 | G148: 0 | H148: 0 | I148: 0
C149: =IFERROR(VLOOKUP(B149,'Breakfast Recipe Calculator'!$A$409:$C$424,2,FALSE),"") -> 0 | D149: 1 | G149: 0 | H149: 0 | I149: 0
C150: =IFERROR(VLOOKUP(B150,'Breakfast Recipe Calculator'!$A$409:$C$424,2,FALSE),"") -> 0 | D150: 1 | G150: 0 | H150: 0 | I150: 0
C151: =IFERROR(VLOOKUP(B151,'Breakfast Recipe Calculator'!$A$409:$C$424,2,FALSE),"") -> 0 | D151: 1 | G151: 0 | H151: 0 | I151: 0
C152: =IFERROR(VLOOKUP(B152,'Breakfast Recipe Calculator'!$A$409:$C$424,2,FALSE),"") -> 0 | D152: 1 | G152: 0 | H152: 0 | I152: 0
C153: =IFERROR(VLOOKUP(B153,'Breakfast Recipe Calculator'!$A$409:$C$424,2,FALSE),"") -> 0 | D153: 1 | G153: 0 | H153: 0 | I153: 0
C154: =IFERROR(VLOOKUP(B154,'Breakfast Recipe Calculator'!$A$409:$C$424,2,FALSE),"") -> 0 | D154: 1 | G154: 0 | H154: 0 | I154: 0
B155: Pre-Calculated and/or Pre-Packaged Entrees
C156: 0 | D156: =IF(ISBLANK(B156),0,1) -> 0 | G156: =IFERROR(IF(C156>0.01,C156/D156,0),0) -> 0 | H156: =G156*F156 -> 0 | I156: =IF(H156>0.01,E156*F156,0) -> 0
C157: 0 | D157: =IF(ISBLANK(B157),0,1) -> 0 | G157: 0 | H157: 0 | I157: 0
C158: 0 | D158: 0 | G158: 0 | H158: 0 | I158: 0
C159: 0 | D159: 0 | G159: 0 | H159: 0 | I159: 0
C160: 0 | D160: 0 | G160: 0 | H160: 0 | I160: 0
C161: 0 | D161: 0 | G161: 0 | H161: 0 | I161: 0
C162: 0 | D162: 0 | G162: 0 | H162: 0 | I162: 0
C163: 0 | D163: 0 | G163: 0 | H163: 0 | I163: 0
C164: 0 | D164: 0 | G164: 0 | H164: 0 | I164: 0
C165: 0 | D165: 0 | G165: 0 | H165: 0 | I165: 0
F166: Average Entrée Cost: | G166: =IFERROR(AVERAGEIF(G145:G165,">0"),0) -> 0
B167: Item | C167: Cost Per Purchase Unit OR Portion | D167: No. of Portions per Purchase Unit | E167: A La Carte Price Charged Per Portion | F167: No. of Portions Sold A La Carte | G167: Cost per Portion | H167: Total Nonprogram Food Cost | I167: Total Revenue per Item
A168: Fruit & Vegetable Sides | G168: =IFERROR(IF(C168>0.01,C168/D168,0),0) -> 0 | H168: =G168*F168 -> 0 | I168: =IF(H168>0.01,E168*F168,0) -> 0
A169: =IFERROR(AVERAGEIF(G168:G170,">0"),0) -> 0 | G169: 0 | H169: 0 | I169: 0
G170: =IFERROR(IF(C170>0.01,C170/D170,0),0) -> 0 | H170: =G170*F170 -> 0 | I170: =IF(H170>0.01,E170*F170,0) -> 0
G171: 0 | H171: 0 | I171: 0
A172: =IFERROR(AVERAGEIF(G171:G173,">0"),0) -> 0 | G172: 0 | H172: 0 | I172: 0
G173: 0 | H173: 0 | I173: 0
A174: Grain/Other Sides | G174: 0 | H174: 0 | I174: 0
A175: =IFERROR(AVERAGEIF(G174:G178,">0"),0) -> 0 | G175: 0 | H175: 0 | I175: 0
G176: 0 | H176: 0 | I176: 0
G177: 0 | H177: 0 | I177: 0
G178: 0 | H178: 0 | I178: 0
F179: Total Meal Cost (Avg. Entrée Cost + Avg. Side Item Cost + Avg. Milk Cost ): | G179: =IFERROR(B12+G166+A169+A172+A175,0) -> 0 | H179: =SUM(H168:H178,H156:H165,H145:H154) -> 0 | I179: =SUM(I168:I178,I156:I165,I145:I154) -> 0
A181: Friday
B182: Item | C182: Cost Per Purchase Unit OR Portion | D182: No. of Portions per Purchase Unit | E182: A La Carte Price Charged Per Portion | F182: No. of Portions Sold A La Carte | G182: Cost per Portion | H182: Total Nonprogram Food Cost | I182: Total Revenue per Item
B183: Recipes
A184: Entrée Items | C184: =IFERROR(VLOOKUP(B184,'Breakfast Recipe Calculator'!$A$409:$C$424,2,FALSE),"") -> 0 | D184: 1 | G184: =IFERROR(IF(C184>0.01,C184/D184,0),0) -> 0 | H184: =G184*F184 -> 0 | I184: =IF(H184>0.01,E184*F184,0) -> 0
C185: =IFERROR(VLOOKUP(B185,'Breakfast Recipe Calculator'!$A$409:$C$424,2,FALSE),"") -> 0 | D185: 1 | G185: =IFERROR(IF(C185>0.01,C185/D185,0),0) -> 0 | H185: =G185*F185 -> 0 | I185: =IF(H185>0.01,E185*F185,0) -> 0
C186: =IFERROR(VLOOKUP(B186,'Breakfast Recipe Calculator'!$A$409:$C$424,2,FALSE),"") -> 0 | D186: 1 | G186: =IFERROR(IF(C186>0.01,C186/D186,0),0) -> 0 | H186: =G186*F186 -> 0 | I186: =IF(H186>0.01,E186*F186,0) -> 0
C187: =IFERROR(VLOOKUP(B187,'Breakfast Recipe Calculator'!$A$409:$C$424,2,FALSE),"") -> 0 | D187: 1 | G187: 0 | H187: 0 | I187: 0
C188: =IFERROR(VLOOKUP(B188,'Breakfast Recipe Calculator'!$A$409:$C$424,2,FALSE),"") -> 0 | D188: 1 | G188: 0 | H188: 0 | I188: 0
C189: =IFERROR(VLOOKUP(B189,'Breakfast Recipe Calculator'!$A$409:$C$424,2,FALSE),"") -> 0 | D189: 1 | G189: 0 | H189: 0 | I189: 0
C190: =IFERROR(VLOOKUP(B190,'Breakfast Recipe Calculator'!$A$409:$C$424,2,FALSE),"") -> 0 | D190: 1 | G190: 0 | H190: 0 | I190: 0
C191: =IFERROR(VLOOKUP(B191,'Breakfast Recipe Calculator'!$A$409:$C$424,2,FALSE),"") -> 0 | D191: 1 | G191: 0 | H191: 0 | I191: 0
C192: =IFERROR(VLOOKUP(B192,'Breakfast Recipe Calculator'!$A$409:$C$424,2,FALSE),"") -> 0 | D192: 1 | G192: 0 | H192: 0 | I192: 0
C193: =IFERROR(VLOOKUP(B193,'Breakfast Recipe Calculator'!$A$409:$C$424,2,FALSE),"") -> 0 | D193: 1 | G193: 0 | H193: 0 | I193: 0
B194: Pre-Calculated and/or Pre-Packaged Entrees
C195: 0 | D195: =IF(ISBLANK(B195),0,1) -> 0 | G195: =IFERROR(IF(C195>0.01,C195/D195,0),0) -> 0 | H195: =G195*F195 -> 0 | I195: =IF(H195>0.01,E195*F195,0) -> 0
C196: 0 | D196: =IF(ISBLANK(B196),0,1) -> 0 | G196: 0 | H196: 0 | I196: 0
C197: 0 | D197: 0 | G197: 0 | H197: 0 | I197: 0
C198: 0 | D198: 0 | G198: 0 | H198: 0 | I198: 0
C199: 0 | D199: 0 | G199: 0 | H199: 0 | I199: 0
C200: 0 | D200: 0 | G200: 0 | H200: 0 | I200: 0
C201: 0 | D201: 0 | G201: 0 | H201: 0 | I201: 0
C202: 0 | D202: 0 | G202: 0 | H202: 0 | I202: 0
C203: 0 | D203: 0 | G203: 0 | H203: 0 | I203: 0
C204: 0 | D204: 0 | G204: 0 | H204: 0 | I204: 0
F205: Average Entrée Cost: | G205: =IFERROR(AVERAGEIF(G184:G204,">0"),0) -> 0
B206: Item | C206: Cost Per Purchase Unit OR Portion | D206: No. of Portions per Purchase Unit | E206: A La Carte Price Charged Per Portion | F206: No. of Portions Sold A La Carte | G206: Cost per Portion | H206: Total Nonprogram Food Cost | I206: Total Revenue per Item
... 14 more rows

Sheet Breakfast Menu 5 (hidden)
A1: Breakfast Menu Costing Worksheet
A2: Select Grade Level:
A3: Sponsor Name: | B3: =IF('Instructions (START HERE)'!C2="","",'Instructions (START HERE)'!C2) -> 
A4: Week Selected for Review: | B4: ='Lunch Menu'!B4 -> 0 | C4: Site:
A6: Average Cost of Milk Calculator
A7: Types of Milk Served: | B7: Cost per Unit: | F7: Cost | G7: Revenue | H7: No. Served
A8: Non-fat Milk | B8: =Non_fat_Milk -> 0 | E8: Adult | F8: =SUM(H22:H23) -> 0 | G8: =SUM(I22:I23) -> 0
A9: Non-fat Flavored Milk | B9: =NonFatFlavor -> 0 | E9: Student | F9: =SUM(H16:H21) -> 0 | G9: =SUM(I16:I21) -> 0
A10: 1% Milk | B10: =Milk1 -> 0 | E10: Reim. Meals | F10: =SUM(H16,H19,H20,H21) -> 0 | G10: =SUM(I16,I19:I21) -> 0 | H10: =SUM(C16:G16,C19:G21) -> 0
A11: 1% Flavored Milk | B11: =Flav1 -> 0 | E11: Total a la carte | F11: =SUM(H62,H101,H140,H179,H218) -> 0 | G11: =SUM(I62,I101,I140,I179,I218) -> 0
A12: Average Milk Cost: | B12: ='Lunch Menu'!B12 ->  | E12: total adult meals sold | F12: =SUM(C22:G23) -> 0
E13: total a la carte entrée/side items sold | F13: =SUM(F28:F37,F39:F48,F51:F61,F67:F76,F78:F87,F90:F100,F106:F115,F117:F126,F129:F139,F145:F154,F156:F165,F168:F178,F184:F193,F195:F204,F207:F217) -> 0
A14: Program Food Revenue
A15: Reimbursement Rates | C15: Monday Meal Counts | D15: Tuesday Meal Counts | E15: Wednesday Meal Counts | F15: Thursday Meal Counts | G15: Friday Meal Counts | H15: cost | I15: revenue
A16: Free | B16: =FreeBreakfastRates -> 0 | H16: =(C16*$G$62)+(D16*$G$101)+(E16*$G$140)+(F16*$G$179)+(G16*$G$218) -> 0 | I16: =SUM(C16:G16)*B16 -> 0
A17: Reduced | B17: =ReducedBreakfastRates -> 0
A18: Paid | B18: =BPaid -> 0.5
A19: Paid Student Price 1 | B19: =BPSP1 -> 0 | H19: =(C19*$G$62)+(D19*$G$101)+(E19*$G$140)+(F19*$G$179)+(G19*$G$218) -> 0 | I19: =(SUM(C19:G19)*B19)+(SUM(C19:G19)*$B$18) -> 0
A20: Paid Student Price 2 | B20: =BPSP2 -> 0 | H20: =(C20*$G$62)+(D20*$G$101)+(E20*$G$140)+(F20*$G$179)+(G20*$G$218) -> 0 | I20: =(SUM(C20:G20)*B20)+(SUM(C20:G20)*$B$18) -> 0
A21: Reduced Price | B21: 0.3 | H21: =(C21*$G$62)+(D21*$G$101)+(E21*$G$140)+(F21*$G$179)+(G21*$G$218) -> 0 | I21: =(SUM(C21:G21)*B21)+(SUM(C21:G21)*$B$17) -> 0
A22: Adult Meal Price | B22: =BAM -> 0 | H22: =(C22*$G$62)+(D22*$G$101)+(E22*$G$140)+(F22*$G$179)+(G22*$G$218) -> 0 | I22: =SUM(C22:G22)*B22 -> 0
A23: Food Service Staff Meal Price | B23: =BFSS -> 0 | H23: =(C23*$G$62)+(D23*$G$101)+(E23*$G$140)+(F23*$G$179)+(G23*$G$218) -> 0 | I23: =SUM(C23:G23)*B23 -> 0
A25: Monday
B26: Item | C26: Cost Per Purchase Unit OR Portion | D26: No. of Portions per Purchase Unit | E26: A La Carte Price Charged Per Portion | F26: No. of Portions Sold A La Carte | G26: Cost per Portion | H26: Total Nonprogram Food Cost | I26: Total Revenue per Item
B27: Recipes
A28: Entrée Items | C28: =IFERROR(VLOOKUP(B28,'Breakfast Recipe Calculator'!$A$409:$C$424,2,FALSE),"") -> 0 | D28: 1 | G28: =IFERROR(IF(C28>0.01,C28/D28,0),0) -> 0 | H28: =G28*F28 -> 0 | I28: =IF(H28>0.01,E28*F28,0) -> 0
C29: =IFERROR(VLOOKUP(B29,'Breakfast Recipe Calculator'!$A$409:$C$424,2,FALSE),"") -> 0 | D29: 1 | G29: =IFERROR(IF(C29>0.01,C29/D29,0),0) -> 0 | H29: =G29*F29 -> 0 | I29: =IF(H29>0.01,E29*F29,0) -> 0
C30: =IFERROR(VLOOKUP(B30,'Breakfast Recipe Calculator'!$A$409:$C$424,2,FALSE),"") -> 0 | D30: 1 | G30: =IFERROR(IF(C30>0.01,C30/D30,0),0) -> 0 | H30: =G30*F30 -> 0 | I30: =IF(H30>0.01,E30*F30,0) -> 0
C31: =IFERROR(VLOOKUP(B31,'Breakfast Recipe Calculator'!$A$409:$C$424,2,FALSE),"") -> 0 | D31: 1 | G31: 0 | H31: 0 | I31: 0
C32: =IFERROR(VLOOKUP(B32,'Breakfast Recipe Calculator'!$A$409:$C$424,2,FALSE),"") -> 0 | D32: 1 | G32: 0 | H32: 0 | I32: 0
C33: =IFERROR(VLOOKUP(B33,'Breakfast Recipe Calculator'!$A$409:$C$424,2,FALSE),"") -> 0 | D33: 1 | G33: 0 | H33: 0 | I33: 0
C34: =IFERROR(VLOOKUP(B34,'Breakfast Recipe Calculator'!$A$409:$C$424,2,FALSE),"") -> 0 | D34: 1 | G34: 0 | H34: 0 | I34: 0
C35: =IFERROR(VLOOKUP(B35,'Breakfast Recipe Calculator'!$A$409:$C$424,2,FALSE),"") -> 0 | D35: 1 | G35: 0 | H35: 0 | I35: 0
C36: =IFERROR(VLOOKUP(B36,'Breakfast Recipe Calculator'!$A$409:$C$424,2,FALSE),"") -> 0 | D36: 1 | G36: 0 | H36: 0 | I36: 0
C37: =IFERROR(VLOOKUP(B37,'Breakfast Recipe Calculator'!$A$409:$C$424,2,FALSE),"") -> 0 | D37: 1 | G37: 0 | H37: 0 | I37: 0
B38: Pre-Calculated and/or Pre-Packaged Entrees
C39: 0 | D39: =IF(ISBLANK(B39),0,1) -> 0 | G39: =IFERROR(IF(C39>0.01,C39/D39,0),0) -> 0 | H39: =G39*F39 -> 0 | I39: =IF(H39>0.01,E39*F39,0) -> 0
C40: 0 | D40: =IF(ISBLANK(B40),0,1) -> 0 | G40: 0 | H40: 0 | I40: 0
C41: 0 | D41: 0 | G41: 0 | H41: 0 | I41: 0
C42: 0 | D42: 0 | G42: 0 | H42: 0 | I42: 0
C43: 0 | D43: 0 | G43: 0 | H43: 0 | I43: 0
C44: 0 | D44: 0 | G44: 0 | H44: 0 | I44: 0
C45: 0 | D45: 0 | G45: 0 | H45: 0 | I45: 0
C46: 0 | D46: 0 | G46: 0 | H46: 0 | I46: 0
C47: 0 | D47: 0 | G47: 0 | H47: 0 | I47: 0
C48: 0 | D48: 0 | G48: 0 | H48: 0 | I48: 0
F49: Average Entrée Cost: | G49: =IFERROR(AVERAGEIF(G28:G48,">0"),0) -> 0
B50: Item | C50: Cost Per Purchase Unit OR Portion | D50: No. of Portions per Purchase Unit | E50: A La Carte Price Charged Per Portion | F50: No. of Portions Sold A La Carte | G50: Cost per Portion | H50: Total Nonprogram Food Cost | I50: Total Revenue per Item
A51: Fruit or Vegetable Sides | G51: =IFERROR(IF(C51>0.01,C51/D51,0),0) -> 0 | H51: =G51*F51 -> 0 | I51: =IF(H51>0.01,E51*F51,0) -> 0
A52: =IFERROR(AVERAGEIF(G51:G53,">0"),0) -> 0 | G52: 0 | H52: 0 | I52: 0
G53: 0 | H53: 0 | I53: 0
G54: 0 | H54: 0 | I54: 0
A55: =IFERROR(AVERAGEIF(G54:G56,">0"),0) -> 0 | G55: 0 | H55: 0 | I55: 0
G56: 0 | H56: 0 | I56: 0
A57: Grain/Other Sides | G57: 0 | H57: 0 | I57: 0
A58: =IFERROR(AVERAGEIF(G57:G61,">0"),0) -> 0 | G58: 0 | H58: 0 | I58: 0
G59: 0 | H59: 0 | I59: 0
G60: 0 | H60: 0 | I60: 0
G61: 0 | H61: 0 | I61: 0
F62: Total Meal Cost (Avg. Entrée Cost + Avg. Side Item Cost + Avg. Milk Cost ): | G62: =IFERROR(B12+G49+A52+A55+A58,0) -> 0 | H62: =SUM(H51:H61,H39:H48,H28:H37) -> 0 | I62: =SUM(I51:I61,I39:I48,I28:I37) -> 0
A64: Tuesday
B65: Item | C65: Cost Per Purchase Unit OR Portion | D65: No. of Portions per Purchase Unit | E65: A La Carte Price Charged Per Portion | F65: No. of Portions Sold A La Carte | G65: Cost per Portion | H65: Total Nonprogram Food Cost | I65: Total Revenue per Item
B66: Recipes
A67: Entrée Items | C67: =IFERROR(VLOOKUP(B67,'Breakfast Recipe Calculator'!$A$409:$C$424,2,FALSE),"") -> 0 | D67: 1 | G67: =IFERROR(IF(C67>0.01,C67/D67,0),0) -> 0 | H67: =G67*F67 -> 0 | I67: =IF(H67>0.01,E67*F67,0) -> 0
C68: =IFERROR(VLOOKUP(B68,'Breakfast Recipe Calculator'!$A$409:$C$424,2,FALSE),"") -> 0 | D68: 1 | G68: =IFERROR(IF(C68>0.01,C68/D68,0),0) -> 0 | H68: =G68*F68 -> 0 | I68: =IF(H68>0.01,E68*F68,0) -> 0
C69: =IFERROR(VLOOKUP(B69,'Breakfast Recipe Calculator'!$A$409:$C$424,2,FALSE),"") -> 0 | D69: 1 | G69: =IFERROR(IF(C69>0.01,C69/D69,0),0) -> 0 | H69: =G69*F69 -> 0 | I69: =IF(H69>0.01,E69*F69,0) -> 0
C70: =IFERROR(VLOOKUP(B70,'Breakfast Recipe Calculator'!$A$409:$C$424,2,FALSE),"") -> 0 | D70: 1 | G70: 0 | H70: 0 | I70: 0
C71: =IFERROR(VLOOKUP(B71,'Breakfast Recipe Calculator'!$A$409:$C$424,2,FALSE),"") -> 0 | D71: 1 | G71: 0 | H71: 0 | I71: 0
C72: =IFERROR(VLOOKUP(B72,'Breakfast Recipe Calculator'!$A$409:$C$424,2,FALSE),"") -> 0 | D72: 1 | G72: 0 | H72: 0 | I72: 0
C73: =IFERROR(VLOOKUP(B73,'Breakfast Recipe Calculator'!$A$409:$C$424,2,FALSE),"") -> 0 | D73: 1 | G73: 0 | H73: 0 | I73: 0
C74: =IFERROR(VLOOKUP(B74,'Breakfast Recipe Calculator'!$A$409:$C$424,2,FALSE),"") -> 0 | D74: 1 | G74: 0 | H74: 0 | I74: 0
C75: =IFERROR(VLOOKUP(B75,'Breakfast Recipe Calculator'!$A$409:$C$424,2,FALSE),"") -> 0 | D75: 1 | G75: 0 | H75: 0 | I75: 0
C76: =IFERROR(VLOOKUP(B76,'Breakfast Recipe Calculator'!$A$409:$C$424,2,FALSE),"") -> 0 | D76: 1 | G76: 0 | H76: 0 | I76: 0
B77: Pre-Calculated and/or Pre-Packaged Entrees
C78: 0 | D78: =IF(ISBLANK(B78),0,1) -> 0 | G78: =IFERROR(IF(C78>0.01,C78/D78,0),0) -> 0 | H78: =G78*F78 -> 0 | I78: =IF(H78>0.01,E78*F78,0) -> 0
C79: 0 | D79: =IF(ISBLANK(B79),0,1) -> 0 | G79: 0 | H79: 0 | I79: 0
C80: 0 | D80: 0 | G80: 0 | H80: 0 | I80: 0
C81: 0 | D81: 0 | G81: 0 | H81: 0 | I81: 0
C82: 0 | D82: 0 | G82: 0 | H82: 0 | I82: 0
C83: 0 | D83: 0 | G83: 0 | H83: 0 | I83: 0
C84: 0 | D84: 0 | G84: 0 | H84: 0 | I84: 0
C85: 0 | D85: 0 | G85: 0 | H85: 0 | I85: 0
C86: 0 | D86: 0 | G86: 0 | H86: 0 | I86: 0
C87: 0 | D87: 0 | G87: 0 | H87: 0 | I87: 0
F88: Average Entrée Cost: | G88: =IFERROR(AVERAGEIF(G67:G87,">0"),0) -> 0
B89: Item | C89: Cost Per Purchase Unit OR Portion | D89: No. of Portions per Purchase Unit | E89: A La Carte Price Charged Per Portion | F89: No. of Portions Sold A La Carte | G89: Cost per Portion | H89: Total Nonprogram Food Cost | I89: Total Revenue per Item
A90: Fruit or Vegetable Sides | G90: =IFERROR(IF(C90>0.01,C90/D90,0),0) -> 0 | H90: =G90*F90 -> 0 | I90: =IF(H90>0.01,E90*F90,0) -> 0
A91: =IFERROR(AVERAGEIF(G90:G92,">0"),0) -> 0 | G91: 0 | H91: 0 | I91: 0
G92: 0 | H92: 0 | I92: 0
G93: 0 | H93: 0 | I93: 0
A94: =IFERROR(AVERAGEIF(G93:G95,">0"),0) -> 0 | G94: 0 | H94: 0 | I94: 0
G95: 0 | H95: 0 | I95: 0
A96: Grain/Other Sides | G96: 0 | H96: 0 | I96: 0
A97: =IFERROR(AVERAGEIF(G96:G100,"<>0"),0) -> 0 | G97: 0 | H97: 0 | I97: 0
G98: 0 | H98: 0 | I98: 0
G99: 0 | H99: 0 | I99: 0
G100: 0 | H100: 0 | I100: 0
F101: Total Meal Cost (Avg. Entrée Cost + Avg. Side Item Cost + Avg. Milk Cost ): | G101: =IFERROR(B12+G88+A91+A94+A97,0) -> 0 | H101: =SUM(H90:H100,H78:H87,H67:H76) -> 0 | I101: =SUM(I90:I100,I78:I87,I67:I76) -> 0
A103: Wednesday
B104: Item | C104: Cost Per Purchase Unit OR Portion | D104: No. of Portions per Purchase Unit | E104: A La Carte Price Charged Per Portion | F104: No. of Portions Sold A La Carte | G104: Cost per Portion | H104: Total Nonprogram Food Cost | I104: Total Revenue per Item
B105: Recipes
A106: Entrée Items | C106: =IFERROR(VLOOKUP(B106,'Breakfast Recipe Calculator'!$A$409:$C$424,2,FALSE),"") -> 0 | D106: 1 | G106: =IFERROR(IF(C106>0.01,C106/D106,0),0) -> 0 | H106: =G106*F106 -> 0 | I106: =IF(H106>0.01,E106*F106,0) -> 0
C107: =IFERROR(VLOOKUP(B107,'Breakfast Recipe Calculator'!$A$409:$C$424,2,FALSE),"") -> 0 | D107: 1 | G107: =IFERROR(IF(C107>0.01,C107/D107,0),0) -> 0 | H107: =G107*F107 -> 0 | I107: =IF(H107>0.01,E107*F107,0) -> 0
C108: =IFERROR(VLOOKUP(B108,'Breakfast Recipe Calculator'!$A$409:$C$424,2,FALSE),"") -> 0 | D108: 1 | G108: =IFERROR(IF(C108>0.01,C108/D108,0),0) -> 0 | H108: =G108*F108 -> 0 | I108: =IF(H108>0.01,E108*F108,0) -> 0
C109: =IFERROR(VLOOKUP(B109,'Breakfast Recipe Calculator'!$A$409:$C$424,2,FALSE),"") -> 0 | D109: 1 | G109: 0 | H109: 0 | I109: 0
C110: =IFERROR(VLOOKUP(B110,'Breakfast Recipe Calculator'!$A$409:$C$424,2,FALSE),"") -> 0 | D110: 1 | G110: 0 | H110: 0 | I110: 0
C111: =IFERROR(VLOOKUP(B111,'Breakfast Recipe Calculator'!$A$409:$C$424,2,FALSE),"") -> 0 | D111: 1 | G111: 0 | H111: 0 | I111: 0
C112: =IFERROR(VLOOKUP(B112,'Breakfast Recipe Calculator'!$A$409:$C$424,2,FALSE),"") -> 0 | D112: 1 | G112: 0 | H112: 0 | I112: 0
C113: =IFERROR(VLOOKUP(B113,'Breakfast Recipe Calculator'!$A$409:$C$424,2,FALSE),"") -> 0 | D113: 1 | G113: 0 | H113: 0 | I113: 0
C114: =IFERROR(VLOOKUP(B114,'Breakfast Recipe Calculator'!$A$409:$C$424,2,FALSE),"") -> 0 | D114: 1 | G114: 0 | H114: 0 | I114: 0
C115: =IFERROR(VLOOKUP(B115,'Breakfast Recipe Calculator'!$A$409:$C$424,2,FALSE),"") -> 0 | D115: 1 | G115: 0 | H115: 0 | I115: 0
B116: Pre-Calculated and/or Pre-Packaged Entrees
C117: 0 | D117: =IF(ISBLANK(B117),0,1) -> 0 | G117: =IFERROR(IF(C117>0.01,C117/D117,0),0) -> 0 | H117: =G117*F117 -> 0 | I117: =IF(H117>0.01,E117*F117,0) -> 0
C118: 0 | D118: =IF(ISBLANK(B118),0,1) -> 0 | G118: 0 | H118: 0 | I118: 0
C119: 0 | D119: 0 | G119: 0 | H119: 0 | I119: 0
C120: 0 | D120: 0 | G120: 0 | H120: 0 | I120: 0
C121: 0 | D121: 0 | G121: 0 | H121: 0 | I121: 0
C122: 0 | D122: 0 | G122: 0 | H122: 0 | I122: 0
C123: 0 | D123: 0 | G123: 0 | H123: 0 | I123: 0
C124: 0 | D124: 0 | G124: 0 | H124: 0 | I124: 0
C125: 0 | D125: 0 | G125: 0 | H125: 0 | I125: 0
C126: 0 | D126: 0 | G126: 0 | H126: 0 | I126: 0
F127: Average Entrée Cost: | G127: =IFERROR(AVERAGEIF(G106:G126,">0"),0) -> 0
B128: Item | C128: Cost Per Purchase Unit OR Portion | D128: No. of Portions per Purchase Unit | E128: A La Carte Price Charged Per Portion | F128: No. of Portions Sold A La Carte | G128: Cost per Portion | H128: Total Nonprogram Food Cost | I128: Total Revenue per Item
A129: Fruit or Vegetable Sides | G129: =IFERROR(IF(C129>0.01,C129/D129,0),0) -> 0 | H129: =G129*F129 -> 0 | I129: =IF(H129>0.01,E129*F129,0) -> 0
A130: =IFERROR(AVERAGEIF(G129:G131,">0"),0) -> 0 | G130: 0 | H130: 0 | I130: 0
G131: 0 | H131: 0 | I131: 0
G132: 0 | H132: 0 | I132: 0
A133: =IFERROR(AVERAGEIF(G132:G134,">0"),0) -> 0 | G133: 0 | H133: 0 | I133: 0
G134: 0 | H134: 0 | I134: 0
A135: Grain/Other Sides | G135: 0 | H135: 0 | I135: 0
A136: =IFERROR(AVERAGEIF(G135:G139,">0"),0) -> 0 | G136: 0 | H136: 0 | I136: 0
G137: 0 | H137: 0 | I137: 0
G138: 0 | H138: 0 | I138: 0
G139: 0 | H139: 0 | I139: 0
F140: Total Meal Cost (Avg. Entrée Cost + Avg. Side Item Cost + Avg. Milk Cost ): | G140: =IFERROR(B12+G127+A130+A133+A136,0) -> 0 | H140: =SUM(H129:H139,H117:H126,H106:H115) -> 0 | I140: =SUM(I129:I139,I117:I126,I106:I115) -> 0
A142: Thursday
B143: Item | C143: Cost Per Purchase Unit OR Portion | D143: No. of Portions per Purchase Unit | E143: A La Carte Price Charged Per Portion | F143: No. of Portions Sold A La Carte | G143: Cost per Portion | H143: Total Nonprogram Food Cost | I143: Total Revenue per Item
B144: Recipes
A145: Entrée Items | C145: =IFERROR(VLOOKUP(B145,'Breakfast Recipe Calculator'!$A$409:$C$424,2,FALSE),"") -> 0 | D145: 1 | G145: =IFERROR(IF(C145>0.01,C145/D145,0),0) -> 0 | H145: =G145*F145 -> 0 | I145: =IF(H145>0.01,E145*F145,0) -> 0
C146: =IFERROR(VLOOKUP(B146,'Breakfast Recipe Calculator'!$A$409:$C$424,2,FALSE),"") -> 0 | D146: 1 | G146: =IFERROR(IF(C146>0.01,C146/D146,0),0) -> 0 | H146: =G146*F146 -> 0 | I146: =IF(H146>0.01,E146*F146,0) -> 0
C147: =IFERROR(VLOOKUP(B147,'Breakfast Recipe Calculator'!$A$409:$C$424,2,FALSE),"") -> 0 | D147: 1 | G147: =IFERROR(IF(C147>0.01,C147/D147,0),0) -> 0 | H147: =G147*F147 -> 0 | I147: =IF(H147>0.01,E147*F147,0) -> 0
C148: =IFERROR(VLOOKUP(B148,'Breakfast Recipe Calculator'!$A$409:$C$424,2,FALSE),"") -> 0 | D148: 1 | G148: 0 | H148: 0 | I148: 0
C149: =IFERROR(VLOOKUP(B149,'Breakfast Recipe Calculator'!$A$409:$C$424,2,FALSE),"") -> 0 | D149: 1 | G149: 0 | H149: 0 | I149: 0
C150: =IFERROR(VLOOKUP(B150,'Breakfast Recipe Calculator'!$A$409:$C$424,2,FALSE),"") -> 0 | D150: 1 | G150: 0 | H150: 0 | I150: 0
C151: =IFERROR(VLOOKUP(B151,'Breakfast Recipe Calculator'!$A$409:$C$424,2,FALSE),"") -> 0 | D151: 1 | G151: 0 | H151: 0 | I151: 0
C152: =IFERROR(VLOOKUP(B152,'Breakfast Recipe Calculator'!$A$409:$C$424,2,FALSE),"") -> 0 | D152: 1 | G152: 0 | H152: 0 | I152: 0
C153: =IFERROR(VLOOKUP(B153,'Breakfast Recipe Calculator'!$A$409:$C$424,2,FALSE),"") -> 0 | D153: 1 | G153: 0 | H153: 0 | I153: 0
C154: =IFERROR(VLOOKUP(B154,'Breakfast Recipe Calculator'!$A$409:$C$424,2,FALSE),"") -> 0 | D154: 1 | G154: 0 | H154: 0 | I154: 0
B155: Pre-Calculated and/or Pre-Packaged Entrees
C156: 0 | D156: =IF(ISBLANK(B156),0,1) -> 0 | G156: =IFERROR(IF(C156>0.01,C156/D156,0),0) -> 0 | H156: =G156*F156 -> 0 | I156: =IF(H156>0.01,E156*F156,0) -> 0
C157: 0 | D157: =IF(ISBLANK(B157),0,1) -> 0 | G157: 0 | H157: 0 | I157: 0
C158: 0 | D158: 0 | G158: 0 | H158: 0 | I158: 0
C159: 0 | D159: 0 | G159: 0 | H159: 0 | I159: 0
C160: 0 | D160: 0 | G160: 0 | H160: 0 | I160: 0
C161: 0 | D161: 0 | G161: 0 | H161: 0 | I161: 0
C162: 0 | D162: 0 | G162: 0 | H162: 0 | I162: 0
C163: 0 | D163: 0 | G163: 0 | H163: 0 | I163: 0
C164: 0 | D164: 0 | G164: 0 | H164: 0 | I164: 0
C165: 0 | D165: 0 | G165: 0 | H165: 0 | I165: 0
F166: Average Entrée Cost: | G166: =IFERROR(AVERAGEIF(G145:G165,">0"),0) -> 0
B167: Item | C167: Cost Per Purchase Unit OR Portion | D167: No. of Portions per Purchase Unit | E167: A La Carte Price Charged Per Portion | F167: No. of Portions Sold A La Carte | G167: Cost per Portion | H167: Total Nonprogram Food Cost | I167: Total Revenue per Item
A168: Fruit or Vegetable Sides | G168: =IFERROR(IF(C168>0.01,C168/D168,0),0) -> 0 | H168: =G168*F168 -> 0 | I168: =IF(H168>0.01,E168*F168,0) -> 0
A169: =IFERROR(AVERAGEIF(G168:G170,">0"),0) -> 0 | G169: 0 | H169: 0 | I169: 0
G170: 0 | H170: 0 | I170: 0
G171: 0 | H171: 0 | I171: 0
A172: =IFERROR(AVERAGEIF(G171:G173,">0"),0) -> 0 | G172: 0 | H172: 0 | I172: 0
G173: 0 | H173: 0 | I173: 0
A174: Grain/Other Sides | G174: 0 | H174: 0 | I174: 0
A175: =IFERROR(AVERAGEIF(G174:G178,">0"),0) -> 0 | G175: 0 | H175: 0 | I175: 0
G176: 0 | H176: 0 | I176: 0
G177: 0 | H177: 0 | I177: 0
G178: 0 | H178: 0 | I178: 0
F179: Total Meal Cost (Avg. Entrée Cost + Avg. Side Item Cost + Avg. Milk Cost ): | G179: =IFERROR(B12+G166+A169+A172+A175,0) -> 0 | H179: =SUM(H168:H178,H156:H165,H145:H154) -> 0 | I179: =SUM(I168:I178,I156:I165,I145:I154) -> 0
A181: Friday
B182: Item | C182: Cost Per Purchase Unit OR Portion | D182: No. of Portions per Purchase Unit | E182: A La Carte Price Charged Per Portion | F182: No. of Portions Sold A La Carte | G182: Cost per Portion | H182: Total Nonprogram Food Cost | I182: Total Revenue per Item
B183: Recipes
A184: Entrée Items | C184: =IFERROR(VLOOKUP(B184,'Breakfast Recipe Calculator'!$A$409:$C$424,2,FALSE),"") -> 0 | D184: 1 | G184: =IFERROR(IF(C184>0.01,C184/D184,0),0) -> 0 | H184: =G184*F184 -> 0 | I184: =IF(H184>0.01,E184*F184,0) -> 0
C185: =IFERROR(VLOOKUP(B185,'Breakfast Recipe Calculator'!$A$409:$C$424,2,FALSE),"") -> 0 | D185: 1 | G185: =IFERROR(IF(C185>0.01,C185/D185,0),0) -> 0 | H185: =G185*F185 -> 0 | I185: =IF(H185>0.01,E185*F185,0) -> 0
C186: =IFERROR(VLOOKUP(B186,'Breakfast Recipe Calculator'!$A$409:$C$424,2,FALSE),"") -> 0 | D186: 1 | G186: =IFERROR(IF(C186>0.01,C186/D186,0),0) -> 0 | H186: =G186*F186 -> 0 | I186: =IF(H186>0.01,E186*F186,0) -> 0
C187: =IFERROR(VLOOKUP(B187,'Breakfast Recipe Calculator'!$A$409:$C$424,2,FALSE),"") -> 0 | D187: 1 | G187: 0 | H187: 0 | I187: 0
C188: =IFERROR(VLOOKUP(B188,'Breakfast Recipe Calculator'!$A$409:$C$424,2,FALSE),"") -> 0 | D188: 1 | G188: 0 | H188: 0 | I188: 0
C189: =IFERROR(VLOOKUP(B189,'Breakfast Recipe Calculator'!$A$409:$C$424,2,FALSE),"") -> 0 | D189: 1 | G189: 0 | H189: 0 | I189: 0
C190: =IFERROR(VLOOKUP(B190,'Breakfast Recipe Calculator'!$A$409:$C$424,2,FALSE),"") -> 0 | D190: 1 | G190: 0 | H190: 0 | I190: 0
C191: =IFERROR(VLOOKUP(B191,'Breakfast Recipe Calculator'!$A$409:$C$424,2,FALSE),"") -> 0 | D191: 1 | G191: 0 | H191: 0 | I191: 0
C192: =IFERROR(VLOOKUP(B192,'Breakfast Recipe Calculator'!$A$409:$C$424,2,FALSE),"") -> 0 | D192: 1 | G192: 0 | H192: 0 | I192: 0
C193: =IFERROR(VLOOKUP(B193,'Breakfast Recipe Calculator'!$A$409:$C$424,2,FALSE),"") -> 0 | D193: 1 | G193: 0 | H193: 0 | I193: 0
B194: Pre-Calculated and/or Pre-Packaged Entrees
C195: 0 | D195: =IF(ISBLANK(B195),0,1) -> 0 | G195: =IFERROR(IF(C195>0.01,C195/D195,0),0) -> 0 | H195: =G195*F195 -> 0 | I195: =IF(H195>0.01,E195*F195,0) -> 0
C196: 0 | D196: =IF(ISBLANK(B196),0,1) -> 0 | G196: 0 | H196: 0 | I196: 0
C197: 0 | D197: 0 | G197: 0 | H197: 0 | I197: 0
C198: 0 | D198: 0 | G198: 0 | H198: 0 | I198: 0
C199: 0 | D199: 0 | G199: 0 | H199: 0 | I199: 0
C200: 0 | D200: 0 | G200: 0 | H200: 0 | I200: 0
C201: 0 | D201: 0 | G201: 0 | H201: 0 | I201: 0
C202: 0 | D202: 0 | G202: 0 | H202: 0 | I202: 0
C203: 0 | D203: 0 | G203: 0 | H203: 0 | I203: 0
C204: 0 | D204: 0 | G204: 0 | H204: 0 | I204: 0
F205: Average Entrée Cost: | G205: =IFERROR(AVERAGEIF(G184:G204,">0"),0) -> 0
B206: Item | C206: Cost Per Purchase Unit OR Portion | D206: No. of Portions per Purchase Unit | E206: A La Carte Price Charged Per Portion | F206: No. of Portions Sold A La Carte | G206: Cost per Portion | H206: Total Nonprogram Food Cost | I206: Total Revenue per Item
... 14 more rows

Sheet Breakfast Menu 6 (hidden)
A1: Breakfast Menu Costing Worksheet
A2: Select Grade Level:
A3: Sponsor Name: | B3: =IF('Instructions (START HERE)'!C2="","",'Instructions (START HERE)'!C2) -> 
A4: Week Selected for Review: | B4: ='Lunch Menu'!B4 -> 0 | C4: Site:
A6: Average Cost of Milk Calculator
A7: Types of Milk Served: | B7: Cost per Unit: | F7: Cost | G7: Revenue | H7: No. Served
A8: Non-fat Milk | B8: =Non_fat_Milk -> 0 | E8: Adult | F8: =SUM(H22:H23) -> 0 | G8: =SUM(I22:I23) -> 0
A9: Non-fat Flavored Milk | B9: =NonFatFlavor -> 0 | E9: Student | F9: =SUM(H16:H21) -> 0 | G9: =SUM(I16:I21) -> 0
A10: 1% Milk | B10: =Milk1 -> 0 | E10: Reim. Meals | F10: =SUM(H16,H19,H20,H21) -> 0 | G10: =SUM(I16,I19:I21) -> 0 | H10: =SUM(C16:G16,C19:G21) -> 0
A11: 1% Flavored Milk | B11: =Flav1 -> 0 | E11: Total a la carte | F11: =SUM(H62,H101,H140,H179,H218) -> 0 | G11: =SUM(I62,I101,I140,I179,I218) -> 0
A12: Average Milk Cost: | B12: ='Lunch Menu'!B12 ->  | E12: total adult meals sold | F12: =SUM(C22:G23) -> 0
E13: total a la carte entrée/side items sold | F13: =SUM(F28:F37,F39:F48,F51:F61,F67:F76,F78:F87,F90:F100,F106:F115,F117:F126,F129:F139,F145:F154,F156:F165,F168:F178,F184:F193,F195:F204,F207:F217) -> 0
A14: Program Food Revenue
A15: Reimbursement Rates | C15: Monday Meal Counts | D15: Tuesday Meal Counts | E15: Wednesday Meal Counts | F15: Thursday Meal Counts | G15: Friday Meal Counts | H15: cost | I15: revenue
A16: Free | B16: =FreeBreakfastRates -> 0 | H16: =(C16*$G$62)+(D16*$G$101)+(E16*$G$140)+(F16*$G$179)+(G16*$G$218) -> 0 | I16: =SUM(C16:G16)*B16 -> 0
A17: Reduced | B17: =ReducedBreakfastRates -> 0
A18: Paid | B18: =BPaid -> 0.5
A19: Paid Student Price 1 | B19: =BPSP1 -> 0 | H19: 0 | I19: =(SUM(C19:G19)*B19)+(SUM(C19:G19)*$B$18) -> 0
A20: Paid Student Price 2 | B20: =BPSP2 -> 0 | H20: 0 | I20: =(SUM(C20:G20)*B20)+(SUM(C20:G20)*$B$18) -> 0
A21: Reduced Price | B21: 0.3 | H21: 0 | I21: =(SUM(C21:G21)*B21)+(SUM(C21:G21)*$B$17) -> 0
A22: Adult Meal Price | B22: =BAM -> 0 | H22: =(C22*$G$62)+(D22*$G$101)+(E22*$G$140)+(F22*$G$179)+(G22*$G$218) -> 0 | I22: =SUM(C22:G22)*B22 -> 0
A23: Food Service Staff Meal Price | B23: =BFSS -> 0 | H23: =(C23*$G$62)+(D23*$G$101)+(E23*$G$140)+(F23*$G$179)+(G23*$G$218) -> 0 | I23: =SUM(C23:G23)*B23 -> 0
A25: Monday
B26: Item | C26: Cost Per Purchase Unit OR Portion | D26: No. of Portions per Purchase Unit | E26: A La Carte Price Charged Per Portion | F26: No. of Portions Sold A La Carte | G26: Cost per Portion | H26: Total Nonprogram Food Cost | I26: Total Revenue per Item
B27: Recipes
A28: Entrée Items | C28: =IFERROR(VLOOKUP(B28,'Breakfast Recipe Calculator'!$A$409:$C$424,2,FALSE),"") -> 0 | D28: 1 | G28: =IFERROR(IF(C28>0.01,C28/D28,0),0) -> 0 | H28: =G28*F28 -> 0 | I28: =IF(H28>0.01,E28*F28,0) -> 0
C29: =IFERROR(VLOOKUP(B29,'Breakfast Recipe Calculator'!$A$409:$C$424,2,FALSE),"") -> 0 | D29: 1 | G29: =IFERROR(IF(C29>0.01,C29/D29,0),0) -> 0 | H29: =G29*F29 -> 0 | I29: =IF(H29>0.01,E29*F29,0) -> 0
C30: =IFERROR(VLOOKUP(B30,'Breakfast Recipe Calculator'!$A$409:$C$424,2,FALSE),"") -> 0 | D30: 1 | G30: =IFERROR(IF(C30>0.01,C30/D30,0),0) -> 0 | H30: =G30*F30 -> 0 | I30: =IF(H30>0.01,E30*F30,0) -> 0
C31: =IFERROR(VLOOKUP(B31,'Breakfast Recipe Calculator'!$A$409:$C$424,2,FALSE),"") -> 0 | D31: 1 | G31: 0 | H31: 0 | I31: 0
C32: =IFERROR(VLOOKUP(B32,'Breakfast Recipe Calculator'!$A$409:$C$424,2,FALSE),"") -> 0 | D32: 1 | G32: 0 | H32: 0 | I32: 0
C33: =IFERROR(VLOOKUP(B33,'Breakfast Recipe Calculator'!$A$409:$C$424,2,FALSE),"") -> 0 | D33: 1 | G33: 0 | H33: 0 | I33: 0
C34: =IFERROR(VLOOKUP(B34,'Breakfast Recipe Calculator'!$A$409:$C$424,2,FALSE),"") -> 0 | D34: 1 | G34: 0 | H34: 0 | I34: 0
C35: =IFERROR(VLOOKUP(B35,'Breakfast Recipe Calculator'!$A$409:$C$424,2,FALSE),"") -> 0 | D35: 1 | G35: 0 | H35: 0 | I35: 0
C36: =IFERROR(VLOOKUP(B36,'Breakfast Recipe Calculator'!$A$409:$C$424,2,FALSE),"") -> 0 | D36: 1 | G36: 0 | H36: 0 | I36: 0
C37: =IFERROR(VLOOKUP(B37,'Breakfast Recipe Calculator'!$A$409:$C$424,2,FALSE),"") -> 0 | D37: 1 | G37: 0 | H37: 0 | I37: 0
B38: Pre-Calculated and/or Pre-Packaged Entrees
C39: 0 | D39: =IF(ISBLANK(B39),0,1) -> 0 | G39: =IFERROR(IF(C39>0.01,C39/D39,0),0) -> 0 | H39: =G39*F39 -> 0 | I39: =IF(H39>0.01,E39*F39,0) -> 0
C40: 0 | D40: =IF(ISBLANK(B40),0,1) -> 0 | G40: 0 | H40: 0 | I40: 0
C41: 0 | D41: 0 | G41: 0 | H41: 0 | I41: 0
C42: 0 | D42: 0 | G42: 0 | H42: 0 | I42: 0
C43: 0 | D43: 0 | G43: 0 | H43: 0 | I43: 0
C44: 0 | D44: 0 | G44: 0 | H44: 0 | I44: 0
C45: 0 | D45: 0 | G45: 0 | H45: 0 | I45: 0
C46: 0 | D46: 0 | G46: 0 | H46: 0 | I46: 0
C47: 0 | D47: 0 | G47: 0 | H47: 0 | I47: 0
C48: 0 | D48: 0 | G48: 0 | H48: 0 | I48: 0
F49: Average Entrée Cost:
B50: Item | C50: Cost Per Purchase Unit OR Portion | D50: No. of Portions per Purchase Unit | E50: A La Carte Price Charged Per Portion | F50: No. of Portions Sold A La Carte | G50: Cost per Portion | H50: Total Nonprogram Food Cost | I50: Total Revenue per Item
A51: Fruit or Vegetable Sides | G51: =IFERROR(IF(C51>0.01,C51/D51,0),0) -> 0 | H51: =G51*F51 -> 0 | I51: =IF(H51>0.01,E51*F51,0) -> 0
A52: =IFERROR(AVERAGEIF(G51:G53,">0"),0) -> 0 | G52: 0 | H52: 0 | I52: 0
G53: 0 | H53: 0 | I53: 0
G54: 0 | H54: 0 | I54: 0
A55: =IFERROR(AVERAGEIF(G54:G56,">0"),0) -> 0 | G55: 0 | H55: 0 | I55: 0
G56: 0 | H56: 0 | I56: 0
A57: Grain/Other Sides | G57: 0 | H57: 0 | I57: 0
A58: =IFERROR(AVERAGEIF(G57:G61,">0"),0) -> 0 | G58: 0 | H58: 0 | I58: 0
G59: 0 | H59: 0 | I59: 0
G60: 0 | H60: 0 | I60: 0
G61: 0 | H61: 0 | I61: 0
F62: Total Meal Cost (Avg. Entrée Cost + Avg. Side Item Cost + Avg. Milk Cost ): | G62: =IFERROR(B12+G49+A52+A55+A58,0) -> 0 | H62: =SUM(H51:H61,H39:H48,H28:H37) -> 0 | I62: =SUM(I51:I61,I39:I48,I28:I37) -> 0
A64: Tuesday
B65: Item | C65: Cost Per Purchase Unit OR Portion | D65: No. of Portions per Purchase Unit | E65: A La Carte Price Charged Per Portion | F65: No. of Portions Sold A La Carte | G65: Cost per Portion | H65: Total Nonprogram Food Cost | I65: Total Revenue per Item
B66: Recipes
A67: Entrée Items | C67: =IFERROR(VLOOKUP(B67,'Breakfast Recipe Calculator'!$A$409:$C$424,2,FALSE),"") -> 0 | D67: 1 | G67: =IFERROR(IF(C67>0.01,C67/D67,0),0) -> 0 | H67: =G67*F67 -> 0 | I67: =IF(H67>0.01,E67*F67,0) -> 0
C68: =IFERROR(VLOOKUP(B68,'Breakfast Recipe Calculator'!$A$409:$C$424,2,FALSE),"") -> 0 | D68: 1 | G68: =IFERROR(IF(C68>0.01,C68/D68,0),0) -> 0 | H68: =G68*F68 -> 0 | I68: =IF(H68>0.01,E68*F68,0) -> 0
C69: =IFERROR(VLOOKUP(B69,'Breakfast Recipe Calculator'!$A$409:$C$424,2,FALSE),"") -> 0 | D69: 1 | G69: =IFERROR(IF(C69>0.01,C69/D69,0),0) -> 0 | H69: =G69*F69 -> 0 | I69: =IF(H69>0.01,E69*F69,0) -> 0
C70: =IFERROR(VLOOKUP(B70,'Breakfast Recipe Calculator'!$A$409:$C$424,2,FALSE),"") -> 0 | D70: 1 | G70: 0 | H70: 0 | I70: 0
C71: =IFERROR(VLOOKUP(B71,'Breakfast Recipe Calculator'!$A$409:$C$424,2,FALSE),"") -> 0 | D71: 1 | G71: 0 | H71: 0 | I71: 0
C72: =IFERROR(VLOOKUP(B72,'Breakfast Recipe Calculator'!$A$409:$C$424,2,FALSE),"") -> 0 | D72: 1 | G72: 0 | H72: 0 | I72: 0
C73: =IFERROR(VLOOKUP(B73,'Breakfast Recipe Calculator'!$A$409:$C$424,2,FALSE),"") -> 0 | D73: 1 | G73: 0 | H73: 0 | I73: 0
C74: =IFERROR(VLOOKUP(B74,'Breakfast Recipe Calculator'!$A$409:$C$424,2,FALSE),"") -> 0 | D74: 1 | G74: 0 | H74: 0 | I74: 0
C75: =IFERROR(VLOOKUP(B75,'Breakfast Recipe Calculator'!$A$409:$C$424,2,FALSE),"") -> 0 | D75: 1 | G75: 0 | H75: 0 | I75: 0
C76: =IFERROR(VLOOKUP(B76,'Breakfast Recipe Calculator'!$A$409:$C$424,2,FALSE),"") -> 0 | D76: 1 | G76: 0 | H76: 0 | I76: 0
B77: Pre-Calculated and/or Pre-Packaged Entrees
C78: 0 | D78: =IF(ISBLANK(B78),0,1) -> 0 | G78: =IFERROR(IF(C78>0.01,C78/D78,0),0) -> 0 | H78: =G78*F78 -> 0 | I78: =IF(H78>0.01,E78*F78,0) -> 0
C79: 0 | D79: =IF(ISBLANK(B79),0,1) -> 0 | G79: 0 | H79: 0 | I79: 0
C80: 0 | D80: 0 | G80: 0 | H80: 0 | I80: 0
C81: 0 | D81: 0 | G81: 0 | H81: 0 | I81: 0
C82: 0 | D82: 0 | G82: 0 | H82: 0 | I82: 0
C83: 0 | D83: 0 | G83: 0 | H83: 0 | I83: 0
C84: 0 | D84: 0 | G84: 0 | H84: 0 | I84: 0
C85: 0 | D85: 0 | G85: 0 | H85: 0 | I85: 0
C86: 0 | D86: 0 | G86: 0 | H86: 0 | I86: 0
C87: 0 | D87: 0 | G87: 0 | H87: 0 | I87: 0
F88: Average Entrée Cost: | G88: =IFERROR(AVERAGEIF(G67:G87,">0"),0) -> 0
B89: Item | C89: Cost Per Purchase Unit OR Portion | D89: No. of Portions per Purchase Unit | E89: A La Carte Price Charged Per Portion | F89: No. of Portions Sold A La Carte | G89: Cost per Portion | H89: Total Nonprogram Food Cost | I89: Total Revenue per Item
A90: Fruit or Vegetable Sides | G90: =IFERROR(IF(C90>0.01,C90/D90,0),0) -> 0 | H90: =G90*F90 -> 0 | I90: =IF(H90>0.01,E90*F90,0) -> 0
A91: =IFERROR(AVERAGEIF(G90:G92,">0"),0) -> 0 | G91: 0 | H91: 0 | I91: 0
G92: 0 | H92: 0 | I92: 0
G93: 0 | H93: 0 | I93: 0
A94: =IFERROR(AVERAGEIF(G93:G95,">0"),0) -> 0 | G94: 0 | H94: 0 | I94: 0
G95: 0 | H95: 0 | I95: 0
A96: Grain/Other Sides | G96: 0 | H96: 0 | I96: 0
A97: =IFERROR(AVERAGEIF(G96:G100,"<>0"),0) -> 0 | G97: 0 | H97: 0 | I97: 0
A98: 566 543 276 | G98: 0 | H98: 0 | I98: 0
G99: 0 | H99: 0 | I99: 0
G100: 0 | H100: 0 | I100: 0
F101: Total Meal Cost (Avg. Entrée Cost + Avg. Side Item Cost + Avg. Milk Cost ): | G101: =IFERROR(B12+G88+A91+A94+A97,0) -> 0 | H101: =SUM(H90:H100,H78:H87,H67:H76) -> 0 | I101: =SUM(I90:I100,I78:I87,I67:I76) -> 0
A103: Wednesday
B104: Item | C104: Cost Per Purchase Unit OR Portion | D104: No. of Portions per Purchase Unit | E104: A La Carte Price Charged Per Portion | F104: No. of Portions Sold A La Carte | G104: Cost per Portion | H104: Total Nonprogram Food Cost | I104: Total Revenue per Item
B105: Recipes
A106: Entrée Items | C106: =IFERROR(VLOOKUP(B106,'Breakfast Recipe Calculator'!$A$409:$C$424,2,FALSE),"") -> 0 | D106: 1 | G106: =IFERROR(IF(C106>0.01,C106/D106,0),0) -> 0 | H106: =G106*F106 -> 0 | I106: =IF(H106>0.01,E106*F106,0) -> 0
C107: =IFERROR(VLOOKUP(B107,'Breakfast Recipe Calculator'!$A$409:$C$424,2,FALSE),"") -> 0 | D107: 1 | G107: =IFERROR(IF(C107>0.01,C107/D107,0),0) -> 0 | H107: =G107*F107 -> 0 | I107: =IF(H107>0.01,E107*F107,0) -> 0
C108: =IFERROR(VLOOKUP(B108,'Breakfast Recipe Calculator'!$A$409:$C$424,2,FALSE),"") -> 0 | D108: 1 | G108: =IFERROR(IF(C108>0.01,C108/D108,0),0) -> 0 | H108: =G108*F108 -> 0 | I108: =IF(H108>0.01,E108*F108,0) -> 0
C109: =IFERROR(VLOOKUP(B109,'Breakfast Recipe Calculator'!$A$409:$C$424,2,FALSE),"") -> 0 | D109: 1 | G109: 0 | H109: 0 | I109: 0
C110: =IFERROR(VLOOKUP(B110,'Breakfast Recipe Calculator'!$A$409:$C$424,2,FALSE),"") -> 0 | D110: 1 | G110: 0 | H110: 0 | I110: 0
C111: =IFERROR(VLOOKUP(B111,'Breakfast Recipe Calculator'!$A$409:$C$424,2,FALSE),"") -> 0 | D111: 1 | G111: 0 | H111: 0 | I111: 0
C112: =IFERROR(VLOOKUP(B112,'Breakfast Recipe Calculator'!$A$409:$C$424,2,FALSE),"") -> 0 | D112: 1 | G112: 0 | H112: 0 | I112: 0
C113: =IFERROR(VLOOKUP(B113,'Breakfast Recipe Calculator'!$A$409:$C$424,2,FALSE),"") -> 0 | D113: 1 | G113: 0 | H113: 0 | I113: 0
C114: =IFERROR(VLOOKUP(B114,'Breakfast Recipe Calculator'!$A$409:$C$424,2,FALSE),"") -> 0 | D114: 1 | G114: 0 | H114: 0 | I114: 0
C115: =IFERROR(VLOOKUP(B115,'Breakfast Recipe Calculator'!$A$409:$C$424,2,FALSE),"") -> 0 | D115: 1 | G115: 0 | H115: 0 | I115: 0
B116: Pre-Calculated and/or Pre-Packaged Entrees
C117: 0 | D117: =IF(ISBLANK(B117),0,1) -> 0 | G117: =IFERROR(IF(C117>0.01,C117/D117,0),0) -> 0 | H117: =G117*F117 -> 0 | I117: =IF(H117>0.01,E117*F117,0) -> 0
C118: 0 | D118: =IF(ISBLANK(B118),0,1) -> 0 | G118: 0 | H118: 0 | I118: 0
C119: 0 | D119: 0 | G119: 0 | H119: 0 | I119: 0
C120: 0 | D120: 0 | G120: 0 | H120: 0 | I120: 0
C121: 0 | D121: 0 | G121: 0 | H121: 0 | I121: 0
C122: 0 | D122: 0 | G122: 0 | H122: 0 | I122: 0
C123: 0 | D123: 0 | G123: 0 | H123: 0 | I123: 0
C124: 0 | D124: 0 | G124: 0 | H124: 0 | I124: 0
C125: 0 | D125: 0 | G125: 0 | H125: 0 | I125: 0
C126: 0 | D126: 0 | G126: 0 | H126: 0 | I126: 0
F127: Average Entrée Cost: | G127: =IFERROR(AVERAGEIF(G106:G126,">0"),0) -> 0
B128: Item | C128: Cost Per Purchase Unit OR Portion | D128: No. of Portions per Purchase Unit | E128: A La Carte Price Charged Per Portion | F128: No. of Portions Sold A La Carte | G128: Cost per Portion | H128: Total Nonprogram Food Cost | I128: Total Revenue per Item
A129: Fruit or Vegetable Sides | G129: =IFERROR(IF(C129>0.01,C129/D129,0),0) -> 0 | H129: =G129*F129 -> 0 | I129: =IF(H129>0.01,E129*F129,0) -> 0
A130: =IFERROR(AVERAGEIF(G129:G131,">0"),0) -> 0 | G130: 0 | H130: 0 | I130: 0
G131: 0 | H131: 0 | I131: 0
G132: 0 | H132: 0 | I132: 0
G133: 0 | H133: 0 | I133: 0
G134: 0 | H134: 0 | I134: 0
A135: Grain/Other Sides | G135: 0 | H135: 0 | I135: 0
A136: =IFERROR(AVERAGEIF(G135:G139,">0"),0) -> 0 | G136: 0 | H136: 0 | I136: 0
G137: 0 | H137: 0 | I137: 0
G138: 0 | H138: 0 | I138: 0
G139: 0 | H139: 0 | I139: 0
F140: Total Meal Cost (Avg. Entrée Cost + Avg. Side Item Cost + Avg. Milk Cost ): | G140: =IFERROR(B12+G127+A130+A133+A136,0) -> 0 | H140: =SUM(H129:H139,H117:H126,H106:H115) -> 0 | I140: =SUM(I129:I139,I117:I126,I106:I115) -> 0
A142: Thursday
B143: Item | C143: Cost Per Purchase Unit OR Portion | D143: No. of Portions per Purchase Unit | E143: A La Carte Price Charged Per Portion | F143: No. of Portions Sold A La Carte | G143: Cost per Portion | H143: Total Nonprogram Food Cost | I143: Total Revenue per Item
B144: Recipes
A145: Entrée Items | C145: =IFERROR(VLOOKUP(B145,'Breakfast Recipe Calculator'!$A$409:$C$424,2,FALSE),"") -> 0 | D145: 1 | G145: =IFERROR(IF(C145>0.01,C145/D145,0),0) -> 0 | H145: =G145*F145 -> 0 | I145: =IF(H145>0.01,E145*F145,0) -> 0
C146: =IFERROR(VLOOKUP(B146,'Breakfast Recipe Calculator'!$A$409:$C$424,2,FALSE),"") -> 0 | D146: 1 | G146: =IFERROR(IF(C146>0.01,C146/D146,0),0) -> 0 | H146: =G146*F146 -> 0 | I146: =IF(H146>0.01,E146*F146,0) -> 0
C147: =IFERROR(VLOOKUP(B147,'Breakfast Recipe Calculator'!$A$409:$C$424,2,FALSE),"") -> 0 | D147: 1 | G147: =IFERROR(IF(C147>0.01,C147/D147,0),0) -> 0 | H147: =G147*F147 -> 0 | I147: =IF(H147>0.01,E147*F147,0) -> 0
C148: =IFERROR(VLOOKUP(B148,'Breakfast Recipe Calculator'!$A$409:$C$424,2,FALSE),"") -> 0 | D148: 1 | G148: 0 | H148: 0 | I148: 0
C149: =IFERROR(VLOOKUP(B149,'Breakfast Recipe Calculator'!$A$409:$C$424,2,FALSE),"") -> 0 | D149: 1 | G149: 0 | H149: 0 | I149: 0
C150: =IFERROR(VLOOKUP(B150,'Breakfast Recipe Calculator'!$A$409:$C$424,2,FALSE),"") -> 0 | D150: 1 | G150: 0 | H150: 0 | I150: 0
C151: =IFERROR(VLOOKUP(B151,'Breakfast Recipe Calculator'!$A$409:$C$424,2,FALSE),"") -> 0 | D151: 1 | G151: 0 | H151: 0 | I151: 0
C152: =IFERROR(VLOOKUP(B152,'Breakfast Recipe Calculator'!$A$409:$C$424,2,FALSE),"") -> 0 | D152: 1 | G152: 0 | H152: 0 | I152: 0
C153: =IFERROR(VLOOKUP(B153,'Breakfast Recipe Calculator'!$A$409:$C$424,2,FALSE),"") -> 0 | D153: 1 | G153: 0 | H153: 0 | I153: 0
C154: =IFERROR(VLOOKUP(B154,'Breakfast Recipe Calculator'!$A$409:$C$424,2,FALSE),"") -> 0 | D154: 1 | G154: 0 | H154: 0 | I154: 0
B155: Pre-Calculated and/or Pre-Packaged Entrees
C156: 0 | D156: =IF(ISBLANK(B156),0,1) -> 0 | G156: =IFERROR(IF(C156>0.01,C156/D156,0),0) -> 0 | H156: =G156*F156 -> 0 | I156: =IF(H156>0.01,E156*F156,0) -> 0
C157: 0 | D157: =IF(ISBLANK(B157),0,1) -> 0 | G157: 0 | H157: 0 | I157: 0
C158: 0 | D158: 0 | G158: 0 | H158: 0 | I158: 0
C159: 0 | D159: 0 | G159: 0 | H159: 0 | I159: 0
C160: 0 | D160: 0 | G160: 0 | H160: 0 | I160: 0
C161: 0 | D161: 0 | G161: 0 | H161: 0 | I161: 0
C162: 0 | D162: 0 | G162: 0 | H162: 0 | I162: 0
C163: 0 | D163: 0 | G163: 0 | H163: 0 | I163: 0
C164: 0 | D164: 0 | G164: 0 | H164: 0 | I164: 0
C165: 0 | D165: 0 | G165: 0 | H165: 0 | I165: 0
F166: Average Entrée Cost: | G166: =IFERROR(AVERAGEIF(G145:G165,">0"),0) -> 0
B167: Item | C167: Cost Per Purchase Unit OR Portion | D167: No. of Portions per Purchase Unit | E167: A La Carte Price Charged Per Portion | F167: No. of Portions Sold A La Carte | G167: Cost per Portion | H167: Total Nonprogram Food Cost | I167: Total Revenue per Item
A168: Fruit or Vegetable Sides | G168: =IFERROR(IF(C168>0.01,C168/D168,0),0) -> 0 | H168: =G168*F168 -> 0 | I168: =IF(H168>0.01,E168*F168,0) -> 0
A169: =IFERROR(AVERAGEIF(G168:G170,">0"),0) -> 0 | G169: 0 | H169: 0 | I169: 0
G170: 0 | H170: 0 | I170: 0
G171: 0 | H171: 0 | I171: 0
A172: =IFERROR(AVERAGEIF(G171:G173,">0"),0) -> 0 | G172: 0 | H172: 0 | I172: 0
G173: 0 | H173: 0 | I173: 0
A174: Grain/Other Sides | G174: 0 | H174: 0 | I174: 0
A175: =IFERROR(AVERAGEIF(G174:G178,">0"),0) -> 0 | G175: 0 | H175: 0 | I175: 0
G176: 0 | H176: 0 | I176: 0
G177: 0 | H177: 0 | I177: 0
G178: 0 | H178: 0 | I178: 0
F179: Total Meal Cost (Avg. Entrée Cost + Avg. Side Item Cost + Avg. Milk Cost ): | G179: =IFERROR(B12+G166+A169+A172+A175,0) -> 0 | H179: =SUM(H168:H178,H156:H165,H145:H154) -> 0 | I179: =SUM(I168:I178,I156:I165,I145:I154) -> 0
A181: Friday
B182: Item | C182: Cost Per Purchase Unit OR Portion | D182: No. of Portions per Purchase Unit | E182: A La Carte Price Charged Per Portion | F182: No. of Portions Sold A La Carte | G182: Cost per Portion | H182: Total Nonprogram Food Cost | I182: Total Revenue per Item
B183: Recipes
A184: Entrée Items | C184: =IFERROR(VLOOKUP(B184,'Breakfast Recipe Calculator'!$A$409:$C$424,2,FALSE),"") -> 0 | D184: 1 | G184: =IFERROR(IF(C184>0.01,C184/D184,0),0) -> 0 | H184: =G184*F184 -> 0 | I184: =IF(H184>0.01,E184*F184,0) -> 0
C185: =IFERROR(VLOOKUP(B185,'Breakfast Recipe Calculator'!$A$409:$C$424,2,FALSE),"") -> 0 | D185: 1 | G185: =IFERROR(IF(C185>0.01,C185/D185,0),0) -> 0 | H185: =G185*F185 -> 0 | I185: =IF(H185>0.01,E185*F185,0) -> 0
C186: =IFERROR(VLOOKUP(B186,'Breakfast Recipe Calculator'!$A$409:$C$424,2,FALSE),"") -> 0 | D186: 1 | G186: =IFERROR(IF(C186>0.01,C186/D186,0),0) -> 0 | H186: =G186*F186 -> 0 | I186: =IF(H186>0.01,E186*F186,0) -> 0
C187: =IFERROR(VLOOKUP(B187,'Breakfast Recipe Calculator'!$A$409:$C$424,2,FALSE),"") -> 0 | D187: 1 | G187: 0 | H187: 0 | I187: 0
C188: =IFERROR(VLOOKUP(B188,'Breakfast Recipe Calculator'!$A$409:$C$424,2,FALSE),"") -> 0 | D188: 1 | G188: 0 | H188: 0 | I188: 0
C189: =IFERROR(VLOOKUP(B189,'Breakfast Recipe Calculator'!$A$409:$C$424,2,FALSE),"") -> 0 | D189: 1 | G189: 0 | H189: 0 | I189: 0
C190: =IFERROR(VLOOKUP(B190,'Breakfast Recipe Calculator'!$A$409:$C$424,2,FALSE),"") -> 0 | D190: 1 | G190: 0 | H190: 0 | I190: 0
C191: =IFERROR(VLOOKUP(B191,'Breakfast Recipe Calculator'!$A$409:$C$424,2,FALSE),"") -> 0 | D191: 1 | G191: 0 | H191: 0 | I191: 0
C192: =IFERROR(VLOOKUP(B192,'Breakfast Recipe Calculator'!$A$409:$C$424,2,FALSE),"") -> 0 | D192: 1 | G192: 0 | H192: 0 | I192: 0
C193: =IFERROR(VLOOKUP(B193,'Breakfast Recipe Calculator'!$A$409:$C$424,2,FALSE),"") -> 0 | D193: 1 | G193: 0 | H193: 0 | I193: 0
B194: Pre-Calculated and/or Pre-Packaged Entrees
C195: 0 | D195: =IF(ISBLANK(B195),0,1) -> 0 | G195: =IFERROR(IF(C195>0.01,C195/D195,0),0) -> 0 | H195: =G195*F195 -> 0 | I195: =IF(H195>0.01,E195*F195,0) -> 0
C196: 0 | D196: =IF(ISBLANK(B196),0,1) -> 0 | G196: 0 | H196: 0 | I196: 0
C197: 0 | D197: 0 | G197: 0 | H197: 0 | I197: 0
C198: 0 | D198: 0 | G198: 0 | H198: 0 | I198: 0
C199: 0 | D199: 0 | G199: 0 | H199: 0 | I199: 0
C200: 0 | D200: 0 | G200: 0 | H200: 0 | I200: 0
C201: 0 | D201: 0 | G201: 0 | H201: 0 | I201: 0
C202: 0 | D202: 0 | G202: 0 | H202: 0 | I202: 0
C203: 0 | D203: 0 | G203: 0 | H203: 0 | I203: 0
C204: 0 | D204: 0 | G204: 0 | H204: 0 | I204: 0
F205: Average Entrée Cost: | G205: =IFERROR(AVERAGEIF(G184:G204,">0"),0) -> 0
B206: Item | C206: Cost Per Purchase Unit OR Portion | D206: No. of Portions per Purchase Unit | E206: A La Carte Price Charged Per Portion | F206: No. of Portions Sold A La Carte | G206: Cost per Portion | H206: Total Nonprogram Food Cost | I206: Total Revenue per Item
... 13 more rows

Sheet A La Carte
A1: Weekly A La Carte Sales
A2: Sponsor Name: | B2: =IF('Instructions (START HERE)'!C2="","",'Instructions (START HERE)'!C2) -> 
A3: Week Selected for Review: | B3: ='Lunch Menu'!B4 -> 0
A5: Food cost percentages above the industry standard of 40% are in jeopardy of non-compliance with the requirements in USDA Memo SP20-2016 | G5: Memo SP20-2016
B6: Item | C6: Cost per Portion | D6: No. of Portions Sold A La Carte | E6: A La Carte Price Charged Per Portion | F6: Food Cost % | G6: Total Nonprogram Food Cost | H6: Total Revenue per Item
A7: A La Carte Items | C7: 0 | E7: 0 | F7: =IFERROR(C7/E7,"") ->  | G7: =IFERROR(C7*D7,0) -> 0 | H7: =IF(G7>0.01,E7*D7,0) -> 0
C8: 0 | E8: 0 | F8: =IFERROR(C8/E8,"") ->  | G8: =C8*D8 -> 0 | H8: 0
C9: 0 | E9: 0 | G9: 0 | H9: 0
C10: 0 | E10: 0 | G10: 0 | H10: 0
C11: 0 | E11: 0 | G11: 0 | H11: 0
C12: 0 | E12: 0 | G12: 0 | H12: 0
C13: 0 | E13: 0 | G13: 0 | H13: 0
C14: 0 | E14: 0 | G14: 0 | H14: 0
C15: 0 | E15: 0 | G15: 0 | H15: 0
C16: 0 | E16: 0 | G16: 0 | H16: 0
C17: 0 | E17: 0 | G17: 0 | H17: 0
C18: 0 | E18: 0 | G18: 0 | H18: 0
C19: 0 | E19: 0 | G19: 0 | H19: 0
C20: 0 | E20: 0 | G20: 0 | H20: 0
C21: 0 | E21: 0 | G21: 0 | H21: 0
C22: 0 | E22: 0 | G22: 0 | H22: 0
C23: 0 | E23: 0 | G23: 0 | H23: 0
C24: 0 | E24: 0 | G24: 0 | H24: 0
C25: 0 | E25: 0 | F25: =IFERROR(C25/E25,"") ->  | G25: =C25*D25 -> 0 | H25: =IF(G25>0.01,E25*D25,0) -> 0
C26: 0 | E26: 0 | G26: 0 | H26: 0
C27: 0 | E27: 0 | F27: =IFERROR(C27/E27,"") ->  | G27: =C27*D27 -> 0 | H27: =IF(G27>0.01,E27*D27,0) -> 0
C28: 0 | E28: 0 | G28: 0 | H28: 0
C29: 0 | E29: 0 | G29: 0 | H29: 0
C30: 0 | E30: 0 | G30: 0 | H30: 0
C31: 0 | E31: 0 | G31: 0 | H31: 0
C32: 0 | E32: 0 | G32: 0 | H32: 0
C33: 0 | E33: 0 | G33: 0 | H33: 0
C34: 0 | E34: 0 | G34: 0 | H34: 0
C35: 0 | E35: 0 | G35: 0 | H35: 0
C36: 0 | E36: 0 | G36: 0 | H36: 0
C37: 0 | E37: 0 | G37: 0 | H37: 0
C38: 0 | E38: 0 | G38: 0 | H38: 0
C39: 0 | E39: 0 | G39: 0 | H39: 0
C40: 0 | E40: 0 | G40: 0 | H40: 0
C41: 0 | E41: 0 | G41: 0 | H41: 0
C42: 0 | E42: 0 | G42: 0 | H42: 0
C43: TOTALS: | D43: =SUM(D8:D42) -> 0 | E43: =SUM(E8:E42) -> 0 | F43: =IFERROR((SUM(C7:C42)/SUM(E7:E42)),"") ->  | G43: =SUM(G8:G42) -> 0 | H43: =SUM(H8:H42) -> 0
A45: Additional Nonprogram Food Costs & Revenue
B46: Food Cost of Nonprogram Foods | C46: Number Items Sold | D46: Nonprogram Foods Revenue
A47: Catering (Board Meetings)
A48: PTA/PTO or Concessions
A49: Vended Meal Contracts
A50: Other

Sheet Compliance
A1: Nonprogram Food Revenue Compliance
A2: =IF('Instructions (START HERE)'!C2=0,"",'Instructions (START HERE)'!C2) -> 
A4: Week Selected for Review: | B4: =IF('Lunch Menu'!B4=0,"",'Lunch Menu'!B4) -> 
A6: Is the Sponsor Compliant with the Nonprogram Revenue Requirement?
A7: =IF(C11>=G11,"Yes! Non-Program Food Priced Appropriately","No: Increase Nonprogram Food Prices") -> Yes! Non-Program Food Priced Appropriately
A9: Assessing Compliance with Nonprogram Revenue Requirement:
A10: Revenue Ratio: | C10: Percent of Revenue from Nonprogram Foods | E10: Food Cost Ratio: | G10: Percent of Food Cost from Nonprogram Foods
A11: Total Nonprogram Food Revenue | B11: =E30 -> 0 | C11: =IFERROR(B11/B12,"") ->  | E11: Total Nonprogram Food Costs | F11: =B30 -> 0 | G11: =IFERROR(F11/F12,"") -> 
A12: Total Revenue (Program and Nonprogram Food Revenue) | B12: =E30+E44 -> 0 | E12: Total Food Cost (Program and Nonprogram Food Cost) | F12: =B30+B44 -> 0
A16: Summary of Nonprogram Costs and Revenue:
A17: Nonprogram Food Sources: | B17: Food Cost of Nonprogram Foods | C17: Number of Items Sold | E17: Revenue from Nonprogram Foods
A18: Adult Meals | B18: =SUM('Lunch Menu'!F8,'Lunch Menu 2'!F8,'Lunch Menu 3'!$F$8,'Lunch Menu 4'!F8,'Breakfast Menu'!F8,'Breakfast Menu 2'!F8,'Breakfast Menu 3'!F8,'Breakfast Menu 4'!F8,'Breakfast Menu 5'!F8,'Breakfast Menu 6'!F8) -> 0 | C18: =SUM('Lunch Menu'!F12,'Lunch Menu 2'!F12,'Lunch Menu 3'!F12,'Lunch Menu 4'!F12,'Breakfast Menu'!F12,'Breakfast Menu 2'!F12,'Breakfast Menu 3'!F12,'Breakfast Menu 4'!F12,'Breakfast Menu 5'!F12,'Breakfast Menu 6'!F12) -> 0 | E18: =SUM('Lunch Menu'!G8,'Lunch Menu 2'!G8,'Lunch Menu 3'!$G$8,'Lunch Menu 4'!G8,'Breakfast Menu'!G8,'Breakfast Menu 2'!G8,'Breakfast Menu 3'!G8,'Breakfast Menu 4'!G8,'Breakfast Menu 5'!G8,'Breakfast Menu 6'!G8) -> 0
A19: Extra Milk and/or Snack Milk | B19: ='A La Carte'!G7 -> 0 | C19: ='A La Carte'!D7 -> 0 | E19: ='A La Carte'!H7 -> 0
A20: Entrée/Side Items | B20: =SUM('Lunch Menu'!F11,'Lunch Menu 2'!F11,'Lunch Menu 3'!F11,'Lunch Menu 4'!F11,'Breakfast Menu'!F11,'Breakfast Menu 2'!F11,'Breakfast Menu 3'!F11,'Breakfast Menu 4'!F11,'Breakfast Menu 5'!F11,'Breakfast Menu 6'!F11) -> 0 | C20: =SUM('Lunch Menu'!F13,'Lunch Menu 2'!F13,'Lunch Menu 3'!F13,'Lunch Menu 4'!F13,'Breakfast Menu'!F13,'Breakfast Menu 2'!F13,'Breakfast Menu 3'!F13,'Breakfast Menu 4'!F13,'Breakfast Menu 5'!F13,'Breakfast Menu 6'!F13) -> 0 | E20: =SUM('Lunch Menu'!G11,'Lunch Menu 2'!G11,'Lunch Menu 3'!G11,'Lunch Menu 4'!G11,'Breakfast Menu'!G11,'Breakfast Menu 2'!G11,'Breakfast Menu 3'!G11,'Breakfast Menu 4'!G11,'Breakfast Menu 5'!G11,'Breakfast Menu 6'!G11) -> 0
A21: Other A La Carte Items | B21: ='A La Carte'!G43 -> 0 | C21: ='A La Carte'!D43 -> 0 | E21: ='A La Carte'!H43 -> 0
A22: Board Meetings | B22: ='A La Carte'!B47 -> 0 | C22: ='A La Carte'!C47 -> 0 | E22: ='A La Carte'!D47 -> 0
A23: PTA/PTO or Concessions | B23: ='A La Carte'!B48 -> 0 | C23: ='A La Carte'!C48 -> 0 | E23: ='A La Carte'!D48 -> 0
A24: Vended Meal Contracts | B24: ='A La Carte'!B49 -> 0 | C24: ='A La Carte'!C49 -> 0 | E24: ='A La Carte'!D49 -> 0
A25: Other | B25: ='A La Carte'!B50 -> 0 | C25: ='A La Carte'!C50 -> 0 | E25: ='A La Carte'!D50 -> 0
A30: Totals: | B30: =SUM(B18:B29) -> 0 | E30: =SUM(E18:E29) -> 0
A32: Summary of Reimbursable Meal Costs and Revenue: | F32: Select Grade Level:
A33: Menu-Type/Age-Grade Group: | B33: Weekly Meal Cost per Menu Type | C33: Total Student Meals Served | E33: Total Weekly Revenue per Menu Type
A34: =VLOOKUP($F$32,'Lunch Menu'!A2:$I$2,2,FALSE) -> 0 | B34: ='Lunch Menu'!F10 -> 0 | C34: ='Lunch Menu'!H10 -> 0 | E34: ='Lunch Menu'!G10 -> 0
A35: =VLOOKUP($F$32,'Lunch Menu 2'!A$2:$I3,2,FALSE) -> 0 | B35: ='Lunch Menu 2'!F10 -> 0 | C35: ='Lunch Menu 2'!H10 -> 0 | E35: ='Lunch Menu 2'!G10 -> 0
A36: =VLOOKUP($F$32,'Lunch Menu 3'!A$2:$I4,2,FALSE) -> 0 | B36: ='Lunch Menu 3'!F10 -> 0 | C36: ='Lunch Menu 3'!H10 -> 0 | E36: ='Lunch Menu 3'!G10 -> 0
A37: =VLOOKUP($F$32,'Lunch Menu 4'!A$2:$I5,2,FALSE) -> 0 | B37: ='Lunch Menu 4'!F10 -> 0 | C37: ='Lunch Menu 4'!H10 -> 0 | E37: ='Lunch Menu 4'!G10 -> 0
A38: =VLOOKUP($F$32,'Breakfast Menu'!A$2:$I6,2,FALSE) -> 0 | B38: ='Breakfast Menu'!F10 -> 0 | C38: ='Breakfast Menu'!H10 -> 0 | E38: ='Breakfast Menu'!G10 -> 0
A39: =VLOOKUP($F$32,'Breakfast Menu 2'!A$2:$I7,2,FALSE) -> 0 | B39: ='Breakfast Menu 2'!F10 -> 0 | C39: ='Breakfast Menu 2'!H10 -> 0 | E39: ='Breakfast Menu 2'!G10 -> 0
A40: =VLOOKUP($F$32,'Breakfast Menu 3'!A$2:$I8,2,FALSE) -> 0 | B40: ='Breakfast Menu 3'!F10 -> 0 | C40: ='Breakfast Menu 3'!H10 -> 0 | E40: ='Breakfast Menu 3'!G10 -> 0
A41: =VLOOKUP($F$32,'Breakfast Menu 4'!A$2:$I9,2,FALSE) -> 0 | B41: ='Breakfast Menu 4'!F10 -> 0 | C41: ='Breakfast Menu 4'!H10 -> 0 | E41: ='Breakfast Menu 4'!G10 -> 0
A42: =VLOOKUP($F$32,'Breakfast Menu 5'!A$2:$I10,2,FALSE) -> 0 | B42: ='Breakfast Menu 5'!F10 -> 0 | C42: ='Breakfast Menu 5'!H10 -> 0 | E42: ='Breakfast Menu 5'!G10 -> 0
A43: =VLOOKUP($F$32,'Breakfast Menu 6'!A$2:$I11,2,FALSE) -> 0 | B43: ='Breakfast Menu 6'!F10 -> 0 | C43: ='Breakfast Menu 6'!H10 -> 0 | E43: ='Breakfast Menu 6'!G10 -> 0
A44: Totals: | B44: =IFERROR(SUM(B34:B43),0) -> 0 | E44: =SUM(E34:E43) -> 0

Sheet Supporting Invoices
A1: Supporting Cost Documentation
A2: Copy & paste PDF's or Screen Shots of the invoices used during the reference week. OR list the invoices by vendor name and invoice number; save an electronic copy in the same location as this workbook.

Sheet Sales Reports
A1: Sales Reports
A2: Copy & paste PDF's or Screen Shots of the Sales Reports

Sheet Revenue Reports Deposits
A1: Revenue Reports
A2: Revenue from Apportionment is calculated on the Compliance Tab.
A4: Copy & paste PDF's or Screen Shots of the Revenue Reports from all sales

Sheet Ala Cart Price Instructions
A1: OSPI School Meal Programs
B2: A La Carte Pricing Worksheet Instructions
A4: A. | B4: Enter data in blue fields only
A5: B. | B5: Enter name of school district and sites selling a la carte items
A6: C. | B6: Complete the Non-Program Pricing tab by filling in the following information:
A7: 1 | B7: A La Carte Items | C7: Short name/description of the item being sold
A8: 2 | B8: Total Unit Cost | C8: SFA cost to purchase the item
A9: 3 | B9: Actual Selling Price | C9: Price charged to customers
B11: Three examples have been entered to show how to complete worksheet using blue fields.
C12: Total | D12: Recommended | E12: Actual | F12: Food
B13: A La Carte Items | C13: Unit Cost | D13: Selling Price | E13: Selling Price | F13: Cost %
B14: Milk (8 oz) example | C14: 0.23 | D14: =C14/0.4 -> 0.575 | E14: 0.55 | F14: =C14/E14 -> 0.4181818182
B15: Pizza (10 slice) example | C15: 0.7 | D15: =C15/0.4 -> 1.75 | E15: 2.25 | F15: =C15/E15 -> 0.3111111111
B16: Chips (104 ct) example | C16: 0.27 | D16: =C16/0.4 -> 0.675 | E16: 0.75 | F16: 0.36
B18: The following columns will auto populate based on data entered in the blue fields.
B19: Do not modify the formulas in these cells.
B20: 1 | C20: Recommended Selling Price
B21: 2 | C21: Food Cost %
A22: D. | B22: Use the Recommended Selling Price total to identify a price to charge customers.
C23: The Food Cost % assists in identifying compliance.
C24: The goal is to have a food cost percentage at or below 40%.
C25: In this example, A SFA plans to sell a $0.89 bottle of juice for a profit. They set a $1.00 selling price.
C26: Total | D26: Recommended | E26: Actual | F26: Food
B27: A La Carte Items | C27: Unit Cost | D27: Selling Price | E27: Selling Price | F27: Cost %
B28: 100% Juice (8 oz) ex | C28: 0.89 | D28: =C28/0.4 -> 2.225 | E28: 1 | F28: =C28/E28 -> 0.89
C29: This puts the food cost percentage at 89%, which is too high; it should be at or below 40%.
C30: The recommended selling price is $2.23.
C31: Changing the sale price to $2.25 results in a 39.56% food cost which is in line with the goal.
C33: Total | D33: Recommended | E33: Actual | F33: Food
B34: A La Carte Items | C34: Unit Cost | D34: Selling Price | E34: Selling Price | F34: Cost %
B35: 100% Juice (8 oz) ex | C35: 0.89 | D35: =C35/0.4 -> 2.225 | E35: 2.25 | F35: =C35/E35 -> 0.3955555556
B37: Having some costs not at the recommended level may be acceptable if the average food cost % for all products is at or below 40%
B38: Scroll down to see the total, which is located at the bottom of the form.
B39: Total | C39: 1.2 | E39: 3.55 | F39: 0.338028169 | G39: Average Food Cost %
A40: E. | B40: Save this workbook to indicate pricing compliance.
B42: Reference
B43: 7 CFR 210.14 (f): Revenue from Nonprogram foods
B44: SP39-2011: Guidance on Paid Lunch Equity and Revenue from Nonprogram Foods
B45: SP13-2014: School Food Service Account Revenue from the Sale of Nonprogram Foods
B46: SP20-2016: Nonprofit School Food Service Account Nonprogram Food Revenue Requirements

Sheet Ala Cart Pricing
B1: OSPI School Meal Programs
B2: A La Carte Pricing Worksheet
B3: School District Name
B4: Schools Using These Prices
B5: Desired Food Cost Percentage: | C5: 0.4 | D5: Food cost percentages above the industry standard of 40% are in jeopardy of non-compliance with the requirements in USDA Memo SP20-2016.
C6: Total | D6: Recommended | E6: Actual | F6: Food
B7: A La Carte Items | C7: Unit Cost | D7: Selling Price | E7: Selling Price | F7: Cost %
B8: Milk (8 oz) example | C8: 0.23 | D8: =C8/$C$5 -> 0.575 | E8: 0.55 | F8: =C8/E8 -> 0.4181818182
D9: 0 | F9: =C9/E9 -> 
D10: 0
D11: 0
D12: 0
D13: 0
D14: 0
D15: 0
D16: 0
D17: 0
D18: 0
D19: 0
D20: 0
D21: 0
D22: 0
D23: 0
D24: 0
D25: 0
D26: 0
D27: 0
D28: 0
D29: 0
D30: 0
D31: 0
D32: 0
D33: 0
D34: 0
D35: 0
D36: 0
D37: 0
D38: 0
B39: Total | C39: =SUM(C11:C38) -> 0 | E39: =SUM(E11:E38) -> 0 | G39: Average Food Cost %
B41: If you have any questions, please contact your CNS Program Specialist
B43: This Excel worksheet was developed and provided courtesy of Michigan Department of Education
B44: Office of Health and Nutrition Services, Fiscal and Administrative Services Team, Fiscal Monitoring Unit.

Sheet Data (hidden)
A1: K-5 Lunch Menu
A2: K-8 Lunch Menu
A3: 6-8 Lunch Menu
A4: 9-12 Lunch Menu
A6: K-5 Breakfast Menu
A7: K-8 Breakfast Menu
A8: K-12 Breakfast Menu
A9: 6-8 Breakfast Menu
A10: 6-12 Breakfast Menu
A11: 9-12 Breakfast Menu
A13: Monday
A14: Tuesday
A15: Wednesday
A16: Thursday
A17: Friday
A20: Salad Bar K-5
A21: Salad Bar 6-8
A22: Salad Bar 9-12
A23: -
A24: 4.41
A25: 4.43
A26: 4.01
A27: 4.03
A28: 0.85
A29: 0.87
A31: 2.26
A32: 2.67
A33: 1.96
A34: 2.37
